Workbook

Sheet Student Entry
A1: Student Entry
A2: School # 1 Name: | B2: School # 2 Name: | C2: School # 3 Name:
A3: Osseo-Maple Grove | B3: Forest Lake
A4: Student Names: | B4: Student Names: | C4: Student Names:
A5: Emily Barr | B5: Ella Anderson
A6: Heather Breidenbach | B6: Malissa Ball
A7: Holly Drazenovich | B7: Jane Burk
A8: Anna Ganser | B8: Annie Larson
A9: Danielle Hawes | B9: Cora Martinez
A10: Elisabeth Heitzig | B10: Bridget Olson
A11: Caroline LaBord | B11: Lydia Bergeron
A12: Hannah Littel | B12: Lindsey Biebl
A13: Rachel Knox | B13: Leigh Boettner Johnson
A14: Gabriela Marick | B14: Elizabeth Campbell
A15: Elizabeth McBride | B15: Tessa Crohn
A16: Kelly McNamee | B16: Alle Hale
A17: Katherine Olsen | B17: Lydia Hansen
A18: Jessica Ruohoniemi | B18: Mia Janisch
A19: Abigail Tollas | B19: Naomi Krueger
A20: Marie Vanderwarn | B20: Alise Ostercamp
A21: Elena Vrba | B21: Bridget Beynon
B22: Brecken Carr
B23: Megan Ihfe
B24: Sophie Jarosz
B25: Kenzie Klein
B26: LaCresia Meyer
B27: Fallon Olson
B28: Amanda Pothen
B29: Anna Stockinger
B30: Moriah Ulbricht
B31: Lacey Wedell
B32: Sierra Nutter
B33: Emily Ostercamp
B34: Megan Palmer
B35: Michelle Perkins
B36: Mika Peterson
B37: Dani Sardeson
B38: Paige Thurnbeck
B39: Elizabeth Blount
B40: Andrea Dunrud
B41: Jessica Hentges
B42: Emma Stockinger

Sheet Fig 1 Ballet Leg
B1: Figure #1: | C1: 101 R/L Ballet Leg, single, *right or *left
A2: # | B2: Degree of Difficulty | C2: Judge 1 | D2: Judge 2 | E2: Judge 3 | F2: Judge 4 | G2: Judge 5 | H2: Score | I2: Penalty
A3: =IF([1]Draw!E2=0,"",[1]Draw!E2) -> 1 | B3: 1.6 | C3: 57 | D3: 56 | E3: 54 | H3: =IF(B3="","",IF(K3=5,(SUM(C3:G3)-MAX(C3:G3)-MIN(C3:G3))/3,IF(K3=4,(SUM(C3:G3)-MAX(C3:G3))/3,SUM(C3:G3)/3))*B3/7.6) -> 11.71929825 | K3: =COUNT(C3:G3) -> 3
A4: =IF([1]Draw!E3=0,"",[1]Draw!E3) -> 2 | B4: =IF(A4="","",B$3) -> 1.6 | C4: 57 | D4: 58 | E4: 53 | H4: =IF(B4="","",IF(K4=5,(SUM(C4:G4)-MAX(C4:G4)-MIN(C4:G4))/3,IF(K4=4,(SUM(C4:G4)-MAX(C4:G4))/3,SUM(C4:G4)/3))*B4/7.6) -> 11.78947368 | K4: =COUNT(C4:G4) -> 3
A5: =IF([1]Draw!E4=0,"",[1]Draw!E4) -> 3 | B5: 1.6 | C5: 54 | D5: 52 | E5: 53 | H5: 11.15789474 | K5: 3
A6: 4 | B6: =IF(A6="","",B$3) -> 1.6 | C6: 55 | D6: 55 | E6: 58 | H6: =IF(B6="","",IF(K6=5,(SUM(C6:G6)-MAX(C6:G6)-MIN(C6:G6))/3,IF(K6=4,(SUM(C6:G6)-MAX(C6:G6))/3,SUM(C6:G6)/3))*B6/7.6) -> 11.78947368 | K6: 3
A7: 5 | B7: 1.6 | C7: 58 | D7: 59 | E7: 55 | H7: 12.07017544 | K7: 3
A8: 6 | B8: =IF(A8="","",B$3) -> 1.6 | C8: 53 | D8: 57 | E8: 55 | H8: =IF(B8="","",IF(K8=5,(SUM(C8:G8)-MAX(C8:G8)-MIN(C8:G8))/3,IF(K8=4,(SUM(C8:G8)-MAX(C8:G8))/3,SUM(C8:G8)/3))*B8/7.6) -> 11.57894737 | K8: 3
A9: 7 | B9: 1.6 | C9: 54 | D9: 54 | E9: 52 | H9: 11.22807018 | K9: 3
A10: 8 | B10: =IF(A10="","",B$3) -> 1.6 | C10: 56 | D10: 55 | E10: 55 | H10: =IF(B10="","",IF(K10=5,(SUM(C10:G10)-MAX(C10:G10)-MIN(C10:G10))/3,IF(K10=4,(SUM(C10:G10)-MAX(C10:G10))/3,SUM(C10:G10)/3))*B10/7.6) -> 11.64912281 | K10: 3
A11: 9 | B11: 1.6 | C11: 51 | D11: 50 | E11: 51 | H11: 10.66666667 | K11: 3
A12: 10 | B12: =IF(A12="","",B$3) -> 1.6 | C12: 50 | D12: 48 | E12: 48 | H12: =IF(B12="","",IF(K12=5,(SUM(C12:G12)-MAX(C12:G12)-MIN(C12:G12))/3,IF(K12=4,(SUM(C12:G12)-MAX(C12:G12))/3,SUM(C12:G12)/3))*B12/7.6) -> 10.24561404 | K12: 3
A13: 11 | B13: 1.6 | C13: 57 | D13: 54 | E13: 58 | H13: 11.85964912 | K13: 3
A14: 12 | B14: =IF(A14="","",B$3) -> 1.6 | C14: 54 | D14: 54 | E14: 56 | H14: =IF(B14="","",IF(K14=5,(SUM(C14:G14)-MAX(C14:G14)-MIN(C14:G14))/3,IF(K14=4,(SUM(C14:G14)-MAX(C14:G14))/3,SUM(C14:G14)/3))*B14/7.6) -> 11.50877193 | K14: 3
A15: 13 | B15: 1.6 | C15: 60 | D15: 58 | E15: 57 | H15: 12.28070175 | K15: 3
A16: 14 | B16: =IF(A16="","",B$3) -> 1.6 | C16: 56 | D16: 51 | E16: 53 | H16: =IF(B16="","",IF(K16=5,(SUM(C16:G16)-MAX(C16:G16)-MIN(C16:G16))/3,IF(K16=4,(SUM(C16:G16)-MAX(C16:G16))/3,SUM(C16:G16)/3))*B16/7.6) -> 11.22807018 | K16: 3
A17: 15 | B17: 1.6 | C17: 50 | D17: 50 | E17: 52 | H17: 10.66666667 | K17: 3
A18: 16 | B18: =IF(A18="","",B$3) -> 1.6 | H18: 0 | K18: 0
A19: 17 | B19: 1.6 | C19: 54 | D19: 56 | E19: 55 | H19: 11.57894737 | K19: 3
A20: 18 | B20: =IF(A20="","",B$3) -> 1.6 | C20: 57 | D20: 57 | E20: 54 | H20: 11.78947368 | K20: 3
A21: 19 | B21: 1.6 | C21: 54 | D21: 52 | E21: 54 | H21: 11.22807018 | K21: 3
A22: 20 | B22: =IF(A22="","",B$3) -> 1.6 | C22: 55 | D22: 53 | E22: 55 | H22: 11.43859649 | K22: 3
A23: 21 | B23: 1.6 | C23: 56 | D23: 55 | E23: 53 | H23: 11.50877193 | K23: 3
A24: 22 | B24: =IF(A24="","",B$3) -> 1.6 | C24: 48 | D24: 47 | E24: 48 | H24: 10.03508772 | K24: 3
A25: 23 | B25: 1.6 | C25: 63 | D25: 62 | E25: 60 | H25: 12.98245614 | K25: 3
A26: 24 | B26: =IF(A26="","",B$3) -> 1.6 | C26: 53 | D26: 56 | E26: 56 | H26: =IF(B26="","",IF(K26=5,(SUM(C26:G26)-MAX(C26:G26)-MIN(C26:G26))/3,IF(K26=4,(SUM(C26:G26)-MAX(C26:G26))/3,SUM(C26:G26)/3))*B26/7.6) -> 11.57894737 | K26: 3
A27: 25 | B27: 1.6 | C27: 49 | D27: 49 | E27: 46 | H27: 10.10526316 | K27: 3
A28: 26 | B28: =IF(A28="","",B$3) -> 1.6 | C28: 61 | D28: 59 | E28: 58 | H28: =IF(B28="","",IF(K28=5,(SUM(C28:G28)-MAX(C28:G28)-MIN(C28:G28))/3,IF(K28=4,(SUM(C28:G28)-MAX(C28:G28))/3,SUM(C28:G28)/3))*B28/7.6) -> 12.49122807 | K28: 3
A29: 27 | B29: 1.6 | C29: 56 | D29: 56 | E29: 57 | H29: 11.85964912 | K29: 3
A30: 28 | B30: =IF(A30="","",B$3) -> 1.6 | C30: 62 | D30: 63 | E30: 61 | H30: =IF(B30="","",IF(K30=5,(SUM(C30:G30)-MAX(C30:G30)-MIN(C30:G30))/3,IF(K30=4,(SUM(C30:G30)-MAX(C30:G30))/3,SUM(C30:G30)/3))*B30/7.6) -> 13.05263158 | K30: 3
A31: 29 | B31: 1.6 | C31: 71 | D31: 68 | E31: 65 | H31: 14.31578947 | K31: 3
A32: 30 | B32: =IF(A32="","",B$3) -> 1.6 | C32: 57 | D32: 54 | E32: 56 | H32: =IF(B32="","",IF(K32=5,(SUM(C32:G32)-MAX(C32:G32)-MIN(C32:G32))/3,IF(K32=4,(SUM(C32:G32)-MAX(C32:G32))/3,SUM(C32:G32)/3))*B32/7.6) -> 11.71929825 | K32: 3
A33: 31 | B33: 1.6 | C33: 56 | D33: 52 | E33: 57 | H33: 11.57894737 | K33: 3
A34: 32 | B34: =IF(A34="","",B$3) -> 1.6 | C34: 64 | D34: 60 | E34: 61 | H34: =IF(B34="","",IF(K34=5,(SUM(C34:G34)-MAX(C34:G34)-MIN(C34:G34))/3,IF(K34=4,(SUM(C34:G34)-MAX(C34:G34))/3,SUM(C34:G34)/3))*B34/7.6) -> 12.98245614 | K34: 3
A35: 33 | B35: 1.6 | C35: 53 | D35: 53 | E35: 55 | H35: 11.29824561 | K35: 3
A36: 34 | B36: =IF(A36="","",B$3) -> 1.6 | C36: 54 | D36: 51 | E36: 52 | H36: =IF(B36="","",IF(K36=5,(SUM(C36:G36)-MAX(C36:G36)-MIN(C36:G36))/3,IF(K36=4,(SUM(C36:G36)-MAX(C36:G36))/3,SUM(C36:G36)/3))*B36/7.6) -> 11.01754386 | K36: 3
A37: 35 | B37: 1.6 | C37: 56 | D37: 54 | E37: 54 | H37: 11.50877193 | K37: 3
A38: 36 | B38: =IF(A38="","",B$3) -> 1.6 | C38: 53 | D38: 55 | E38: 54 | H38: =IF(B38="","",IF(K38=5,(SUM(C38:G38)-MAX(C38:G38)-MIN(C38:G38))/3,IF(K38=4,(SUM(C38:G38)-MAX(C38:G38))/3,SUM(C38:G38)/3))*B38/7.6) -> 11.36842105 | K38: 3
A39: 37 | B39: 1.6 | C39: 55 | D39: 54 | E39: 58 | H39: 11.71929825 | K39: 3
A40: 38 | B40: =IF(A40="","",B$3) -> 1.6 | C40: 53 | D40: 50 | E40: 51 | H40: =IF(B40="","",IF(K40=5,(SUM(C40:G40)-MAX(C40:G40)-MIN(C40:G40))/3,IF(K40=4,(SUM(C40:G40)-MAX(C40:G40))/3,SUM(C40:G40)/3))*B40/7.6) -> 10.80701754 | K40: 3
A41: 39 | B41: 1.6 | C41: 52 | D41: 53 | E41: 53 | H41: 11.0877193 | K41: 3
A42: 40 | B42: =IF(A42="","",B$3) -> 1.6 | C42: 67 | D42: 57 | E42: 55 | H42: =IF(B42="","",IF(K42=5,(SUM(C42:G42)-MAX(C42:G42)-MIN(C42:G42))/3,IF(K42=4,(SUM(C42:G42)-MAX(C42:G42))/3,SUM(C42:G42)/3))*B42/7.6) -> 12.56140351 | K42: 3
A43: 41 | B43: 1.6 | C43: 58 | D43: 54 | E43: 54 | H43: 11.64912281 | K43: 3
A44: 42 | B44: =IF(A44="","",B$3) -> 1.6 | C44: 55 | D44: 52 | E44: 53 | H44: =IF(B44="","",IF(K44=5,(SUM(C44:G44)-MAX(C44:G44)-MIN(C44:G44))/3,IF(K44=4,(SUM(C44:G44)-MAX(C44:G44))/3,SUM(C44:G44)/3))*B44/7.6) -> 11.22807018 | K44: 3
A45: 43 | B45: 1.6 | C45: 55 | D45: 53 | E45: 53 | H45: 11.29824561 | K45: 3
A46: 44 | B46: =IF(A46="","",B$3) -> 1.6 | C46: 60 | D46: 62 | E46: 61 | H46: =IF(B46="","",IF(K46=5,(SUM(C46:G46)-MAX(C46:G46)-MIN(C46:G46))/3,IF(K46=4,(SUM(C46:G46)-MAX(C46:G46))/3,SUM(C46:G46)/3))*B46/7.6) -> 12.84210526 | K46: 3
A47: 45 | B47: 1.6 | C47: 50 | D47: 50 | E47: 50 | H47: 10.52631579 | K47: 3
A48: 46 | B48: =IF(A48="","",B$3) -> 1.6 | C48: 51 | D48: 51 | E48: 51 | H48: =IF(B48="","",IF(K48=5,(SUM(C48:G48)-MAX(C48:G48)-MIN(C48:G48))/3,IF(K48=4,(SUM(C48:G48)-MAX(C48:G48))/3,SUM(C48:G48)/3))*B48/7.6) -> 10.73684211 | K48: 3
A49: 47 | B49: 1.6 | C49: 47 | D49: 48 | E49: 47 | H49: 9.964912281 | K49: 3
A50: 48 | B50: =IF(A50="","",B$3) -> 1.6 | C50: 68 | D50: 67 | E50: 67 | H50: =IF(B50="","",IF(K50=5,(SUM(C50:G50)-MAX(C50:G50)-MIN(C50:G50))/3,IF(K50=4,(SUM(C50:G50)-MAX(C50:G50))/3,SUM(C50:G50)/3))*B50/7.6) -> 14.1754386 | K50: 3
A51: 49 | B51: 1.6 | C51: 54 | D51: 56 | E51: 52 | H51: 11.36842105 | K51: 3
A52: 50 | B52: =IF(A52="","",B$3) -> 1.6 | C52: 57 | D52: 57 | E52: 53 | H52: =IF(B52="","",IF(K52=5,(SUM(C52:G52)-MAX(C52:G52)-MIN(C52:G52))/3,IF(K52=4,(SUM(C52:G52)-MAX(C52:G52))/3,SUM(C52:G52)/3))*B52/7.6) -> 11.71929825 | K52: 3
A53: 51 | B53: 1.6 | C53: 58 | D53: 62 | E53: 58 | H53: 12.49122807 | K53: 3
A54: 52 | B54: =IF(A54="","",B$3) -> 1.6 | C54: 52 | D54: 52 | E54: 49 | H54: =IF(B54="","",IF(K54=5,(SUM(C54:G54)-MAX(C54:G54)-MIN(C54:G54))/3,IF(K54=4,(SUM(C54:G54)-MAX(C54:G54))/3,SUM(C54:G54)/3))*B54/7.6) -> 10.73684211 | K54: 3
A55: 53 | B55: 1.6 | C55: 58 | D55: 60 | E55: 60 | H55: 12.49122807 | K55: 3
A56: 54 | B56: =IF(A56="","",B$3) -> 1.6 | C56: 66 | D56: 62 | E56: 61 | H56: =IF(B56="","",IF(K56=5,(SUM(C56:G56)-MAX(C56:G56)-MIN(C56:G56))/3,IF(K56=4,(SUM(C56:G56)-MAX(C56:G56))/3,SUM(C56:G56)/3))*B56/7.6) -> 13.26315789 | K56: 3
A57: 55 | B57: 1.6 | C57: 48 | D57: 53 | E57: 51 | H57: 10.66666667 | K57: 3
A58: =IF(Draw!E57=0,"",Draw!E57) ->  | B58: =IF(A58="","",B$3) ->  | H58: =IF(B58="","",IF(K58=5,(SUM(C58:G58)-MAX(C58:G58)-MIN(C58:G58))/3,IF(K58=4,(SUM(C58:G58)-MAX(C58:G58))/3,SUM(C58:G58)/3))*B58/7.6) ->  | K58: 0
K59: 0
A60: =IF(Draw!E59=0,"",Draw!E59) ->  | B60: =IF(A60="","",B$3) ->  | H60: =IF(B60="","",IF(K60=5,(SUM(C60:G60)-MAX(C60:G60)-MIN(C60:G60))/3,IF(K60=4,(SUM(C60:G60)-MAX(C60:G60))/3,SUM(C60:G60)/3))*B60/7.6) ->  | K60: 0
K61: 0
A62: =IF(Draw!E61=0,"",Draw!E61) ->  | B62: =IF(A62="","",B$3) ->  | H62: =IF(B62="","",IF(K62=5,(SUM(C62:G62)-MAX(C62:G62)-MIN(C62:G62))/3,IF(K62=4,(SUM(C62:G62)-MAX(C62:G62))/3,SUM(C62:G62)/3))*B62/7.6) ->  | K62: 0
K63: 0
A64: =IF(Draw!E63=0,"",Draw!E63) ->  | B64: =IF(A64="","",B$3) ->  | H64: =IF(B64="","",IF(K64=5,(SUM(C64:G64)-MAX(C64:G64)-MIN(C64:G64))/3,IF(K64=4,(SUM(C64:G64)-MAX(C64:G64))/3,SUM(C64:G64)/3))*B64/7.6) ->  | K64: 0
K65: 0
A66: =IF(Draw!E65=0,"",Draw!E65) ->  | B66: =IF(A66="","",B$3) ->  | H66: =IF(B66="","",IF(K66=5,(SUM(C66:G66)-MAX(C66:G66)-MIN(C66:G66))/3,IF(K66=4,(SUM(C66:G66)-MAX(C66:G66))/3,SUM(C66:G66)/3))*B66/7.6) ->  | K66: 0
K67: 0
A68: =IF(Draw!E67=0,"",Draw!E67) ->  | B68: =IF(A68="","",B$3) ->  | H68: =IF(B68="","",IF(K68=5,(SUM(C68:G68)-MAX(C68:G68)-MIN(C68:G68))/3,IF(K68=4,(SUM(C68:G68)-MAX(C68:G68))/3,SUM(C68:G68)/3))*B68/7.6) ->  | K68: =COUNT(C68:G68) -> 0
K69: 0
A70: =IF(Draw!E69=0,"",Draw!E69) ->  | B70: =IF(A70="","",B$3) ->  | H70: =IF(B70="","",IF(K70=5,(SUM(C70:G70)-MAX(C70:G70)-MIN(C70:G70))/3,IF(K70=4,(SUM(C70:G70)-MAX(C70:G70))/3,SUM(C70:G70)/3))*B70/7.6) ->  | K70: 0
K71: 0
A72: =IF(Draw!E71=0,"",Draw!E71) ->  | B72: =IF(A72="","",B$3) ->  | H72: =IF(B72="","",IF(K72=5,(SUM(C72:G72)-MAX(C72:G72)-MIN(C72:G72))/3,IF(K72=4,(SUM(C72:G72)-MAX(C72:G72))/3,SUM(C72:G72)/3))*B72/7.6) ->  | K72: 0
K73: 0
A74: =IF(Draw!E73=0,"",Draw!E73) ->  | B74: =IF(A74="","",B$3) ->  | H74: =IF(B74="","",IF(K74=5,(SUM(C74:G74)-MAX(C74:G74)-MIN(C74:G74))/3,IF(K74=4,(SUM(C74:G74)-MAX(C74:G74))/3,SUM(C74:G74)/3))*B74/7.6) ->  | K74: 0
K75: 0
A76: =IF(Draw!E75=0,"",Draw!E75) ->  | B76: =IF(A76="","",B$3) ->  | H76: =IF(B76="","",IF(K76=5,(SUM(C76:G76)-MAX(C76:G76)-MIN(C76:G76))/3,IF(K76=4,(SUM(C76:G76)-MAX(C76:G76))/3,SUM(C76:G76)/3))*B76/7.6) ->  | K76: 0
K77: 0
A78: =IF(Draw!E77=0,"",Draw!E77) ->  | B78: =IF(A78="","",B$3) ->  | H78: =IF(B78="","",IF(K78=5,(SUM(C78:G78)-MAX(C78:G78)-MIN(C78:G78))/3,IF(K78=4,(SUM(C78:G78)-MAX(C78:G78))/3,SUM(C78:G78)/3))*B78/7.6) ->  | K78: 0
K79: 0
A80: =IF(Draw!E79=0,"",Draw!E79) ->  | B80: =IF(A80="","",B$3) ->  | H80: =IF(B80="","",IF(K80=5,(SUM(C80:G80)-MAX(C80:G80)-MIN(C80:G80))/3,IF(K80=4,(SUM(C80:G80)-MAX(C80:G80))/3,SUM(C80:G80)/3))*B80/7.6) ->  | K80: 0
K81: 0
A82: =IF(Draw!E81=0,"",Draw!E81) ->  | B82: =IF(A82="","",B$3) ->  | H82: =IF(B82="","",IF(K82=5,(SUM(C82:G82)-MAX(C82:G82)-MIN(C82:G82))/3,IF(K82=4,(SUM(C82:G82)-MAX(C82:G82))/3,SUM(C82:G82)/3))*B82/7.6) ->  | K82: 0
K83: 0
A84: =IF(Draw!E83=0,"",Draw!E83) ->  | B84: =IF(A84="","",B$3) ->  | H84: =IF(B84="","",IF(K84=5,(SUM(C84:G84)-MAX(C84:G84)-MIN(C84:G84))/3,IF(K84=4,(SUM(C84:G84)-MAX(C84:G84))/3,SUM(C84:G84)/3))*B84/7.6) ->  | K84: 0
K85: 0
A86: =IF(Draw!E85=0,"",Draw!E85) ->  | B86: =IF(A86="","",B$3) ->  | H86: =IF(B86="","",IF(K86=5,(SUM(C86:G86)-MAX(C86:G86)-MIN(C86:G86))/3,IF(K86=4,(SUM(C86:G86)-MAX(C86:G86))/3,SUM(C86:G86)/3))*B86/7.6) ->  | K86: 0
K87: 0
A88: =IF(Draw!E87=0,"",Draw!E87) ->  | B88: =IF(A88="","",B$3) ->  | H88: =IF(B88="","",IF(K88=5,(SUM(C88:G88)-MAX(C88:G88)-MIN(C88:G88))/3,IF(K88=4,(SUM(C88:G88)-MAX(C88:G88))/3,SUM(C88:G88)/3))*B88/7.6) ->  | K88: 0
K89: 0
A90: =IF(Draw!E89=0,"",Draw!E89) ->  | B90: =IF(A90="","",B$3) ->  | H90: =IF(B90="","",IF(K90=5,(SUM(C90:G90)-MAX(C90:G90)-MIN(C90:G90))/3,IF(K90=4,(SUM(C90:G90)-MAX(C90:G90))/3,SUM(C90:G90)/3))*B90/7.6) ->  | K90: 0
K91: 0
A92: =IF(Draw!E91=0,"",Draw!E91) ->  | B92: =IF(A92="","",B$3) ->  | H92: =IF(B92="","",IF(K92=5,(SUM(C92:G92)-MAX(C92:G92)-MIN(C92:G92))/3,IF(K92=4,(SUM(C92:G92)-MAX(C92:G92))/3,SUM(C92:G92)/3))*B92/7.6) ->  | K92: 0
K93: 0
A94: =IF(Draw!E93=0,"",Draw!E93) ->  | B94: =IF(A94="","",B$3) ->  | H94: =IF(B94="","",IF(K94=5,(SUM(C94:G94)-MAX(C94:G94)-MIN(C94:G94))/3,IF(K94=4,(SUM(C94:G94)-MAX(C94:G94))/3,SUM(C94:G94)/3))*B94/7.6) ->  | K94: 0
K95: 0
A96: =IF(Draw!E95=0,"",Draw!E95) ->  | B96: =IF(A96="","",B$3) ->  | H96: =IF(B96="","",IF(K96=5,(SUM(C96:G96)-MAX(C96:G96)-MIN(C96:G96))/3,IF(K96=4,(SUM(C96:G96)-MAX(C96:G96))/3,SUM(C96:G96)/3))*B96/7.6) ->  | K96: 0
K97: 0
A98: =IF(Draw!E97=0,"",Draw!E97) ->  | B98: =IF(A98="","",B$3) ->  | H98: =IF(B98="","",IF(K98=5,(SUM(C98:G98)-MAX(C98:G98)-MIN(C98:G98))/3,IF(K98=4,(SUM(C98:G98)-MAX(C98:G98))/3,SUM(C98:G98)/3))*B98/7.6) ->  | K98: 0
K99: 0
A100: =IF(Draw!E99=0,"",Draw!E99) ->  | B100: =IF(A100="","",B$3) ->  | H100: =IF(B100="","",IF(K100=5,(SUM(C100:G100)-MAX(C100:G100)-MIN(C100:G100))/3,IF(K100=4,(SUM(C100:G100)-MAX(C100:G100))/3,SUM(C100:G100)/3))*B100/7.6) ->  | K100: 0
K101: 0
A102: =IF(Draw!E101=0,"",Draw!E101) ->  | B102: =IF(A102="","",B$3) ->  | H102: =IF(B102="","",IF(K102=5,(SUM(C102:G102)-MAX(C102:G102)-MIN(C102:G102))/3,IF(K102=4,(SUM(C102:G102)-MAX(C102:G102))/3,SUM(C102:G102)/3))*B102/7.6) ->  | K102: 0
K103: 0
A104: =IF(Draw!E103=0,"",Draw!E103) ->  | B104: =IF(A104="","",B$3) ->  | H104: =IF(B104="","",IF(K104=5,(SUM(C104:G104)-MAX(C104:G104)-MIN(C104:G104))/3,IF(K104=4,(SUM(C104:G104)-MAX(C104:G104))/3,SUM(C104:G104)/3))*B104/7.6) ->  | K104: 0
K105: 0
A106: =IF(Draw!E105=0,"",Draw!E105) ->  | B106: =IF(A106="","",B$3) ->  | H106: =IF(B106="","",IF(K106=5,(SUM(C106:G106)-MAX(C106:G106)-MIN(C106:G106))/3,IF(K106=4,(SUM(C106:G106)-MAX(C106:G106))/3,SUM(C106:G106)/3))*B106/7.6) ->  | K106: 0
K107: 0
A108: =IF(Draw!E107=0,"",Draw!E107) ->  | B108: =IF(A108="","",B$3) ->  | H108: =IF(B108="","",IF(K108=5,(SUM(C108:G108)-MAX(C108:G108)-MIN(C108:G108))/3,IF(K108=4,(SUM(C108:G108)-MAX(C108:G108))/3,SUM(C108:G108)/3))*B108/7.6) ->  | K108: 0
K109: 0
A110: =IF(Draw!E109=0,"",Draw!E109) ->  | B110: =IF(A110="","",B$3) ->  | H110: =IF(B110="","",IF(K110=5,(SUM(C110:G110)-MAX(C110:G110)-MIN(C110:G110))/3,IF(K110=4,(SUM(C110:G110)-MAX(C110:G110))/3,SUM(C110:G110)/3))*B110/7.6) ->  | K110: 0
K111: 0
A112: =IF(Draw!E111=0,"",Draw!E111) ->  | B112: =IF(A112="","",B$3) ->  | H112: =IF(B112="","",IF(K112=5,(SUM(C112:G112)-MAX(C112:G112)-MIN(C112:G112))/3,IF(K112=4,(SUM(C112:G112)-MAX(C112:G112))/3,SUM(C112:G112)/3))*B112/7.6) ->  | K112: 0
K113: 0
A114: =IF(Draw!E113=0,"",Draw!E113) ->  | B114: =IF(A114="","",B$3) ->  | H114: =IF(B114="","",IF(K114=5,(SUM(C114:G114)-MAX(C114:G114)-MIN(C114:G114))/3,IF(K114=4,(SUM(C114:G114)-MAX(C114:G114))/3,SUM(C114:G114)/3))*B114/7.6) ->  | K114: 0
K115: 0
A116: =IF(Draw!E115=0,"",Draw!E115) ->  | B116: =IF(A116="","",B$3) ->  | H116: =IF(B116="","",IF(K116=5,(SUM(C116:G116)-MAX(C116:G116)-MIN(C116:G116))/3,IF(K116=4,(SUM(C116:G116)-MAX(C116:G116))/3,SUM(C116:G116)/3))*B116/7.6) ->  | K116: 0
K117: 0
A118: =IF(Draw!E117=0,"",Draw!E117) ->  | B118: =IF(A118="","",B$3) ->  | H118: =IF(B118="","",IF(K118=5,(SUM(C118:G118)-MAX(C118:G118)-MIN(C118:G118))/3,IF(K118=4,(SUM(C118:G118)-MAX(C118:G118))/3,SUM(C118:G118)/3))*B118/7.6) ->  | K118: 0
K119: 0
A120: =IF(Draw!E119=0,"",Draw!E119) ->  | B120: =IF(A120="","",B$3) ->  | H120: =IF(B120="","",IF(K120=5,(SUM(C120:G120)-MAX(C120:G120)-MIN(C120:G120))/3,IF(K120=4,(SUM(C120:G120)-MAX(C120:G120))/3,SUM(C120:G120)/3))*B120/7.6) ->  | K120: 0
K121: 0
A122: =IF(Draw!E121=0,"",Draw!E121) ->  | B122: =IF(A122="","",B$3) ->  | H122: =IF(B122="","",IF(K122=5,(SUM(C122:G122)-MAX(C122:G122)-MIN(C122:G122))/3,IF(K122=4,(SUM(C122:G122)-MAX(C122:G122))/3,SUM(C122:G122)/3))*B122/7.6) ->  | K122: 0
K123: 0
A124: =IF(Draw!E123=0,"",Draw!E123) ->  | B124: =IF(A124="","",B$3) ->  | H124: =IF(B124="","",IF(K124=5,(SUM(C124:G124)-MAX(C124:G124)-MIN(C124:G124))/3,IF(K124=4,(SUM(C124:G124)-MAX(C124:G124))/3,SUM(C124:G124)/3))*B124/7.6) ->  | K124: 0
K125: 0
A126: =IF(Draw!E125=0,"",Draw!E125) ->  | B126: =IF(A126="","",B$3) ->  | H126: =IF(B126="","",IF(K126=5,(SUM(C126:G126)-MAX(C126:G126)-MIN(C126:G126))/3,IF(K126=4,(SUM(C126:G126)-MAX(C126:G126))/3,SUM(C126:G126)/3))*B126/7.6) ->  | K126: 0
K127: 0
A128: =IF(Draw!E127=0,"",Draw!E127) ->  | B128: =IF(A128="","",B$3) ->  | H128: =IF(B128="","",IF(K128=5,(SUM(C128:G128)-MAX(C128:G128)-MIN(C128:G128))/3,IF(K128=4,(SUM(C128:G128)-MAX(C128:G128))/3,SUM(C128:G128)/3))*B128/7.6) ->  | K128: 0
K129: 0
A130: =IF(Draw!E129=0,"",Draw!E129) ->  | B130: =IF(A130="","",B$3) ->  | H130: =IF(B130="","",IF(K130=5,(SUM(C130:G130)-MAX(C130:G130)-MIN(C130:G130))/3,IF(K130=4,(SUM(C130:G130)-MAX(C130:G130))/3,SUM(C130:G130)/3))*B130/7.6) ->  | K130: 0
K131: 0
A132: =IF(Draw!E131=0,"",Draw!E131) ->  | B132: =IF(A132="","",B$3) ->  | H132: =IF(B132="","",IF(K132=5,(SUM(C132:G132)-MAX(C132:G132)-MIN(C132:G132))/3,IF(K132=4,(SUM(C132:G132)-MAX(C132:G132))/3,SUM(C132:G132)/3))*B132/7.6) ->  | K132: =COUNT(C132:G132) -> 0
K133: 0
A134: =IF(Draw!E133=0,"",Draw!E133) ->  | B134: =IF(A134="","",B$3) ->  | H134: =IF(B134="","",IF(K134=5,(SUM(C134:G134)-MAX(C134:G134)-MIN(C134:G134))/3,IF(K134=4,(SUM(C134:G134)-MAX(C134:G134))/3,SUM(C134:G134)/3))*B134/7.6) ->  | K134: 0
K135: 0
A136: =IF(Draw!E135=0,"",Draw!E135) ->  | B136: =IF(A136="","",B$3) ->  | H136: =IF(B136="","",IF(K136=5,(SUM(C136:G136)-MAX(C136:G136)-MIN(C136:G136))/3,IF(K136=4,(SUM(C136:G136)-MAX(C136:G136))/3,SUM(C136:G136)/3))*B136/7.6) ->  | K136: 0
K137: 0
A138: =IF(Draw!E137=0,"",Draw!E137) ->  | B138: =IF(A138="","",B$3) ->  | H138: =IF(B138="","",IF(K138=5,(SUM(C138:G138)-MAX(C138:G138)-MIN(C138:G138))/3,IF(K138=4,(SUM(C138:G138)-MAX(C138:G138))/3,SUM(C138:G138)/3))*B138/7.6) ->  | K138: 0
K139: 0
A140: =IF(Draw!E139=0,"",Draw!E139) ->  | B140: =IF(A140="","",B$3) ->  | H140: =IF(B140="","",IF(K140=5,(SUM(C140:G140)-MAX(C140:G140)-MIN(C140:G140))/3,IF(K140=4,(SUM(C140:G140)-MAX(C140:G140))/3,SUM(C140:G140)/3))*B140/7.6) ->  | K140: 0
K141: 0
A142: =IF(Draw!E141=0,"",Draw!E141) ->  | B142: =IF(A142="","",B$3) ->  | H142: =IF(B142="","",IF(K142=5,(SUM(C142:G142)-MAX(C142:G142)-MIN(C142:G142))/3,IF(K142=4,(SUM(C142:G142)-MAX(C142:G142))/3,SUM(C142:G142)/3))*B142/7.6) ->  | K142: 0
K143: 0
A144: =IF(Draw!E143=0,"",Draw!E143) ->  | B144: =IF(A144="","",B$3) ->  | H144: =IF(B144="","",IF(K144=5,(SUM(C144:G144)-MAX(C144:G144)-MIN(C144:G144))/3,IF(K144=4,(SUM(C144:G144)-MAX(C144:G144))/3,SUM(C144:G144)/3))*B144/7.6) ->  | K144: 0
K145: 0
A146: =IF(Draw!E145=0,"",Draw!E145) ->  | B146: =IF(A146="","",B$3) ->  | H146: =IF(B146="","",IF(K146=5,(SUM(C146:G146)-MAX(C146:G146)-MIN(C146:G146))/3,IF(K146=4,(SUM(C146:G146)-MAX(C146:G146))/3,SUM(C146:G146)/3))*B146/7.6) ->  | K146: 0
K147: 0
A148: =IF(Draw!E147=0,"",Draw!E147) ->  | B148: =IF(A148="","",B$3) ->  | H148: =IF(B148="","",IF(K148=5,(SUM(C148:G148)-MAX(C148:G148)-MIN(C148:G148))/3,IF(K148=4,(SUM(C148:G148)-MAX(C148:G148))/3,SUM(C148:G148)/3))*B148/7.6) ->  | K148: 0
K149: 0
A150: =IF(Draw!E149=0,"",Draw!E149) ->  | B150: =IF(A150="","",B$3) ->  | H150: =IF(B150="","",IF(K150=5,(SUM(C150:G150)-MAX(C150:G150)-MIN(C150:G150))/3,IF(K150=4,(SUM(C150:G150)-MAX(C150:G150))/3,SUM(C150:G150)/3))*B150/7.6) ->  | K150: 0

Sheet Fig 2 Barracuda
B1: Figure #2: | C1: 301 Barracuda
A2: # | B2: Degree of Difficulty | C2: Judge 1 | D2: Judge 2 | E2: Judge 3 | F2: Judge 4 | G2: Judge 5 | H2: Score | I2: Penalty
A3: 1 | B3: 2 | C3: 60 | D3: 61 | E3: 60 | H3: =IF(B3="","",IF(K3=5,(SUM(C3:G3)-MAX(C3:G3)-MIN(C3:G3))/3,IF(K3=4,(SUM(C3:G3)-MAX(C3:G3))/3,SUM(C3:G3)/3))*B3/7.6) -> 15.87719298 | K3: =COUNT(C3:G3) -> 3
A4: 2 | B4: =IF(A4="","",B$3) -> 2 | C4: 50 | D4: 57 | E4: 55 | H4: =IF(B4="","",IF(K4=5,(SUM(C4:G4)-MAX(C4:G4)-MIN(C4:G4))/3,IF(K4=4,(SUM(C4:G4)-MAX(C4:G4))/3,SUM(C4:G4)/3))*B4/7.6) -> 14.21052632 | K4: =COUNT(C4:G4) -> 3
A5: 3 | B5: 2 | C5: 61 | D5: 58 | E5: 62 | H5: 15.87719298 | K5: 3
A6: 4 | B6: =IF(A6="","",B$3) -> 2 | C6: 57 | D6: 60 | E6: 54 | H6: =IF(B6="","",IF(K6=5,(SUM(C6:G6)-MAX(C6:G6)-MIN(C6:G6))/3,IF(K6=4,(SUM(C6:G6)-MAX(C6:G6))/3,SUM(C6:G6)/3))*B6/7.6) -> 15 | K6: 3
A7: 5 | B7: 2 | C7: 55 | D7: 56 | E7: 56 | H7: 14.64912281 | K7: 3
A8: 6 | B8: =IF(A8="","",B$3) -> 2 | C8: 53 | D8: 54 | E8: 54 | H8: =IF(B8="","",IF(K8=5,(SUM(C8:G8)-MAX(C8:G8)-MIN(C8:G8))/3,IF(K8=4,(SUM(C8:G8)-MAX(C8:G8))/3,SUM(C8:G8)/3))*B8/7.6) -> 14.12280702 | K8: 3
A9: 7 | B9: 2 | C9: 50 | D9: 53 | E9: 53 | H9: 13.68421053 | K9: 3
A10: 8 | B10: =IF(A10="","",B$3) -> 2 | C10: 56 | D10: 55 | E10: 55 | H10: =IF(B10="","",IF(K10=5,(SUM(C10:G10)-MAX(C10:G10)-MIN(C10:G10))/3,IF(K10=4,(SUM(C10:G10)-MAX(C10:G10))/3,SUM(C10:G10)/3))*B10/7.6) -> 14.56140351 | K10: 3
A11: 9 | B11: 2 | C11: 50 | D11: 52 | E11: 51 | H11: 13.42105263 | K11: 3
A12: 10 | B12: =IF(A12="","",B$3) -> 2 | C12: 50 | D12: 50 | E12: 49 | H12: =IF(B12="","",IF(K12=5,(SUM(C12:G12)-MAX(C12:G12)-MIN(C12:G12))/3,IF(K12=4,(SUM(C12:G12)-MAX(C12:G12))/3,SUM(C12:G12)/3))*B12/7.6) -> 13.07017544 | K12: 3
A13: 11 | B13: 2 | C13: 54 | D13: 57 | E13: 53 | H13: 14.38596491 | K13: 3
A14: 12 | B14: =IF(A14="","",B$3) -> 2 | C14: 57 | D14: 58 | E14: 57 | H14: =IF(B14="","",IF(K14=5,(SUM(C14:G14)-MAX(C14:G14)-MIN(C14:G14))/3,IF(K14=4,(SUM(C14:G14)-MAX(C14:G14))/3,SUM(C14:G14)/3))*B14/7.6) -> 15.0877193 | K14: 3
A15: 13 | B15: 2 | C15: 56 | D15: 57 | E15: 59 | H15: 15.0877193 | K15: 3
A16: 14 | B16: =IF(A16="","",B$3) -> 2 | C16: 57 | D16: 60 | E16: 58 | H16: =IF(B16="","",IF(K16=5,(SUM(C16:G16)-MAX(C16:G16)-MIN(C16:G16))/3,IF(K16=4,(SUM(C16:G16)-MAX(C16:G16))/3,SUM(C16:G16)/3))*B16/7.6) -> 15.35087719 | K16: 3
A17: 15 | B17: 2 | C17: 53 | D17: 54 | E17: 52 | H17: 13.94736842 | K17: 3
A18: 16 | B18: =IF(A18="","",B$3) -> 2 | H18: =IF(B18="","",IF(K18=5,(SUM(C18:G18)-MAX(C18:G18)-MIN(C18:G18))/3,IF(K18=4,(SUM(C18:G18)-MAX(C18:G18))/3,SUM(C18:G18)/3))*B18/7.6) -> 0 | K18: 0
A19: 17 | B19: 2 | C19: 58 | D19: 58 | E19: 60 | H19: 15.43859649 | K19: 3
A20: 18 | B20: =IF(A20="","",B$3) -> 2 | C20: 60 | D20: 56 | E20: 57 | H20: =IF(B20="","",IF(K20=5,(SUM(C20:G20)-MAX(C20:G20)-MIN(C20:G20))/3,IF(K20=4,(SUM(C20:G20)-MAX(C20:G20))/3,SUM(C20:G20)/3))*B20/7.6) -> 15.1754386 | K20: 3
A21: 19 | B21: 2 | C21: 56 | D21: 57 | E21: 56 | H21: 14.8245614 | K21: 3
A22: 20 | B22: =IF(A22="","",B$3) -> 2 | C22: 55 | D22: 54 | E22: 56 | H22: =IF(B22="","",IF(K22=5,(SUM(C22:G22)-MAX(C22:G22)-MIN(C22:G22))/3,IF(K22=4,(SUM(C22:G22)-MAX(C22:G22))/3,SUM(C22:G22)/3))*B22/7.6) -> 14.47368421 | K22: 3
A23: 21 | B23: 2 | C23: 57 | D23: 60 | E23: 58 | H23: 15.35087719 | K23: 3
A24: 22 | B24: =IF(A24="","",B$3) -> 2 | C24: 54 | D24: 55 | E24: 50 | H24: =IF(B24="","",IF(K24=5,(SUM(C24:G24)-MAX(C24:G24)-MIN(C24:G24))/3,IF(K24=4,(SUM(C24:G24)-MAX(C24:G24))/3,SUM(C24:G24)/3))*B24/7.6) -> 13.94736842 | K24: 3
A25: 23 | B25: 2 | C25: 65 | D25: 62 | E25: 62 | H25: 16.57894737 | K25: 3
A26: 24 | B26: =IF(A26="","",B$3) -> 2 | C26: 50 | D26: 53 | E26: 50 | H26: =IF(B26="","",IF(K26=5,(SUM(C26:G26)-MAX(C26:G26)-MIN(C26:G26))/3,IF(K26=4,(SUM(C26:G26)-MAX(C26:G26))/3,SUM(C26:G26)/3))*B26/7.6) -> 13.42105263 | K26: 3
A27: 25 | B27: 2 | C27: 47 | D27: 48 | E27: 48 | H27: 12.54385965 | K27: 3
A28: 26 | B28: =IF(A28="","",B$3) -> 2 | C28: 62 | D28: 61 | E28: 59 | H28: =IF(B28="","",IF(K28=5,(SUM(C28:G28)-MAX(C28:G28)-MIN(C28:G28))/3,IF(K28=4,(SUM(C28:G28)-MAX(C28:G28))/3,SUM(C28:G28)/3))*B28/7.6) -> 15.96491228 | K28: 3
A29: 27 | B29: 2 | C29: 63 | D29: 62 | E29: 58 | H29: 16.05263158 | K29: 3
A30: 28 | B30: =IF(A30="","",B$3) -> 2 | C30: 60 | D30: 63 | E30: 61 | H30: =IF(B30="","",IF(K30=5,(SUM(C30:G30)-MAX(C30:G30)-MIN(C30:G30))/3,IF(K30=4,(SUM(C30:G30)-MAX(C30:G30))/3,SUM(C30:G30)/3))*B30/7.6) -> 16.14035088 | K30: 3
A31: 29 | B31: 2 | C31: 70 | D31: 68 | E31: 65 | H31: 17.80701754 | K31: 3
A32: 30 | B32: =IF(A32="","",B$3) -> 2 | C32: 50 | D32: 56 | E32: 56 | H32: =IF(B32="","",IF(K32=5,(SUM(C32:G32)-MAX(C32:G32)-MIN(C32:G32))/3,IF(K32=4,(SUM(C32:G32)-MAX(C32:G32))/3,SUM(C32:G32)/3))*B32/7.6) -> 14.21052632 | K32: 3
A33: 31 | B33: 2 | C33: 49 | D33: 57 | E33: 54 | H33: 14.03508772 | K33: 3
A34: 32 | B34: 2 | C34: 63 | D34: 65 | E34: 61 | H34: =IF(B34="","",IF(K34=5,(SUM(C34:G34)-MAX(C34:G34)-MIN(C34:G34))/3,IF(K34=4,(SUM(C34:G34)-MAX(C34:G34))/3,SUM(C34:G34)/3))*B34/7.6) -> 16.57894737 | K34: 3
A35: 33 | B35: 2 | C35: 50 | D35: 53 | E35: 53 | H35: 13.68421053 | K35: 3
A36: 34 | B36: =IF(A36="","",B$3) -> 2 | C36: 52 | D36: 52 | E36: 51 | H36: =IF(B36="","",IF(K36=5,(SUM(C36:G36)-MAX(C36:G36)-MIN(C36:G36))/3,IF(K36=4,(SUM(C36:G36)-MAX(C36:G36))/3,SUM(C36:G36)/3))*B36/7.6) -> 13.59649123 | K36: 3
A37: 35 | B37: 2 | C37: 62 | D37: 57 | E37: 62 | H37: 15.87719298 | K37: 3
A38: 36 | B38: =IF(A38="","",B$3) -> 2 | C38: 52 | D38: 52 | E38: 55 | H38: =IF(B38="","",IF(K38=5,(SUM(C38:G38)-MAX(C38:G38)-MIN(C38:G38))/3,IF(K38=4,(SUM(C38:G38)-MAX(C38:G38))/3,SUM(C38:G38)/3))*B38/7.6) -> 13.94736842 | K38: 3
A39: 37 | B39: 2 | C39: 54 | D39: 54 | E39: 54 | H39: 14.21052632 | K39: 3
A40: 38 | B40: =IF(A40="","",B$3) -> 2 | C40: 53 | D40: 53 | E40: 53 | H40: =IF(B40="","",IF(K40=5,(SUM(C40:G40)-MAX(C40:G40)-MIN(C40:G40))/3,IF(K40=4,(SUM(C40:G40)-MAX(C40:G40))/3,SUM(C40:G40)/3))*B40/7.6) -> 13.94736842 | K40: 3
A41: 39 | B41: 2 | C41: 50 | D41: 57 | E41: 55 | H41: 14.21052632 | K41: 3
A42: 40 | B42: =IF(A42="","",B$3) -> 2 | C42: 60 | D42: 60 | E42: 58 | H42: =IF(B42="","",IF(K42=5,(SUM(C42:G42)-MAX(C42:G42)-MIN(C42:G42))/3,IF(K42=4,(SUM(C42:G42)-MAX(C42:G42))/3,SUM(C42:G42)/3))*B42/7.6) -> 15.61403509 | K42: 3
A43: 41 | B43: 2 | C43: 63 | D43: 61 | E43: 60 | H43: 16.14035088 | K43: 3
A44: 42 | B44: =IF(A44="","",B$3) -> 2 | C44: 59 | D44: 58 | E44: 60 | H44: =IF(B44="","",IF(K44=5,(SUM(C44:G44)-MAX(C44:G44)-MIN(C44:G44))/3,IF(K44=4,(SUM(C44:G44)-MAX(C44:G44))/3,SUM(C44:G44)/3))*B44/7.6) -> 15.52631579 | K44: 3
A45: 43 | B45: 2 | C45: 60 | D45: 56 | E45: 55 | H45: 15 | K45: 3
A46: 44 | B46: =IF(A46="","",B$3) -> 2 | C46: 60 | D46: 62 | E46: 57 | H46: =IF(B46="","",IF(K46=5,(SUM(C46:G46)-MAX(C46:G46)-MIN(C46:G46))/3,IF(K46=4,(SUM(C46:G46)-MAX(C46:G46))/3,SUM(C46:G46)/3))*B46/7.6) -> 15.70175439 | K46: 3
A47: 45 | B47: 2 | C47: 54 | D47: 54 | E47: 51 | H47: 13.94736842 | K47: 3
A48: 46 | B48: =IF(A48="","",B$3) -> 2 | C48: 52 | D48: 50 | E48: 50 | H48: =IF(B48="","",IF(K48=5,(SUM(C48:G48)-MAX(C48:G48)-MIN(C48:G48))/3,IF(K48=4,(SUM(C48:G48)-MAX(C48:G48))/3,SUM(C48:G48)/3))*B48/7.6) -> 13.33333333 | K48: 3
A49: 47 | B49: 2 | C49: 50 | D49: 53 | E49: 56 | H49: 13.94736842 | K49: 3
A50: 48 | B50: =IF(A50="","",B$3) -> 2 | C50: 70 | D50: 67 | E50: 62 | H50: =IF(B50="","",IF(K50=5,(SUM(C50:G50)-MAX(C50:G50)-MIN(C50:G50))/3,IF(K50=4,(SUM(C50:G50)-MAX(C50:G50))/3,SUM(C50:G50)/3))*B50/7.6) -> 17.45614035 | K50: 3
A51: 49 | B51: 2 | C51: 48 | D51: 52 | E51: 50 | H51: 13.15789474 | K51: 3
A52: 50 | B52: =IF(A52="","",B$3) -> 2 | C52: 57 | D52: 56 | E52: 59 | H52: =IF(B52="","",IF(K52=5,(SUM(C52:G52)-MAX(C52:G52)-MIN(C52:G52))/3,IF(K52=4,(SUM(C52:G52)-MAX(C52:G52))/3,SUM(C52:G52)/3))*B52/7.6) -> 15.0877193 | K52: 3
A53: 51 | B53: 2 | C53: 56 | D53: 60 | E53: 58 | H53: 15.26315789 | K53: 3
A54: 52 | B54: =IF(A54="","",B$3) -> 2 | C54: 47 | D54: 54 | E54: 49 | H54: =IF(B54="","",IF(K54=5,(SUM(C54:G54)-MAX(C54:G54)-MIN(C54:G54))/3,IF(K54=4,(SUM(C54:G54)-MAX(C54:G54))/3,SUM(C54:G54)/3))*B54/7.6) -> 13.15789474 | K54: 3
A55: 53 | B55: 2 | C55: 58 | D55: 58 | E55: 59 | H55: 15.35087719 | K55: 3
A56: 54 | B56: =IF(A56="","",B$3) -> 2 | C56: 68 | D56: 64 | E56: 61 | H56: =IF(B56="","",IF(K56=5,(SUM(C56:G56)-MAX(C56:G56)-MIN(C56:G56))/3,IF(K56=4,(SUM(C56:G56)-MAX(C56:G56))/3,SUM(C56:G56)/3))*B56/7.6) -> 16.92982456 | K56: 3
A57: 55 | B57: 2 | C57: 44 | D57: 50 | E57: 47 | H57: 12.36842105 | K57: 3
B58: =IF(A58="","",B$3) ->  | H58: =IF(B58="","",IF(K58=5,(SUM(C58:G58)-MAX(C58:G58)-MIN(C58:G58))/3,IF(K58=4,(SUM(C58:G58)-MAX(C58:G58))/3,SUM(C58:G58)/3))*B58/7.6) ->  | K58: 0
A59: =IF(Draw!E58=0,"",Draw!E58) ->  | K59: 0
A60: =IF(Draw!E59=0,"",Draw!E59) ->  | B60: =IF(A60="","",B$3) ->  | H60: =IF(B60="","",IF(K60=5,(SUM(C60:G60)-MAX(C60:G60)-MIN(C60:G60))/3,IF(K60=4,(SUM(C60:G60)-MAX(C60:G60))/3,SUM(C60:G60)/3))*B60/7.6) ->  | K60: 0
A61: =IF(Draw!E60=0,"",Draw!E60) ->  | K61: 0
A62: =IF(Draw!E61=0,"",Draw!E61) ->  | B62: =IF(A62="","",B$3) ->  | H62: =IF(B62="","",IF(K62=5,(SUM(C62:G62)-MAX(C62:G62)-MIN(C62:G62))/3,IF(K62=4,(SUM(C62:G62)-MAX(C62:G62))/3,SUM(C62:G62)/3))*B62/7.6) ->  | K62: 0
A63: =IF(Draw!E62=0,"",Draw!E62) ->  | K63: 0
A64: =IF(Draw!E63=0,"",Draw!E63) ->  | B64: =IF(A64="","",B$3) ->  | H64: =IF(B64="","",IF(K64=5,(SUM(C64:G64)-MAX(C64:G64)-MIN(C64:G64))/3,IF(K64=4,(SUM(C64:G64)-MAX(C64:G64))/3,SUM(C64:G64)/3))*B64/7.6) ->  | K64: 0
A65: =IF(Draw!E64=0,"",Draw!E64) ->  | K65: 0
A66: =IF(Draw!E65=0,"",Draw!E65) ->  | B66: =IF(A66="","",B$3) ->  | H66: =IF(B66="","",IF(K66=5,(SUM(C66:G66)-MAX(C66:G66)-MIN(C66:G66))/3,IF(K66=4,(SUM(C66:G66)-MAX(C66:G66))/3,SUM(C66:G66)/3))*B66/7.6) ->  | K66: 0
A67: =IF(Draw!E66=0,"",Draw!E66) ->  | K67: 0
A68: =IF(Draw!E67=0,"",Draw!E67) ->  | B68: =IF(A68="","",B$3) ->  | H68: =IF(B68="","",IF(K68=5,(SUM(C68:G68)-MAX(C68:G68)-MIN(C68:G68))/3,IF(K68=4,(SUM(C68:G68)-MAX(C68:G68))/3,SUM(C68:G68)/3))*B68/7.6) ->  | K68: =COUNT(C68:G68) -> 0
A69: =IF(Draw!E68=0,"",Draw!E68) ->  | K69: 0
A70: =IF(Draw!E69=0,"",Draw!E69) ->  | B70: =IF(A70="","",B$3) ->  | H70: =IF(B70="","",IF(K70=5,(SUM(C70:G70)-MAX(C70:G70)-MIN(C70:G70))/3,IF(K70=4,(SUM(C70:G70)-MAX(C70:G70))/3,SUM(C70:G70)/3))*B70/7.6) ->  | K70: 0
A71: =IF(Draw!E70=0,"",Draw!E70) ->  | K71: 0
A72: =IF(Draw!E71=0,"",Draw!E71) ->  | B72: =IF(A72="","",B$3) ->  | H72: =IF(B72="","",IF(K72=5,(SUM(C72:G72)-MAX(C72:G72)-MIN(C72:G72))/3,IF(K72=4,(SUM(C72:G72)-MAX(C72:G72))/3,SUM(C72:G72)/3))*B72/7.6) ->  | K72: 0
A73: =IF(Draw!E72=0,"",Draw!E72) ->  | K73: 0
A74: =IF(Draw!E73=0,"",Draw!E73) ->  | B74: =IF(A74="","",B$3) ->  | H74: =IF(B74="","",IF(K74=5,(SUM(C74:G74)-MAX(C74:G74)-MIN(C74:G74))/3,IF(K74=4,(SUM(C74:G74)-MAX(C74:G74))/3,SUM(C74:G74)/3))*B74/7.6) ->  | K74: 0
A75: =IF(Draw!E74=0,"",Draw!E74) ->  | K75: 0
A76: =IF(Draw!E75=0,"",Draw!E75) ->  | B76: =IF(A76="","",B$3) ->  | H76: =IF(B76="","",IF(K76=5,(SUM(C76:G76)-MAX(C76:G76)-MIN(C76:G76))/3,IF(K76=4,(SUM(C76:G76)-MAX(C76:G76))/3,SUM(C76:G76)/3))*B76/7.6) ->  | K76: 0
A77: =IF(Draw!E76=0,"",Draw!E76) ->  | K77: 0
A78: =IF(Draw!E77=0,"",Draw!E77) ->  | B78: =IF(A78="","",B$3) ->  | H78: =IF(B78="","",IF(K78=5,(SUM(C78:G78)-MAX(C78:G78)-MIN(C78:G78))/3,IF(K78=4,(SUM(C78:G78)-MAX(C78:G78))/3,SUM(C78:G78)/3))*B78/7.6) ->  | K78: 0
A79: =IF(Draw!E78=0,"",Draw!E78) ->  | K79: 0
A80: =IF(Draw!E79=0,"",Draw!E79) ->  | B80: =IF(A80="","",B$3) ->  | H80: =IF(B80="","",IF(K80=5,(SUM(C80:G80)-MAX(C80:G80)-MIN(C80:G80))/3,IF(K80=4,(SUM(C80:G80)-MAX(C80:G80))/3,SUM(C80:G80)/3))*B80/7.6) ->  | K80: 0
A81: =IF(Draw!E80=0,"",Draw!E80) ->  | K81: 0
A82: =IF(Draw!E81=0,"",Draw!E81) ->  | B82: =IF(A82="","",B$3) ->  | H82: =IF(B82="","",IF(K82=5,(SUM(C82:G82)-MAX(C82:G82)-MIN(C82:G82))/3,IF(K82=4,(SUM(C82:G82)-MAX(C82:G82))/3,SUM(C82:G82)/3))*B82/7.6) ->  | K82: 0
A83: =IF(Draw!E82=0,"",Draw!E82) ->  | K83: 0
A84: =IF(Draw!E83=0,"",Draw!E83) ->  | B84: =IF(A84="","",B$3) ->  | H84: =IF(B84="","",IF(K84=5,(SUM(C84:G84)-MAX(C84:G84)-MIN(C84:G84))/3,IF(K84=4,(SUM(C84:G84)-MAX(C84:G84))/3,SUM(C84:G84)/3))*B84/7.6) ->  | K84: 0
A85: =IF(Draw!E84=0,"",Draw!E84) ->  | K85: 0
A86: =IF(Draw!E85=0,"",Draw!E85) ->  | B86: =IF(A86="","",B$3) ->  | H86: =IF(B86="","",IF(K86=5,(SUM(C86:G86)-MAX(C86:G86)-MIN(C86:G86))/3,IF(K86=4,(SUM(C86:G86)-MAX(C86:G86))/3,SUM(C86:G86)/3))*B86/7.6) ->  | K86: 0
A87: =IF(Draw!E86=0,"",Draw!E86) ->  | K87: 0
A88: =IF(Draw!E87=0,"",Draw!E87) ->  | B88: =IF(A88="","",B$3) ->  | H88: =IF(B88="","",IF(K88=5,(SUM(C88:G88)-MAX(C88:G88)-MIN(C88:G88))/3,IF(K88=4,(SUM(C88:G88)-MAX(C88:G88))/3,SUM(C88:G88)/3))*B88/7.6) ->  | K88: 0
A89: =IF(Draw!E88=0,"",Draw!E88) ->  | K89: 0
A90: =IF(Draw!E89=0,"",Draw!E89) ->  | B90: =IF(A90="","",B$3) ->  | H90: =IF(B90="","",IF(K90=5,(SUM(C90:G90)-MAX(C90:G90)-MIN(C90:G90))/3,IF(K90=4,(SUM(C90:G90)-MAX(C90:G90))/3,SUM(C90:G90)/3))*B90/7.6) ->  | K90: 0
A91: =IF(Draw!E90=0,"",Draw!E90) ->  | K91: 0
A92: =IF(Draw!E91=0,"",Draw!E91) ->  | B92: =IF(A92="","",B$3) ->  | H92: =IF(B92="","",IF(K92=5,(SUM(C92:G92)-MAX(C92:G92)-MIN(C92:G92))/3,IF(K92=4,(SUM(C92:G92)-MAX(C92:G92))/3,SUM(C92:G92)/3))*B92/7.6) ->  | K92: 0
A93: =IF(Draw!E92=0,"",Draw!E92) ->  | K93: 0
A94: =IF(Draw!E93=0,"",Draw!E93) ->  | B94: =IF(A94="","",B$3) ->  | H94: =IF(B94="","",IF(K94=5,(SUM(C94:G94)-MAX(C94:G94)-MIN(C94:G94))/3,IF(K94=4,(SUM(C94:G94)-MAX(C94:G94))/3,SUM(C94:G94)/3))*B94/7.6) ->  | K94: 0
A95: =IF(Draw!E94=0,"",Draw!E94) ->  | K95: 0
A96: =IF(Draw!E95=0,"",Draw!E95) ->  | B96: =IF(A96="","",B$3) ->  | H96: =IF(B96="","",IF(K96=5,(SUM(C96:G96)-MAX(C96:G96)-MIN(C96:G96))/3,IF(K96=4,(SUM(C96:G96)-MAX(C96:G96))/3,SUM(C96:G96)/3))*B96/7.6) ->  | K96: 0
A97: =IF(Draw!E96=0,"",Draw!E96) ->  | K97: 0
A98: =IF(Draw!E97=0,"",Draw!E97) ->  | B98: =IF(A98="","",B$3) ->  | H98: =IF(B98="","",IF(K98=5,(SUM(C98:G98)-MAX(C98:G98)-MIN(C98:G98))/3,IF(K98=4,(SUM(C98:G98)-MAX(C98:G98))/3,SUM(C98:G98)/3))*B98/7.6) ->  | K98: 0
A99: =IF(Draw!E98=0,"",Draw!E98) ->  | K99: 0
A100: =IF(Draw!E99=0,"",Draw!E99) ->  | B100: =IF(A100="","",B$3) ->  | H100: =IF(B100="","",IF(K100=5,(SUM(C100:G100)-MAX(C100:G100)-MIN(C100:G100))/3,IF(K100=4,(SUM(C100:G100)-MAX(C100:G100))/3,SUM(C100:G100)/3))*B100/7.6) ->  | K100: 0
A101: =IF(Draw!E100=0,"",Draw!E100) ->  | K101: 0
A102: =IF(Draw!E101=0,"",Draw!E101) ->  | B102: =IF(A102="","",B$3) ->  | H102: =IF(B102="","",IF(K102=5,(SUM(C102:G102)-MAX(C102:G102)-MIN(C102:G102))/3,IF(K102=4,(SUM(C102:G102)-MAX(C102:G102))/3,SUM(C102:G102)/3))*B102/7.6) ->  | K102: 0
A103: =IF(Draw!E102=0,"",Draw!E102) ->  | K103: 0
A104: =IF(Draw!E103=0,"",Draw!E103) ->  | B104: =IF(A104="","",B$3) ->  | H104: =IF(B104="","",IF(K104=5,(SUM(C104:G104)-MAX(C104:G104)-MIN(C104:G104))/3,IF(K104=4,(SUM(C104:G104)-MAX(C104:G104))/3,SUM(C104:G104)/3))*B104/7.6) ->  | K104: 0
A105: =IF(Draw!E104=0,"",Draw!E104) ->  | K105: 0
A106: =IF(Draw!E105=0,"",Draw!E105) ->  | B106: =IF(A106="","",B$3) ->  | H106: =IF(B106="","",IF(K106=5,(SUM(C106:G106)-MAX(C106:G106)-MIN(C106:G106))/3,IF(K106=4,(SUM(C106:G106)-MAX(C106:G106))/3,SUM(C106:G106)/3))*B106/7.6) ->  | K106: 0
A107: =IF(Draw!E106=0,"",Draw!E106) ->  | K107: 0
A108: =IF(Draw!E107=0,"",Draw!E107) ->  | B108: =IF(A108="","",B$3) ->  | H108: =IF(B108="","",IF(K108=5,(SUM(C108:G108)-MAX(C108:G108)-MIN(C108:G108))/3,IF(K108=4,(SUM(C108:G108)-MAX(C108:G108))/3,SUM(C108:G108)/3))*B108/7.6) ->  | K108: 0
A109: =IF(Draw!E108=0,"",Draw!E108) ->  | K109: 0
A110: =IF(Draw!E109=0,"",Draw!E109) ->  | B110: =IF(A110="","",B$3) ->  | H110: =IF(B110="","",IF(K110=5,(SUM(C110:G110)-MAX(C110:G110)-MIN(C110:G110))/3,IF(K110=4,(SUM(C110:G110)-MAX(C110:G110))/3,SUM(C110:G110)/3))*B110/7.6) ->  | K110: 0
A111: =IF(Draw!E110=0,"",Draw!E110) ->  | K111: 0
A112: =IF(Draw!E111=0,"",Draw!E111) ->  | B112: =IF(A112="","",B$3) ->  | H112: =IF(B112="","",IF(K112=5,(SUM(C112:G112)-MAX(C112:G112)-MIN(C112:G112))/3,IF(K112=4,(SUM(C112:G112)-MAX(C112:G112))/3,SUM(C112:G112)/3))*B112/7.6) ->  | K112: 0
A113: =IF(Draw!E112=0,"",Draw!E112) ->  | K113: 0
A114: =IF(Draw!E113=0,"",Draw!E113) ->  | B114: =IF(A114="","",B$3) ->  | H114: =IF(B114="","",IF(K114=5,(SUM(C114:G114)-MAX(C114:G114)-MIN(C114:G114))/3,IF(K114=4,(SUM(C114:G114)-MAX(C114:G114))/3,SUM(C114:G114)/3))*B114/7.6) ->  | K114: 0
A115: =IF(Draw!E114=0,"",Draw!E114) ->  | K115: 0
A116: =IF(Draw!E115=0,"",Draw!E115) ->  | B116: =IF(A116="","",B$3) ->  | H116: =IF(B116="","",IF(K116=5,(SUM(C116:G116)-MAX(C116:G116)-MIN(C116:G116))/3,IF(K116=4,(SUM(C116:G116)-MAX(C116:G116))/3,SUM(C116:G116)/3))*B116/7.6) ->  | K116: 0
A117: =IF(Draw!E116=0,"",Draw!E116) ->  | K117: 0
A118: =IF(Draw!E117=0,"",Draw!E117) ->  | B118: =IF(A118="","",B$3) ->  | H118: =IF(B118="","",IF(K118=5,(SUM(C118:G118)-MAX(C118:G118)-MIN(C118:G118))/3,IF(K118=4,(SUM(C118:G118)-MAX(C118:G118))/3,SUM(C118:G118)/3))*B118/7.6) ->  | K118: 0
A119: =IF(Draw!E118=0,"",Draw!E118) ->  | K119: 0
A120: =IF(Draw!E119=0,"",Draw!E119) ->  | B120: =IF(A120="","",B$3) ->  | H120: =IF(B120="","",IF(K120=5,(SUM(C120:G120)-MAX(C120:G120)-MIN(C120:G120))/3,IF(K120=4,(SUM(C120:G120)-MAX(C120:G120))/3,SUM(C120:G120)/3))*B120/7.6) ->  | K120: 0
A121: =IF(Draw!E120=0,"",Draw!E120) ->  | K121: 0
A122: =IF(Draw!E121=0,"",Draw!E121) ->  | B122: =IF(A122="","",B$3) ->  | H122: =IF(B122="","",IF(K122=5,(SUM(C122:G122)-MAX(C122:G122)-MIN(C122:G122))/3,IF(K122=4,(SUM(C122:G122)-MAX(C122:G122))/3,SUM(C122:G122)/3))*B122/7.6) ->  | K122: 0
A123: =IF(Draw!E122=0,"",Draw!E122) ->  | K123: 0
A124: =IF(Draw!E123=0,"",Draw!E123) ->  | B124: =IF(A124="","",B$3) ->  | H124: =IF(B124="","",IF(K124=5,(SUM(C124:G124)-MAX(C124:G124)-MIN(C124:G124))/3,IF(K124=4,(SUM(C124:G124)-MAX(C124:G124))/3,SUM(C124:G124)/3))*B124/7.6) ->  | K124: 0
A125: =IF(Draw!E124=0,"",Draw!E124) ->  | K125: 0
A126: =IF(Draw!E125=0,"",Draw!E125) ->  | B126: =IF(A126="","",B$3) ->  | H126: =IF(B126="","",IF(K126=5,(SUM(C126:G126)-MAX(C126:G126)-MIN(C126:G126))/3,IF(K126=4,(SUM(C126:G126)-MAX(C126:G126))/3,SUM(C126:G126)/3))*B126/7.6) ->  | K126: 0
A127: =IF(Draw!E126=0,"",Draw!E126) ->  | K127: 0
A128: =IF(Draw!E127=0,"",Draw!E127) ->  | B128: =IF(A128="","",B$3) ->  | H128: =IF(B128="","",IF(K128=5,(SUM(C128:G128)-MAX(C128:G128)-MIN(C128:G128))/3,IF(K128=4,(SUM(C128:G128)-MAX(C128:G128))/3,SUM(C128:G128)/3))*B128/7.6) ->  | K128: 0
A129: =IF(Draw!E128=0,"",Draw!E128) ->  | K129: 0
A130: =IF(Draw!E129=0,"",Draw!E129) ->  | B130: =IF(A130="","",B$3) ->  | H130: =IF(B130="","",IF(K130=5,(SUM(C130:G130)-MAX(C130:G130)-MIN(C130:G130))/3,IF(K130=4,(SUM(C130:G130)-MAX(C130:G130))/3,SUM(C130:G130)/3))*B130/7.6) ->  | K130: 0
A131: =IF(Draw!E130=0,"",Draw!E130) ->  | K131: 0
A132: =IF(Draw!E131=0,"",Draw!E131) ->  | B132: =IF(A132="","",B$3) ->  | H132: =IF(B132="","",IF(K132=5,(SUM(C132:G132)-MAX(C132:G132)-MIN(C132:G132))/3,IF(K132=4,(SUM(C132:G132)-MAX(C132:G132))/3,SUM(C132:G132)/3))*B132/7.6) ->  | K132: =COUNT(C132:G132) -> 0
A133: =IF(Draw!E132=0,"",Draw!E132) ->  | K133: 0
A134: =IF(Draw!E133=0,"",Draw!E133) ->  | B134: =IF(A134="","",B$3) ->  | H134: =IF(B134="","",IF(K134=5,(SUM(C134:G134)-MAX(C134:G134)-MIN(C134:G134))/3,IF(K134=4,(SUM(C134:G134)-MAX(C134:G134))/3,SUM(C134:G134)/3))*B134/7.6) ->  | K134: 0
A135: =IF(Draw!E134=0,"",Draw!E134) ->  | K135: 0
A136: =IF(Draw!E135=0,"",Draw!E135) ->  | B136: =IF(A136="","",B$3) ->  | H136: =IF(B136="","",IF(K136=5,(SUM(C136:G136)-MAX(C136:G136)-MIN(C136:G136))/3,IF(K136=4,(SUM(C136:G136)-MAX(C136:G136))/3,SUM(C136:G136)/3))*B136/7.6) ->  | K136: 0
A137: =IF(Draw!E136=0,"",Draw!E136) ->  | K137: 0
A138: =IF(Draw!E137=0,"",Draw!E137) ->  | B138: =IF(A138="","",B$3) ->  | H138: =IF(B138="","",IF(K138=5,(SUM(C138:G138)-MAX(C138:G138)-MIN(C138:G138))/3,IF(K138=4,(SUM(C138:G138)-MAX(C138:G138))/3,SUM(C138:G138)/3))*B138/7.6) ->  | K138: 0
A139: =IF(Draw!E138=0,"",Draw!E138) ->  | K139: 0
A140: =IF(Draw!E139=0,"",Draw!E139) ->  | B140: =IF(A140="","",B$3) ->  | H140: =IF(B140="","",IF(K140=5,(SUM(C140:G140)-MAX(C140:G140)-MIN(C140:G140))/3,IF(K140=4,(SUM(C140:G140)-MAX(C140:G140))/3,SUM(C140:G140)/3))*B140/7.6) ->  | K140: 0
A141: =IF(Draw!E140=0,"",Draw!E140) ->  | K141: 0
A142: =IF(Draw!E141=0,"",Draw!E141) ->  | B142: =IF(A142="","",B$3) ->  | H142: =IF(B142="","",IF(K142=5,(SUM(C142:G142)-MAX(C142:G142)-MIN(C142:G142))/3,IF(K142=4,(SUM(C142:G142)-MAX(C142:G142))/3,SUM(C142:G142)/3))*B142/7.6) ->  | K142: 0
A143: =IF(Draw!E142=0,"",Draw!E142) ->  | K143: 0
A144: =IF(Draw!E143=0,"",Draw!E143) ->  | B144: =IF(A144="","",B$3) ->  | H144: =IF(B144="","",IF(K144=5,(SUM(C144:G144)-MAX(C144:G144)-MIN(C144:G144))/3,IF(K144=4,(SUM(C144:G144)-MAX(C144:G144))/3,SUM(C144:G144)/3))*B144/7.6) ->  | K144: 0
A145: =IF(Draw!E144=0,"",Draw!E144) ->  | K145: 0
A146: =IF(Draw!E145=0,"",Draw!E145) ->  | B146: =IF(A146="","",B$3) ->  | H146: =IF(B146="","",IF(K146=5,(SUM(C146:G146)-MAX(C146:G146)-MIN(C146:G146))/3,IF(K146=4,(SUM(C146:G146)-MAX(C146:G146))/3,SUM(C146:G146)/3))*B146/7.6) ->  | K146: 0
A147: =IF(Draw!E146=0,"",Draw!E146) ->  | K147: 0
A148: =IF(Draw!E147=0,"",Draw!E147) ->  | B148: =IF(A148="","",B$3) ->  | H148: =IF(B148="","",IF(K148=5,(SUM(C148:G148)-MAX(C148:G148)-MIN(C148:G148))/3,IF(K148=4,(SUM(C148:G148)-MAX(C148:G148))/3,SUM(C148:G148)/3))*B148/7.6) ->  | K148: 0
A149: =IF(Draw!E148=0,"",Draw!E148) ->  | K149: 0
A150: =IF(Draw!E149=0,"",Draw!E149) ->  | B150: =IF(A150="","",B$3) ->  | H150: =IF(B150="","",IF(K150=5,(SUM(C150:G150)-MAX(C150:G150)-MIN(C150:G150))/3,IF(K150=4,(SUM(C150:G150)-MAX(C150:G150))/3,SUM(C150:G150)/3))*B150/7.6) ->  | K150: 0

Sheet Fig 3 Neptunus
B1: Figure #3: | C1: 344 Neptunus
A2: # | B2: Degree of Difficulty | C2: Judge 1 | D2: Judge 2 | E2: Judge 3 | F2: Judge 4 | G2: Judge 5 | H2: Score | I2: Penalty
A3: 1 | B3: 1.8 | C3: 57 | D3: 52 | E3: 54 | F3: 55 | G3: 53 | H3: =IF(B3="","",IF(K3=5,(SUM(C3:G3)-MAX(C3:G3)-MIN(C3:G3))/3,IF(K3=4,(SUM(C3:G3)-MAX(C3:G3))/3,SUM(C3:G3)/3))*B3/7.6) -> 12.78947368 | K3: =COUNT(C3:G3) -> 5
A4: 2 | B4: =IF(A3="","",B$3) -> 1.8 | C4: 54 | D4: 54 | E4: 54 | F4: 52 | G4: 51 | H4: =IF(B4="","",IF(K4=5,(SUM(C4:G4)-MAX(C4:G4)-MIN(C4:G4))/3,IF(K4=4,(SUM(C4:G4)-MAX(C4:G4))/3,SUM(C4:G4)/3))*B4/7.6) -> 12.63157895 | K4: =COUNT(C4:G4) -> 5
A5: 3 | B5: 1.8 | C5: 56 | D5: 53 | E5: 52 | F5: 55 | G5: 52 | H5: 12.63157895 | K5: 5
A6: 4 | B6: =IF(A5="","",B$3) -> 1.8 | C6: 56 | D6: 57 | E6: 56 | F6: 56 | G6: 56 | H6: =IF(B6="","",IF(K6=5,(SUM(C6:G6)-MAX(C6:G6)-MIN(C6:G6))/3,IF(K6=4,(SUM(C6:G6)-MAX(C6:G6))/3,SUM(C6:G6)/3))*B6/7.6) -> 13.26315789 | K6: 5
A7: 5 | B7: 1.8 | C7: 60 | D7: 58 | E7: 60 | F7: 63 | G7: 60 | H7: 14.21052632 | K7: 5
A8: 6 | B8: =IF(A7="","",B$3) -> 1.8 | C8: 60 | D8: 54 | E8: 56 | F8: 56 | G8: 56 | H8: =IF(B8="","",IF(K8=5,(SUM(C8:G8)-MAX(C8:G8)-MIN(C8:G8))/3,IF(K8=4,(SUM(C8:G8)-MAX(C8:G8))/3,SUM(C8:G8)/3))*B8/7.6) -> 13.26315789 | K8: 5
A9: 7 | B9: 1.8 | C9: 56 | D9: 58 | E9: 60 | F9: 58 | G9: 57 | H9: 13.65789474 | K9: 5
A10: 8 | B10: =IF(A9="","",B$3) -> 1.8 | C10: 58 | D10: 60 | E10: 59 | F10: 59 | G10: 59 | H10: =IF(B10="","",IF(K10=5,(SUM(C10:G10)-MAX(C10:G10)-MIN(C10:G10))/3,IF(K10=4,(SUM(C10:G10)-MAX(C10:G10))/3,SUM(C10:G10)/3))*B10/7.6) -> 13.97368421 | K10: 5
A11: 9 | B11: 1.8 | C11: 51 | D11: 48 | E11: 47 | F11: 48 | G11: 46 | H11: 11.28947368 | K11: 5
A12: 10 | B12: =IF(A11="","",B$3) -> 1.8 | C12: 49 | D12: 52 | E12: 45 | F12: 47 | G12: 45 | H12: =IF(B12="","",IF(K12=5,(SUM(C12:G12)-MAX(C12:G12)-MIN(C12:G12))/3,IF(K12=4,(SUM(C12:G12)-MAX(C12:G12))/3,SUM(C12:G12)/3))*B12/7.6) -> 11.13157895 | K12: 5
A13: 11 | B13: 1.8 | C13: 58 | D13: 56 | E13: 51 | F13: 53 | G13: 54 | H13: 12.86842105 | K13: 5
A14: 12 | B14: =IF(A13="","",B$3) -> 1.8 | C14: 55 | D14: 55 | E14: 58 | F14: 58 | G14: 56 | H14: =IF(B14="","",IF(K14=5,(SUM(C14:G14)-MAX(C14:G14)-MIN(C14:G14))/3,IF(K14=4,(SUM(C14:G14)-MAX(C14:G14))/3,SUM(C14:G14)/3))*B14/7.6) -> 13.34210526 | K14: 5
A15: 13 | B15: 1.8 | C15: 60 | D15: 61 | E15: 61 | F15: 61 | G15: 61 | H15: 14.44736842 | K15: 5
A16: 14 | B16: =IF(A15="","",B$3) -> 1.8 | C16: 56 | D16: 59 | E16: 56 | F16: 57 | G16: 57 | H16: =IF(B16="","",IF(K16=5,(SUM(C16:G16)-MAX(C16:G16)-MIN(C16:G16))/3,IF(K16=4,(SUM(C16:G16)-MAX(C16:G16))/3,SUM(C16:G16)/3))*B16/7.6) -> 13.42105263 | K16: 5
A17: 15 | B17: 1.8 | C17: 57 | D17: 56 | E17: 54 | F17: 55 | G17: 55 | H17: 13.10526316 | K17: 5
A18: 16 | B18: =IF(A17="","",B$3) -> 1.8 | H18: =IF(B18="","",IF(K18=5,(SUM(C18:G18)-MAX(C18:G18)-MIN(C18:G18))/3,IF(K18=4,(SUM(C18:G18)-MAX(C18:G18))/3,SUM(C18:G18)/3))*B18/7.6) -> 0 | K18: 0
A19: 17 | B19: 1.8 | C19: 58 | D19: 61 | E19: 60 | F19: 60 | G19: 58 | H19: 14.05263158 | K19: 5
A20: 18 | B20: =IF(A19="","",B$3) -> 1.8 | C20: 59 | D20: 60 | E20: 60 | F20: 61 | G20: 62 | H20: =IF(B20="","",IF(K20=5,(SUM(C20:G20)-MAX(C20:G20)-MIN(C20:G20))/3,IF(K20=4,(SUM(C20:G20)-MAX(C20:G20))/3,SUM(C20:G20)/3))*B20/7.6) -> 14.28947368 | K20: 5
A21: 19 | B21: 1.8 | C21: 55 | D21: 54 | E21: 53 | F21: 51 | G21: 51 | H21: 12.47368421 | K21: 5
A22: 20 | B22: =IF(A21="","",B$3) -> 1.8 | C22: 55 | D22: 53 | E22: 55 | F22: 57 | G22: 56 | H22: =IF(B22="","",IF(K22=5,(SUM(C22:G22)-MAX(C22:G22)-MIN(C22:G22))/3,IF(K22=4,(SUM(C22:G22)-MAX(C22:G22))/3,SUM(C22:G22)/3))*B22/7.6) -> 13.10526316 | K22: 5
A23: 21 | B23: 1.8 | C23: 57 | D23: 56 | E23: 57 | F23: 55 | G23: 53 | H23: 13.26315789 | K23: 5
A24: 22 | B24: =IF(A23="","",B$3) -> 1.8 | C24: 52 | D24: 55 | E24: 54 | F24: 50 | G24: 52 | H24: =IF(B24="","",IF(K24=5,(SUM(C24:G24)-MAX(C24:G24)-MIN(C24:G24))/3,IF(K24=4,(SUM(C24:G24)-MAX(C24:G24))/3,SUM(C24:G24)/3))*B24/7.6) -> 12.47368421 | K24: 5
A25: 23 | B25: 1.8 | C25: 64 | D25: 61 | E25: 64 | F25: 63 | G25: 65 | H25: 15.07894737 | K25: 5
A26: 24 | B26: =IF(A25="","",B$3) -> 1.8 | C26: 50 | D26: 52 | E26: 48 | F26: 48 | G26: 48 | H26: =IF(B26="","",IF(K26=5,(SUM(C26:G26)-MAX(C26:G26)-MIN(C26:G26))/3,IF(K26=4,(SUM(C26:G26)-MAX(C26:G26))/3,SUM(C26:G26)/3))*B26/7.6) -> 11.52631579 | K26: 5
A27: 25 | B27: 1.8 | C27: 47 | D27: 45 | E27: 46 | F27: 46 | G27: 47 | H27: 10.97368421 | K27: 5
A28: 26 | B28: =IF(A27="","",B$3) -> 1.8 | C28: 65 | D28: 65 | E28: 62 | F28: 65 | G28: 665 | H28: =IF(B28="","",IF(K28=5,(SUM(C28:G28)-MAX(C28:G28)-MIN(C28:G28))/3,IF(K28=4,(SUM(C28:G28)-MAX(C28:G28))/3,SUM(C28:G28)/3))*B28/7.6) -> 15.39473684 | K28: 5
A29: 27 | B29: 1.8 | C29: 62 | D29: 62 | E29: 61 | F29: 65 | G29: 63 | H29: 14.76315789 | K29: 5
A30: 28 | B30: =IF(A29="","",B$3) -> 1.8 | C30: 63 | D30: 60 | E30: 64 | F30: 65 | G30: 64 | H30: =IF(B30="","",IF(K30=5,(SUM(C30:G30)-MAX(C30:G30)-MIN(C30:G30))/3,IF(K30=4,(SUM(C30:G30)-MAX(C30:G30))/3,SUM(C30:G30)/3))*B30/7.6) -> 15.07894737 | K30: 5
A31: 29 | B31: 1.8 | C31: 75 | D31: 69 | E31: 71 | F31: 71 | G31: 70 | H31: 16.73684211 | K31: 5
A32: 30 | B32: =IF(A31="","",B$3) -> 1.8 | C32: 56 | D32: 55 | E32: 55 | F32: 54 | G32: 53 | H32: =IF(B32="","",IF(K32=5,(SUM(C32:G32)-MAX(C32:G32)-MIN(C32:G32))/3,IF(K32=4,(SUM(C32:G32)-MAX(C32:G32))/3,SUM(C32:G32)/3))*B32/7.6) -> 12.94736842 | K32: 5
A33: 31 | B33: 1.8 | C33: 62 | D33: 62 | E33: 61 | F33: 60 | G33: 58 | H33: 14.44736842 | K33: 5
A34: 32 | B34: =IF(A33="","",B$3) -> 1.8 | C34: 67 | D34: 64 | E34: 64 | F34: 64 | G34: 66 | H34: =IF(B34="","",IF(K34=5,(SUM(C34:G34)-MAX(C34:G34)-MIN(C34:G34))/3,IF(K34=4,(SUM(C34:G34)-MAX(C34:G34))/3,SUM(C34:G34)/3))*B34/7.6) -> 15.31578947 | K34: 5
A35: 33 | B35: 1.8 | C35: 49 | D35: 52 | E35: 52 | F35: 52 | G35: 47 | H35: 12.07894737 | K35: 5
A36: 34 | B36: =IF(A35="","",B$3) -> 1.8 | C36: 50 | D36: 50 | E36: 50 | F36: 48 | G36: 49 | H36: =IF(B36="","",IF(K36=5,(SUM(C36:G36)-MAX(C36:G36)-MIN(C36:G36))/3,IF(K36=4,(SUM(C36:G36)-MAX(C36:G36))/3,SUM(C36:G36)/3))*B36/7.6) -> 11.76315789 | K36: 5
A37: 35 | B37: 1.8 | C37: 48 | D37: 51 | E37: 51 | F37: 52 | G37: 50 | H37: 12 | K37: 5
A38: 36 | B38: =IF(A37="","",B$3) -> 1.8 | C38: 57 | D38: 60 | E38: 58 | F38: 53 | G38: 52 | H38: =IF(B38="","",IF(K38=5,(SUM(C38:G38)-MAX(C38:G38)-MIN(C38:G38))/3,IF(K38=4,(SUM(C38:G38)-MAX(C38:G38))/3,SUM(C38:G38)/3))*B38/7.6) -> 13.26315789 | K38: 5
A39: 37 | B39: 1.8 | C39: 59 | D39: 58 | E39: 57 | F39: 56 | G39: 58 | H39: 13.65789474 | K39: 5
A40: 38 | B40: =IF(A39="","",B$3) -> 1.8 | C40: 53 | D40: 54 | E40: 51 | F40: 50 | G40: 48 | H40: =IF(B40="","",IF(K40=5,(SUM(C40:G40)-MAX(C40:G40)-MIN(C40:G40))/3,IF(K40=4,(SUM(C40:G40)-MAX(C40:G40))/3,SUM(C40:G40)/3))*B40/7.6) -> 12.15789474 | K40: 5
A41: 39 | B41: 1.8 | C41: 58 | D41: 57 | E41: 60 | F41: 63 | G41: 61 | H41: 14.13157895 | K41: 5
A42: 40 | B42: =IF(A41="","",B$3) -> 1.8 | C42: 62 | D42: 61 | E42: 62 | F42: 61 | G42: 63 | H42: =IF(B42="","",IF(K42=5,(SUM(C42:G42)-MAX(C42:G42)-MIN(C42:G42))/3,IF(K42=4,(SUM(C42:G42)-MAX(C42:G42))/3,SUM(C42:G42)/3))*B42/7.6) -> 14.60526316 | K42: 5
A43: 41 | B43: 1.8 | C43: 63 | D43: 62 | E43: 63 | F43: 62 | G43: 61 | H43: 14.76315789 | K43: 5
A44: 42 | B44: =IF(A43="","",B$3) -> 1.8 | C44: 58 | D44: 60 | E44: 59 | F44: 58 | G44: 56 | H44: =IF(B44="","",IF(K44=5,(SUM(C44:G44)-MAX(C44:G44)-MIN(C44:G44))/3,IF(K44=4,(SUM(C44:G44)-MAX(C44:G44))/3,SUM(C44:G44)/3))*B44/7.6) -> 13.81578947 | K44: 5
A45: 43 | B45: 1.8 | C45: 58 | D45: 57 | E45: 55 | F45: 57 | G45: 55 | H45: 13.34210526 | K45: 5
A46: 44 | B46: =IF(A45="","",B$3) -> 1.8 | C46: 60 | D46: 62 | E46: 63 | F46: 63 | G46: 62 | H46: =IF(B46="","",IF(K46=5,(SUM(C46:G46)-MAX(C46:G46)-MIN(C46:G46))/3,IF(K46=4,(SUM(C46:G46)-MAX(C46:G46))/3,SUM(C46:G46)/3))*B46/7.6) -> 14.76315789 | K46: 5
A47: 45 | B47: 1.8 | C47: 53 | D47: 54 | E47: 49 | F47: 47 | G47: 46 | H47: 11.76315789 | K47: 5
A48: 46 | B48: =IF(A47="","",B$3) -> 1.8 | C48: 50 | D48: 49 | E48: 56 | F48: 46 | G48: 48 | H48: =IF(B48="","",IF(K48=5,(SUM(C48:G48)-MAX(C48:G48)-MIN(C48:G48))/3,IF(K48=4,(SUM(C48:G48)-MAX(C48:G48))/3,SUM(C48:G48)/3))*B48/7.6) -> 11.60526316 | K48: 5
A49: 47 | B49: 1.8 | C49: 48 | D49: 47 | E49: 48 | F49: 50 | G49: 49 | H49: 11.44736842 | K49: 5
A50: 48 | B50: =IF(A49="","",B$3) -> 1.8 | C50: 62 | D50: 64 | E50: 62 | F50: 65 | G50: 64 | H50: =IF(B50="","",IF(K50=5,(SUM(C50:G50)-MAX(C50:G50)-MIN(C50:G50))/3,IF(K50=4,(SUM(C50:G50)-MAX(C50:G50))/3,SUM(C50:G50)/3))*B50/7.6) -> 15 | K50: 5
A51: 49 | B51: 1.8 | C51: 53 | D51: 56 | E51: 57 | F51: 50 | G51: 51 | H51: 12.63157895 | K51: 5
A52: 50 | B52: =IF(A51="","",B$3) -> 1.8 | C52: 58 | D52: 58 | E52: 62 | F52: 60 | G52: 57 | H52: =IF(B52="","",IF(K52=5,(SUM(C52:G52)-MAX(C52:G52)-MIN(C52:G52))/3,IF(K52=4,(SUM(C52:G52)-MAX(C52:G52))/3,SUM(C52:G52)/3))*B52/7.6) -> 13.89473684 | K52: 5
A53: 51 | B53: 1.8 | C53: 62 | D53: 63 | E53: 64 | F53: 64 | G53: 63 | H53: 15 | K53: 5
A54: 52 | B54: =IF(A53="","",B$3) -> 1.8 | C54: 54 | D54: 52 | E54: 55 | F54: 55 | G54: 55 | H54: =IF(B54="","",IF(K54=5,(SUM(C54:G54)-MAX(C54:G54)-MIN(C54:G54))/3,IF(K54=4,(SUM(C54:G54)-MAX(C54:G54))/3,SUM(C54:G54)/3))*B54/7.6) -> 12.94736842 | K54: 5
A55: 53 | B55: 1.8 | C55: 60 | D55: 61 | E55: 62 | F55: 62 | G55: 61 | H55: 14.52631579 | K55: 5
A56: 54 | B56: =IF(A55="","",B$3) -> 1.8 | C56: 68 | D56: 66 | E56: 65 | F56: 66 | G56: 65 | H56: =IF(B56="","",IF(K56=5,(SUM(C56:G56)-MAX(C56:G56)-MIN(C56:G56))/3,IF(K56=4,(SUM(C56:G56)-MAX(C56:G56))/3,SUM(C56:G56)/3))*B56/7.6) -> 15.55263158 | K56: 5
A57: 55 | B57: 1.8 | C57: 46 | D57: 47 | E57: 46 | F57: 46 | G57: 46 | H57: 10.89473684 | K57: 5
B58: =IF(A57="","",B$3) -> 1.8 | H58: =IF(B58="","",IF(K58=5,(SUM(C58:G58)-MAX(C58:G58)-MIN(C58:G58))/3,IF(K58=4,(SUM(C58:G58)-MAX(C58:G58))/3,SUM(C58:G58)/3))*B58/7.6) -> 0 | K58: 0
A59: =IF(Draw!E59=0,"",Draw!E59) ->  | B59: 1.8 | K59: 0
A60: =IF(Draw!E60=0,"",Draw!E60) ->  | B60: =IF(A59="","",B$3) ->  | H60: =IF(B60="","",IF(K60=5,(SUM(C60:G60)-MAX(C60:G60)-MIN(C60:G60))/3,IF(K60=4,(SUM(C60:G60)-MAX(C60:G60))/3,SUM(C60:G60)/3))*B60/7.6) ->  | K60: 0
A61: =IF(Draw!E61=0,"",Draw!E61) ->  | B61: 1.8 | K61: 0
A62: =IF(Draw!E62=0,"",Draw!E62) ->  | B62: =IF(A61="","",B$3) ->  | H62: =IF(B62="","",IF(K62=5,(SUM(C62:G62)-MAX(C62:G62)-MIN(C62:G62))/3,IF(K62=4,(SUM(C62:G62)-MAX(C62:G62))/3,SUM(C62:G62)/3))*B62/7.6) ->  | K62: 0
A63: =IF(Draw!E63=0,"",Draw!E63) ->  | K63: 0
A64: =IF(Draw!E64=0,"",Draw!E64) ->  | B64: =IF(A63="","",B$3) ->  | H64: =IF(B64="","",IF(K64=5,(SUM(C64:G64)-MAX(C64:G64)-MIN(C64:G64))/3,IF(K64=4,(SUM(C64:G64)-MAX(C64:G64))/3,SUM(C64:G64)/3))*B64/7.6) ->  | K64: 0
A65: =IF(Draw!E65=0,"",Draw!E65) ->  | K65: 0
A66: =IF(Draw!E66=0,"",Draw!E66) ->  | B66: =IF(A65="","",B$3) ->  | H66: =IF(B66="","",IF(K66=5,(SUM(C66:G66)-MAX(C66:G66)-MIN(C66:G66))/3,IF(K66=4,(SUM(C66:G66)-MAX(C66:G66))/3,SUM(C66:G66)/3))*B66/7.6) ->  | K66: 0
A67: =IF(Draw!E67=0,"",Draw!E67) ->  | K67: 0
A68: =IF(Draw!E68=0,"",Draw!E68) ->  | B68: =IF(A67="","",B$3) ->  | H68: =IF(B68="","",IF(K68=5,(SUM(C68:G68)-MAX(C68:G68)-MIN(C68:G68))/3,IF(K68=4,(SUM(C68:G68)-MAX(C68:G68))/3,SUM(C68:G68)/3))*B68/7.6) ->  | K68: =COUNT(C68:G68) -> 0
A69: =IF(Draw!E69=0,"",Draw!E69) ->  | K69: 0
A70: =IF(Draw!E70=0,"",Draw!E70) ->  | B70: =IF(A69="","",B$3) ->  | H70: =IF(B70="","",IF(K70=5,(SUM(C70:G70)-MAX(C70:G70)-MIN(C70:G70))/3,IF(K70=4,(SUM(C70:G70)-MAX(C70:G70))/3,SUM(C70:G70)/3))*B70/7.6) ->  | K70: 0
A71: =IF(Draw!E71=0,"",Draw!E71) ->  | K71: 0
A72: =IF(Draw!E72=0,"",Draw!E72) ->  | B72: =IF(A71="","",B$3) ->  | H72: =IF(B72="","",IF(K72=5,(SUM(C72:G72)-MAX(C72:G72)-MIN(C72:G72))/3,IF(K72=4,(SUM(C72:G72)-MAX(C72:G72))/3,SUM(C72:G72)/3))*B72/7.6) ->  | K72: 0
A73: =IF(Draw!E73=0,"",Draw!E73) ->  | K73: 0
A74: =IF(Draw!E74=0,"",Draw!E74) ->  | B74: =IF(A73="","",B$3) ->  | H74: =IF(B74="","",IF(K74=5,(SUM(C74:G74)-MAX(C74:G74)-MIN(C74:G74))/3,IF(K74=4,(SUM(C74:G74)-MAX(C74:G74))/3,SUM(C74:G74)/3))*B74/7.6) ->  | K74: 0
A75: =IF(Draw!E75=0,"",Draw!E75) ->  | K75: 0
A76: =IF(Draw!E76=0,"",Draw!E76) ->  | B76: =IF(A75="","",B$3) ->  | H76: =IF(B76="","",IF(K76=5,(SUM(C76:G76)-MAX(C76:G76)-MIN(C76:G76))/3,IF(K76=4,(SUM(C76:G76)-MAX(C76:G76))/3,SUM(C76:G76)/3))*B76/7.6) ->  | K76: 0
A77: =IF(Draw!E77=0,"",Draw!E77) ->  | K77: 0
A78: =IF(Draw!E78=0,"",Draw!E78) ->  | B78: =IF(A77="","",B$3) ->  | H78: =IF(B78="","",IF(K78=5,(SUM(C78:G78)-MAX(C78:G78)-MIN(C78:G78))/3,IF(K78=4,(SUM(C78:G78)-MAX(C78:G78))/3,SUM(C78:G78)/3))*B78/7.6) ->  | K78: 0
A79: =IF(Draw!E79=0,"",Draw!E79) ->  | K79: 0
A80: =IF(Draw!E80=0,"",Draw!E80) ->  | B80: =IF(A79="","",B$3) ->  | H80: =IF(B80="","",IF(K80=5,(SUM(C80:G80)-MAX(C80:G80)-MIN(C80:G80))/3,IF(K80=4,(SUM(C80:G80)-MAX(C80:G80))/3,SUM(C80:G80)/3))*B80/7.6) ->  | K80: 0
A81: =IF(Draw!E81=0,"",Draw!E81) ->  | K81: 0
A82: =IF(Draw!E82=0,"",Draw!E82) ->  | B82: =IF(A81="","",B$3) ->  | H82: =IF(B82="","",IF(K82=5,(SUM(C82:G82)-MAX(C82:G82)-MIN(C82:G82))/3,IF(K82=4,(SUM(C82:G82)-MAX(C82:G82))/3,SUM(C82:G82)/3))*B82/7.6) ->  | K82: 0
A83: =IF(Draw!E83=0,"",Draw!E83) ->  | K83: 0
A84: =IF(Draw!E84=0,"",Draw!E84) ->  | B84: =IF(A83="","",B$3) ->  | H84: =IF(B84="","",IF(K84=5,(SUM(C84:G84)-MAX(C84:G84)-MIN(C84:G84))/3,IF(K84=4,(SUM(C84:G84)-MAX(C84:G84))/3,SUM(C84:G84)/3))*B84/7.6) ->  | K84: 0
A85: =IF(Draw!E85=0,"",Draw!E85) ->  | K85: 0
A86: =IF(Draw!E86=0,"",Draw!E86) ->  | B86: =IF(A85="","",B$3) ->  | H86: =IF(B86="","",IF(K86=5,(SUM(C86:G86)-MAX(C86:G86)-MIN(C86:G86))/3,IF(K86=4,(SUM(C86:G86)-MAX(C86:G86))/3,SUM(C86:G86)/3))*B86/7.6) ->  | K86: 0
A87: =IF(Draw!E87=0,"",Draw!E87) ->  | K87: 0
A88: =IF(Draw!E88=0,"",Draw!E88) ->  | B88: =IF(A87="","",B$3) ->  | H88: =IF(B88="","",IF(K88=5,(SUM(C88:G88)-MAX(C88:G88)-MIN(C88:G88))/3,IF(K88=4,(SUM(C88:G88)-MAX(C88:G88))/3,SUM(C88:G88)/3))*B88/7.6) ->  | K88: 0
A89: =IF(Draw!E89=0,"",Draw!E89) ->  | K89: 0
A90: =IF(Draw!E90=0,"",Draw!E90) ->  | B90: =IF(A89="","",B$3) ->  | H90: =IF(B90="","",IF(K90=5,(SUM(C90:G90)-MAX(C90:G90)-MIN(C90:G90))/3,IF(K90=4,(SUM(C90:G90)-MAX(C90:G90))/3,SUM(C90:G90)/3))*B90/7.6) ->  | K90: 0
A91: =IF(Draw!E91=0,"",Draw!E91) ->  | K91: 0
A92: =IF(Draw!E92=0,"",Draw!E92) ->  | B92: =IF(A91="","",B$3) ->  | H92: =IF(B92="","",IF(K92=5,(SUM(C92:G92)-MAX(C92:G92)-MIN(C92:G92))/3,IF(K92=4,(SUM(C92:G92)-MAX(C92:G92))/3,SUM(C92:G92)/3))*B92/7.6) ->  | K92: 0
A93: =IF(Draw!E93=0,"",Draw!E93) ->  | K93: 0
A94: =IF(Draw!E94=0,"",Draw!E94) ->  | B94: =IF(A93="","",B$3) ->  | H94: =IF(B94="","",IF(K94=5,(SUM(C94:G94)-MAX(C94:G94)-MIN(C94:G94))/3,IF(K94=4,(SUM(C94:G94)-MAX(C94:G94))/3,SUM(C94:G94)/3))*B94/7.6) ->  | K94: 0
A95: =IF(Draw!E95=0,"",Draw!E95) ->  | K95: 0
A96: =IF(Draw!E96=0,"",Draw!E96) ->  | B96: =IF(A95="","",B$3) ->  | H96: =IF(B96="","",IF(K96=5,(SUM(C96:G96)-MAX(C96:G96)-MIN(C96:G96))/3,IF(K96=4,(SUM(C96:G96)-MAX(C96:G96))/3,SUM(C96:G96)/3))*B96/7.6) ->  | K96: 0
A97: =IF(Draw!E97=0,"",Draw!E97) ->  | K97: 0
A98: =IF(Draw!E98=0,"",Draw!E98) ->  | B98: =IF(A97="","",B$3) ->  | H98: =IF(B98="","",IF(K98=5,(SUM(C98:G98)-MAX(C98:G98)-MIN(C98:G98))/3,IF(K98=4,(SUM(C98:G98)-MAX(C98:G98))/3,SUM(C98:G98)/3))*B98/7.6) ->  | K98: 0
A99: =IF(Draw!E99=0,"",Draw!E99) ->  | K99: 0
A100: =IF(Draw!E100=0,"",Draw!E100) ->  | B100: =IF(A99="","",B$3) ->  | H100: =IF(B100="","",IF(K100=5,(SUM(C100:G100)-MAX(C100:G100)-MIN(C100:G100))/3,IF(K100=4,(SUM(C100:G100)-MAX(C100:G100))/3,SUM(C100:G100)/3))*B100/7.6) ->  | K100: 0
A101: =IF(Draw!E101=0,"",Draw!E101) ->  | K101: 0
A102: =IF(Draw!E102=0,"",Draw!E102) ->  | B102: =IF(A101="","",B$3) ->  | H102: =IF(B102="","",IF(K102=5,(SUM(C102:G102)-MAX(C102:G102)-MIN(C102:G102))/3,IF(K102=4,(SUM(C102:G102)-MAX(C102:G102))/3,SUM(C102:G102)/3))*B102/7.6) ->  | K102: 0
A103: =IF(Draw!E103=0,"",Draw!E103) ->  | K103: 0
A104: =IF(Draw!E104=0,"",Draw!E104) ->  | B104: =IF(A103="","",B$3) ->  | H104: =IF(B104="","",IF(K104=5,(SUM(C104:G104)-MAX(C104:G104)-MIN(C104:G104))/3,IF(K104=4,(SUM(C104:G104)-MAX(C104:G104))/3,SUM(C104:G104)/3))*B104/7.6) ->  | K104: 0
A105: =IF(Draw!E105=0,"",Draw!E105) ->  | K105: 0
A106: =IF(Draw!E106=0,"",Draw!E106) ->  | B106: =IF(A105="","",B$3) ->  | H106: =IF(B106="","",IF(K106=5,(SUM(C106:G106)-MAX(C106:G106)-MIN(C106:G106))/3,IF(K106=4,(SUM(C106:G106)-MAX(C106:G106))/3,SUM(C106:G106)/3))*B106/7.6) ->  | K106: 0
A107: =IF(Draw!E107=0,"",Draw!E107) ->  | K107: 0
A108: =IF(Draw!E108=0,"",Draw!E108) ->  | B108: =IF(A107="","",B$3) ->  | H108: =IF(B108="","",IF(K108=5,(SUM(C108:G108)-MAX(C108:G108)-MIN(C108:G108))/3,IF(K108=4,(SUM(C108:G108)-MAX(C108:G108))/3,SUM(C108:G108)/3))*B108/7.6) ->  | K108: 0
A109: =IF(Draw!E109=0,"",Draw!E109) ->  | K109: 0
A110: =IF(Draw!E110=0,"",Draw!E110) ->  | B110: =IF(A109="","",B$3) ->  | H110: =IF(B110="","",IF(K110=5,(SUM(C110:G110)-MAX(C110:G110)-MIN(C110:G110))/3,IF(K110=4,(SUM(C110:G110)-MAX(C110:G110))/3,SUM(C110:G110)/3))*B110/7.6) ->  | K110: 0
A111: =IF(Draw!E111=0,"",Draw!E111) ->  | K111: 0
A112: =IF(Draw!E112=0,"",Draw!E112) ->  | B112: =IF(A111="","",B$3) ->  | H112: =IF(B112="","",IF(K112=5,(SUM(C112:G112)-MAX(C112:G112)-MIN(C112:G112))/3,IF(K112=4,(SUM(C112:G112)-MAX(C112:G112))/3,SUM(C112:G112)/3))*B112/7.6) ->  | K112: 0
A113: =IF(Draw!E113=0,"",Draw!E113) ->  | K113: 0
A114: =IF(Draw!E114=0,"",Draw!E114) ->  | B114: =IF(A113="","",B$3) ->  | H114: =IF(B114="","",IF(K114=5,(SUM(C114:G114)-MAX(C114:G114)-MIN(C114:G114))/3,IF(K114=4,(SUM(C114:G114)-MAX(C114:G114))/3,SUM(C114:G114)/3))*B114/7.6) ->  | K114: 0
A115: =IF(Draw!E115=0,"",Draw!E115) ->  | K115: 0
A116: =IF(Draw!E116=0,"",Draw!E116) ->  | B116: =IF(A115="","",B$3) ->  | H116: =IF(B116="","",IF(K116=5,(SUM(C116:G116)-MAX(C116:G116)-MIN(C116:G116))/3,IF(K116=4,(SUM(C116:G116)-MAX(C116:G116))/3,SUM(C116:G116)/3))*B116/7.6) ->  | K116: 0
A117: =IF(Draw!E117=0,"",Draw!E117) ->  | K117: 0
A118: =IF(Draw!E118=0,"",Draw!E118) ->  | B118: =IF(A117="","",B$3) ->  | H118: =IF(B118="","",IF(K118=5,(SUM(C118:G118)-MAX(C118:G118)-MIN(C118:G118))/3,IF(K118=4,(SUM(C118:G118)-MAX(C118:G118))/3,SUM(C118:G118)/3))*B118/7.6) ->  | K118: 0
A119: =IF(Draw!E119=0,"",Draw!E119) ->  | K119: 0
A120: =IF(Draw!E120=0,"",Draw!E120) ->  | B120: =IF(A119="","",B$3) ->  | H120: =IF(B120="","",IF(K120=5,(SUM(C120:G120)-MAX(C120:G120)-MIN(C120:G120))/3,IF(K120=4,(SUM(C120:G120)-MAX(C120:G120))/3,SUM(C120:G120)/3))*B120/7.6) ->  | K120: 0
A121: =IF(Draw!E121=0,"",Draw!E121) ->  | K121: 0
A122: =IF(Draw!E122=0,"",Draw!E122) ->  | B122: =IF(A121="","",B$3) ->  | H122: =IF(B122="","",IF(K122=5,(SUM(C122:G122)-MAX(C122:G122)-MIN(C122:G122))/3,IF(K122=4,(SUM(C122:G122)-MAX(C122:G122))/3,SUM(C122:G122)/3))*B122/7.6) ->  | K122: 0
A123: =IF(Draw!E123=0,"",Draw!E123) ->  | K123: 0
A124: =IF(Draw!E124=0,"",Draw!E124) ->  | B124: =IF(A123="","",B$3) ->  | H124: =IF(B124="","",IF(K124=5,(SUM(C124:G124)-MAX(C124:G124)-MIN(C124:G124))/3,IF(K124=4,(SUM(C124:G124)-MAX(C124:G124))/3,SUM(C124:G124)/3))*B124/7.6) ->  | K124: 0
A125: =IF(Draw!E125=0,"",Draw!E125) ->  | K125: 0
A126: =IF(Draw!E126=0,"",Draw!E126) ->  | B126: =IF(A125="","",B$3) ->  | H126: =IF(B126="","",IF(K126=5,(SUM(C126:G126)-MAX(C126:G126)-MIN(C126:G126))/3,IF(K126=4,(SUM(C126:G126)-MAX(C126:G126))/3,SUM(C126:G126)/3))*B126/7.6) ->  | K126: 0
A127: =IF(Draw!E127=0,"",Draw!E127) ->  | K127: 0
A128: =IF(Draw!E128=0,"",Draw!E128) ->  | B128: =IF(A127="","",B$3) ->  | H128: =IF(B128="","",IF(K128=5,(SUM(C128:G128)-MAX(C128:G128)-MIN(C128:G128))/3,IF(K128=4,(SUM(C128:G128)-MAX(C128:G128))/3,SUM(C128:G128)/3))*B128/7.6) ->  | K128: 0
A129: =IF(Draw!E129=0,"",Draw!E129) ->  | K129: 0
A130: =IF(Draw!E130=0,"",Draw!E130) ->  | B130: =IF(A129="","",B$3) ->  | H130: =IF(B130="","",IF(K130=5,(SUM(C130:G130)-MAX(C130:G130)-MIN(C130:G130))/3,IF(K130=4,(SUM(C130:G130)-MAX(C130:G130))/3,SUM(C130:G130)/3))*B130/7.6) ->  | K130: 0
A131: =IF(Draw!E131=0,"",Draw!E131) ->  | K131: 0
A132: =IF(Draw!E132=0,"",Draw!E132) ->  | B132: =IF(A131="","",B$3) ->  | H132: =IF(B132="","",IF(K132=5,(SUM(C132:G132)-MAX(C132:G132)-MIN(C132:G132))/3,IF(K132=4,(SUM(C132:G132)-MAX(C132:G132))/3,SUM(C132:G132)/3))*B132/7.6) ->  | K132: =COUNT(C132:G132) -> 0
A133: =IF(Draw!E133=0,"",Draw!E133) ->  | K133: 0
A134: =IF(Draw!E134=0,"",Draw!E134) ->  | B134: =IF(A133="","",B$3) ->  | H134: =IF(B134="","",IF(K134=5,(SUM(C134:G134)-MAX(C134:G134)-MIN(C134:G134))/3,IF(K134=4,(SUM(C134:G134)-MAX(C134:G134))/3,SUM(C134:G134)/3))*B134/7.6) ->  | K134: 0
A135: =IF(Draw!E135=0,"",Draw!E135) ->  | K135: 0
A136: =IF(Draw!E136=0,"",Draw!E136) ->  | B136: =IF(A135="","",B$3) ->  | H136: =IF(B136="","",IF(K136=5,(SUM(C136:G136)-MAX(C136:G136)-MIN(C136:G136))/3,IF(K136=4,(SUM(C136:G136)-MAX(C136:G136))/3,SUM(C136:G136)/3))*B136/7.6) ->  | K136: 0
A137: =IF(Draw!E137=0,"",Draw!E137) ->  | K137: 0
A138: =IF(Draw!E138=0,"",Draw!E138) ->  | B138: =IF(A137="","",B$3) ->  | H138: =IF(B138="","",IF(K138=5,(SUM(C138:G138)-MAX(C138:G138)-MIN(C138:G138))/3,IF(K138=4,(SUM(C138:G138)-MAX(C138:G138))/3,SUM(C138:G138)/3))*B138/7.6) ->  | K138: 0
A139: =IF(Draw!E139=0,"",Draw!E139) ->  | K139: 0
A140: =IF(Draw!E140=0,"",Draw!E140) ->  | B140: =IF(A139="","",B$3) ->  | H140: =IF(B140="","",IF(K140=5,(SUM(C140:G140)-MAX(C140:G140)-MIN(C140:G140))/3,IF(K140=4,(SUM(C140:G140)-MAX(C140:G140))/3,SUM(C140:G140)/3))*B140/7.6) ->  | K140: 0
A141: =IF(Draw!E141=0,"",Draw!E141) ->  | K141: 0
A142: =IF(Draw!E142=0,"",Draw!E142) ->  | B142: =IF(A141="","",B$3) ->  | H142: =IF(B142="","",IF(K142=5,(SUM(C142:G142)-MAX(C142:G142)-MIN(C142:G142))/3,IF(K142=4,(SUM(C142:G142)-MAX(C142:G142))/3,SUM(C142:G142)/3))*B142/7.6) ->  | K142: 0
A143: =IF(Draw!E143=0,"",Draw!E143) ->  | K143: 0
A144: =IF(Draw!E144=0,"",Draw!E144) ->  | B144: =IF(A143="","",B$3) ->  | H144: =IF(B144="","",IF(K144=5,(SUM(C144:G144)-MAX(C144:G144)-MIN(C144:G144))/3,IF(K144=4,(SUM(C144:G144)-MAX(C144:G144))/3,SUM(C144:G144)/3))*B144/7.6) ->  | K144: 0
A145: =IF(Draw!E145=0,"",Draw!E145) ->  | K145: 0
A146: =IF(Draw!E146=0,"",Draw!E146) ->  | B146: =IF(A145="","",B$3) ->  | H146: =IF(B146="","",IF(K146=5,(SUM(C146:G146)-MAX(C146:G146)-MIN(C146:G146))/3,IF(K146=4,(SUM(C146:G146)-MAX(C146:G146))/3,SUM(C146:G146)/3))*B146/7.6) ->  | K146: 0
A147: =IF(Draw!E147=0,"",Draw!E147) ->  | K147: 0
A148: =IF(Draw!E148=0,"",Draw!E148) ->  | B148: =IF(A147="","",B$3) ->  | H148: =IF(B148="","",IF(K148=5,(SUM(C148:G148)-MAX(C148:G148)-MIN(C148:G148))/3,IF(K148=4,(SUM(C148:G148)-MAX(C148:G148))/3,SUM(C148:G148)/3))*B148/7.6) ->  | K148: 0
A149: =IF(Draw!E149=0,"",Draw!E149) ->  | K149: 0
B150: =IF(A149="","",B$3) ->  | H150: =IF(B150="","",IF(K150=5,(SUM(C150:G150)-MAX(C150:G150)-MIN(C150:G150))/3,IF(K150=4,(SUM(C150:G150)-MAX(C150:G150))/3,SUM(C150:G150)/3))*B150/7.6) ->  | K150: 0

Sheet Fig 4 Walkover
B1: Figure #4: | C1: 360 Walkover Front
A2: # | B2: Degree of Difficulty | C2: Judge 1 | D2: Judge 2 | E2: Judge 3 | F2: Judge 4 | G2: Judge 5 | H2: Score | I2: Penalty
A3: =IF([1]Draw!E2=0,"",[1]Draw!E2) -> 1 | B3: 2.1 | C3: 57 | D3: 58 | E3: 56 | F3: 55 | G3: 56 | H3: =IF(B3="","",IF(K3=5,(SUM(C3:G3)-MAX(C3:G3)-MIN(C3:G3))/3,IF(K3=4,(SUM(C3:G3)-MAX(C3:G3))/3,SUM(C3:G3)/3))*B3/7.6) -> 15.56578947 | K3: =COUNT(C3:G3) -> 5
A4: =IF([1]Draw!E3=0,"",[1]Draw!E3) -> 2 | B4: =IF(A4="","",B$3) -> 2.1 | C4: 59 | D4: 57 | E4: 58 | F4: 56 | G4: 57 | H4: =IF(B4="","",IF(K4=5,(SUM(C4:G4)-MAX(C4:G4)-MIN(C4:G4))/3,IF(K4=4,(SUM(C4:G4)-MAX(C4:G4))/3,SUM(C4:G4)/3))*B4/7.6) -> 15.84210526 | K4: =COUNT(C4:G4) -> 5
A5: =IF([1]Draw!E4=0,"",[1]Draw!E4) -> 3 | B5: 2.1 | C5: 55 | D5: 60 | E5: 57 | F5: 58 | G5: 55 | H5: 15.65789474 | K5: 5
A6: 4 | B6: 2.1 | C6: 56 | D6: 54 | E6: 56 | F6: 54 | G6: 52 | H6: =IF(B6="","",IF(K6=5,(SUM(C6:G6)-MAX(C6:G6)-MIN(C6:G6))/3,IF(K6=4,(SUM(C6:G6)-MAX(C6:G6))/3,SUM(C6:G6)/3))*B6/7.6) -> 15.10526316 | K6: 5
A7: 5 | B7: 2.1 | C7: 58 | D7: 58 | E7: 59 | F7: 59 | G7: 58 | H7: 16.11842105 | K7: 5
A8: 6 | B8: 2.1 | C8: 52 | D8: 55 | E8: 54 | F8: 54 | G8: 54 | H8: =IF(B8="","",IF(K8=5,(SUM(C8:G8)-MAX(C8:G8)-MIN(C8:G8))/3,IF(K8=4,(SUM(C8:G8)-MAX(C8:G8))/3,SUM(C8:G8)/3))*B8/7.6) -> 14.92105263 | K8: 5
A9: 7 | B9: 2.1 | C9: 58 | D9: 55 | E9: 59 | F9: 59 | G9: 59 | H9: 16.21052632 | K9: 5
A10: 8 | B10: =IF(A10="","",B$3) -> 2.1 | C10: 59 | D10: 59 | E10: 57 | F10: 58 | G10: 56 | H10: =IF(B10="","",IF(K10=5,(SUM(C10:G10)-MAX(C10:G10)-MIN(C10:G10))/3,IF(K10=4,(SUM(C10:G10)-MAX(C10:G10))/3,SUM(C10:G10)/3))*B10/7.6) -> 16.02631579 | K10: 5
A11: 9 | B11: 2.1 | C11: 56 | D11: 55 | E11: 53 | F11: 50 | G11: 49 | H11: 14.55263158 | K11: 5
A12: 10 | B12: =IF(A12="","",B$3) -> 2.1 | C12: 52 | D12: 57 | E12: 50 | F12: 51 | G12: 53 | H12: =IF(B12="","",IF(K12=5,(SUM(C12:G12)-MAX(C12:G12)-MIN(C12:G12))/3,IF(K12=4,(SUM(C12:G12)-MAX(C12:G12))/3,SUM(C12:G12)/3))*B12/7.6) -> 14.36842105 | K12: 5
A13: 11 | B13: 2.1 | C13: 54 | D13: 54 | E13: 54 | F13: 54 | G13: 55 | H13: 14.92105263 | K13: 5
A14: 12 | B14: =IF(A14="","",B$3) -> 2.1 | C14: 52 | D14: 53 | E14: 52 | F14: 53 | G14: 52 | H14: =IF(B14="","",IF(K14=5,(SUM(C14:G14)-MAX(C14:G14)-MIN(C14:G14))/3,IF(K14=4,(SUM(C14:G14)-MAX(C14:G14))/3,SUM(C14:G14)/3))*B14/7.6) -> 14.46052632 | K14: 5
A15: 13 | B15: 2.1 | C15: 59 | D15: 59 | E15: 56 | F15: 54 | G15: 50 | H15: 15.56578947 | K15: 5
A16: 14 | B16: =IF(A16="","",B$3) -> 2.1 | C16: 57 | D16: 55 | E16: 57 | F16: 57 | G16: 58 | H16: =IF(B16="","",IF(K16=5,(SUM(C16:G16)-MAX(C16:G16)-MIN(C16:G16))/3,IF(K16=4,(SUM(C16:G16)-MAX(C16:G16))/3,SUM(C16:G16)/3))*B16/7.6) -> 15.75 | K16: 5
A17: 15 | B17: 2.1 | C17: 58 | D17: 56 | E17: 53 | F17: 54 | G17: 53 | H17: 15.01315789 | K17: 5
A18: 16 | B18: =IF(A18="","",B$3) -> 2.1 | H18: =IF(B18="","",IF(K18=5,(SUM(C18:G18)-MAX(C18:G18)-MIN(C18:G18))/3,IF(K18=4,(SUM(C18:G18)-MAX(C18:G18))/3,SUM(C18:G18)/3))*B18/7.6) -> 0 | K18: 0
A19: 17 | B19: 2.1 | C19: 54 | D19: 53 | E19: 55 | F19: 55 | G19: 55 | H19: 15.10526316 | K19: 5
A20: 18 | B20: =IF(A20="","",B$3) -> 2.1 | C20: 57 | D20: 55 | E20: 59 | F20: 61 | G20: 60 | H20: =IF(B20="","",IF(K20=5,(SUM(C20:G20)-MAX(C20:G20)-MIN(C20:G20))/3,IF(K20=4,(SUM(C20:G20)-MAX(C20:G20))/3,SUM(C20:G20)/3))*B20/7.6) -> 16.21052632 | K20: 5
A21: 19 | B21: 2.1 | C21: 52 | D21: 50 | E21: 51 | F21: 52 | G21: 53 | H21: 14.27631579 | K21: 5
A22: 20 | B22: =IF(A22="","",B$3) -> 2.1 | C22: 52 | D22: 53 | E22: 50 | F22: 53 | G22: 52 | H22: =IF(B22="","",IF(K22=5,(SUM(C22:G22)-MAX(C22:G22)-MIN(C22:G22))/3,IF(K22=4,(SUM(C22:G22)-MAX(C22:G22))/3,SUM(C22:G22)/3))*B22/7.6) -> 14.46052632 | K22: 5
A23: 21 | B23: 2.1 | C23: 53 | D23: 53 | E23: 52 | F23: 51 | G23: 50 | H23: 14.36842105 | K23: 5
A24: 22 | B24: =IF(A24="","",B$3) -> 2.1 | C24: 54 | D24: 54 | E24: 53 | F24: 50 | G24: 51 | H24: =IF(B24="","",IF(K24=5,(SUM(C24:G24)-MAX(C24:G24)-MIN(C24:G24))/3,IF(K24=4,(SUM(C24:G24)-MAX(C24:G24))/3,SUM(C24:G24)/3))*B24/7.6) -> 14.55263158 | K24: 5
A25: 23 | B25: 2.1 | C25: 60 | D25: 59 | E25: 62 | F25: 64 | G25: 62 | H25: 16.94736842 | K25: 5
A26: 24 | B26: =IF(A26="","",B$3) -> 2.1 | C26: 54 | D26: 56 | E26: 54 | F26: 51 | G26: 50 | H26: =IF(B26="","",IF(K26=5,(SUM(C26:G26)-MAX(C26:G26)-MIN(C26:G26))/3,IF(K26=4,(SUM(C26:G26)-MAX(C26:G26))/3,SUM(C26:G26)/3))*B26/7.6) -> 14.64473684 | K26: 5
A27: 25 | B27: 2.1 | C27: 51 | D27: 48 | E27: 50 | F27: 48 | G27: 47 | H27: 13.44736842 | K27: 5
A28: 26 | B28: =IF(A28="","",B$3) -> 2.1 | C28: 65 | D28: 63 | E28: 61 | F28: 63 | G28: 64 | H28: =IF(B28="","",IF(K28=5,(SUM(C28:G28)-MAX(C28:G28)-MIN(C28:G28))/3,IF(K28=4,(SUM(C28:G28)-MAX(C28:G28))/3,SUM(C28:G28)/3))*B28/7.6) -> 17.5 | K28: 5
A29: 27 | B29: 2.1 | C29: 63 | D29: 61 | E29: 61 | F29: 63 | G29: 63 | H29: 17.22368421 | K29: 5
A30: 28 | B30: =IF(A30="","",B$3) -> 2.1 | C30: 58 | D30: 54 | E30: 56 | F30: 57 | G30: 58 | H30: =IF(B30="","",IF(K30=5,(SUM(C30:G30)-MAX(C30:G30)-MIN(C30:G30))/3,IF(K30=4,(SUM(C30:G30)-MAX(C30:G30))/3,SUM(C30:G30)/3))*B30/7.6) -> 15.75 | K30: 5
A31: 29 | B31: 2.1 | C31: 67 | D31: 65 | E31: 70 | F31: 70 | G31: 70 | H31: 19.06578947 | K31: 5
A32: 30 | B32: =IF(A32="","",B$3) -> 2.1 | C32: 56 | D32: 56 | E32: 60 | F32: 60 | G32: 57 | H32: =IF(B32="","",IF(K32=5,(SUM(C32:G32)-MAX(C32:G32)-MIN(C32:G32))/3,IF(K32=4,(SUM(C32:G32)-MAX(C32:G32))/3,SUM(C32:G32)/3))*B32/7.6) -> 15.93421053 | K32: 5
A33: 31 | B33: 2.1 | C33: 62 | D33: 59 | E33: 58 | F33: 56 | G33: 57 | H33: 16.02631579 | K33: 5
A34: 32 | B34: =IF(A34="","",B$3) -> 2.1 | C34: 66 | D34: 64 | E34: 61 | F34: 65 | G34: 64 | H34: =IF(B34="","",IF(K34=5,(SUM(C34:G34)-MAX(C34:G34)-MIN(C34:G34))/3,IF(K34=4,(SUM(C34:G34)-MAX(C34:G34))/3,SUM(C34:G34)/3))*B34/7.6) -> 17.77631579 | K34: 5
A35: 33 | B35: =IF(A35="","",B$3) -> 2.1 | C35: 48 | D35: 46 | E35: 48 | F35: 46 | G35: 49 | H35: 13.07894737 | K35: 5
A36: 34 | B36: =IF(A36="","",B$3) -> 2.1 | C36: 55 | D36: 55 | E36: 52 | F36: 46 | G36: 51 | H36: =IF(B36="","",IF(K36=5,(SUM(C36:G36)-MAX(C36:G36)-MIN(C36:G36))/3,IF(K36=4,(SUM(C36:G36)-MAX(C36:G36))/3,SUM(C36:G36)/3))*B36/7.6) -> 14.55263158 | K36: 5
A37: 35 | B37: 2.1 | C37: 51 | D37: 52 | E37: 49 | F37: 50 | G37: 53 | H37: 14.09210526 | K37: 5
A38: 36 | B38: =IF(A38="","",B$3) -> 2.1 | C38: 58 | D38: 58 | E38: 58 | F38: 57 | G38: 57 | H38: =IF(B38="","",IF(K38=5,(SUM(C38:G38)-MAX(C38:G38)-MIN(C38:G38))/3,IF(K38=4,(SUM(C38:G38)-MAX(C38:G38))/3,SUM(C38:G38)/3))*B38/7.6) -> 15.93421053 | K38: 5
A39: 37 | B39: 2.1 | C39: 55 | D39: 57 | E39: 53 | F39: 58 | G39: 55 | H39: 15.38157895 | K39: 5
A40: 38 | B40: =IF(A40="","",B$3) -> 2.1 | C40: 49 | D40: 46 | E40: 47 | F40: 42 | G40: 46 | H40: =IF(B40="","",IF(K40=5,(SUM(C40:G40)-MAX(C40:G40)-MIN(C40:G40))/3,IF(K40=4,(SUM(C40:G40)-MAX(C40:G40))/3,SUM(C40:G40)/3))*B40/7.6) -> 12.80263158 | K40: 5
A41: 39 | B41: 2.1 | C41: 60 | D41: 58 | E41: 60 | F41: 63 | G41: 61 | H41: 16.67105263 | K41: 5
A42: 40 | B42: =IF(A42="","",B$3) -> 2.1 | C42: 61 | D42: 63 | E42: 63 | F42: 63 | G42: 62 | H42: =IF(B42="","",IF(K42=5,(SUM(C42:G42)-MAX(C42:G42)-MIN(C42:G42))/3,IF(K42=4,(SUM(C42:G42)-MAX(C42:G42))/3,SUM(C42:G42)/3))*B42/7.6) -> 17.31578947 | K42: 5
A43: 41 | B43: 2.1 | C43: 62 | D43: 59 | E43: 59 | F43: 61 | G43: 61 | H43: 16.67105263 | K43: 5
A44: 42 | B44: =IF(A44="","",B$3) -> 2.1 | C44: 59 | D44: 58 | E44: 58 | F44: 58 | G44: 57 | H44: =IF(B44="","",IF(K44=5,(SUM(C44:G44)-MAX(C44:G44)-MIN(C44:G44))/3,IF(K44=4,(SUM(C44:G44)-MAX(C44:G44))/3,SUM(C44:G44)/3))*B44/7.6) -> 16.02631579 | K44: 5
A45: 43 | B45: 2.1 | C45: 59 | D45: 56 | E45: 56 | F45: 58 | G45: 59 | H45: 15.93421053 | K45: 5
A46: 44 | B46: =IF(A46="","",B$3) -> 2.1 | C46: 61 | D46: 58 | E46: 60 | F46: 60 | G46: 62 | H46: =IF(B46="","",IF(K46=5,(SUM(C46:G46)-MAX(C46:G46)-MIN(C46:G46))/3,IF(K46=4,(SUM(C46:G46)-MAX(C46:G46))/3,SUM(C46:G46)/3))*B46/7.6) -> 16.67105263 | K46: 5
A47: 45 | B47: 2.1 | C47: 55 | D47: 54 | E47: 55 | F47: 49 | G47: 52 | H47: 14.82894737 | K47: 5
A48: 46 | B48: =IF(A48="","",B$3) -> 2.1 | C48: 53 | D48: 55 | E48: 52 | F48: 53 | G48: 54 | H48: =IF(B48="","",IF(K48=5,(SUM(C48:G48)-MAX(C48:G48)-MIN(C48:G48))/3,IF(K48=4,(SUM(C48:G48)-MAX(C48:G48))/3,SUM(C48:G48)/3))*B48/7.6) -> 14.73684211 | K48: 5
A49: 47 | B49: 2.1 | C49: 48 | D49: 52 | E49: 48 | F49: 47 | G49: 50 | H49: 13.44736842 | K49: 5
A50: 48 | B50: =IF(A50="","",B$3) -> 2.1 | C50: 63 | D50: 61 | E50: 62 | F50: 64 | G50: 63 | H50: =IF(B50="","",IF(K50=5,(SUM(C50:G50)-MAX(C50:G50)-MIN(C50:G50))/3,IF(K50=4,(SUM(C50:G50)-MAX(C50:G50))/3,SUM(C50:G50)/3))*B50/7.6) -> 17.31578947 | K50: 5
A51: 49 | B51: 2.1 | C51: 52 | D51: 56 | E51: 50 | F51: 52 | G51: 51 | H51: 14.27631579 | K51: 5
A52: 50 | B52: =IF(A52="","",B$3) -> 2.1 | C52: 53 | D52: 54 | E52: 57 | F52: 58 | G52: 57 | H52: =IF(B52="","",IF(K52=5,(SUM(C52:G52)-MAX(C52:G52)-MIN(C52:G52))/3,IF(K52=4,(SUM(C52:G52)-MAX(C52:G52))/3,SUM(C52:G52)/3))*B52/7.6) -> 15.47368421 | K52: 5
A53: 51 | B53: 2.1 | C53: 63 | D53: 63 | E53: 63 | F53: 63 | G53: 60 | H53: 17.40789474 | K53: 5
A54: 52 | B54: 2.1 | C54: 54 | D54: 53 | E54: 54 | F54: 53 | G54: 52 | H54: =IF(B54="","",IF(K54=5,(SUM(C54:G54)-MAX(C54:G54)-MIN(C54:G54))/3,IF(K54=4,(SUM(C54:G54)-MAX(C54:G54))/3,SUM(C54:G54)/3))*B54/7.6) -> 14.73684211 | K54: 5
A55: 53 | B55: 2.1 | C55: 61 | D55: 64 | E55: 61 | F55: 63 | G55: 60 | H55: 17.03947368 | K55: 5
A56: 54 | B56: =IF(A56="","",B$3) -> 2.1 | C56: 66 | D56: 62 | E56: 65 | F56: 66 | G56: 65 | H56: =IF(B56="","",IF(K56=5,(SUM(C56:G56)-MAX(C56:G56)-MIN(C56:G56))/3,IF(K56=4,(SUM(C56:G56)-MAX(C56:G56))/3,SUM(C56:G56)/3))*B56/7.6) -> 18.05263158 | K56: 5
A57: 55 | B57: 2.1 | C57: 50 | D57: 51 | E57: 48 | F57: 48 | G57: 48 | H57: 13.44736842 | K57: 5
A58: =IF(Draw!E57=0,"",Draw!E57) ->  | B58: =IF(A58="","",B$3) ->  | H58: =IF(B58="","",IF(K58=5,(SUM(C58:G58)-MAX(C58:G58)-MIN(C58:G58))/3,IF(K58=4,(SUM(C58:G58)-MAX(C58:G58))/3,SUM(C58:G58)/3))*B58/7.6) ->  | K58: 0
A59: =IF(Draw!E58=0,"",Draw!E58) ->  | K59: 0
A60: =IF(Draw!E59=0,"",Draw!E59) ->  | B60: =IF(A60="","",B$3) ->  | H60: =IF(B60="","",IF(K60=5,(SUM(C60:G60)-MAX(C60:G60)-MIN(C60:G60))/3,IF(K60=4,(SUM(C60:G60)-MAX(C60:G60))/3,SUM(C60:G60)/3))*B60/7.6) ->  | K60: 0
A61: =IF(Draw!E60=0,"",Draw!E60) ->  | K61: 0
A62: =IF(Draw!E61=0,"",Draw!E61) ->  | B62: =IF(A62="","",B$3) ->  | H62: =IF(B62="","",IF(K62=5,(SUM(C62:G62)-MAX(C62:G62)-MIN(C62:G62))/3,IF(K62=4,(SUM(C62:G62)-MAX(C62:G62))/3,SUM(C62:G62)/3))*B62/7.6) ->  | K62: 0
A63: =IF(Draw!E62=0,"",Draw!E62) ->  | K63: 0
A64: =IF(Draw!E63=0,"",Draw!E63) ->  | B64: =IF(A64="","",B$3) ->  | H64: =IF(B64="","",IF(K64=5,(SUM(C64:G64)-MAX(C64:G64)-MIN(C64:G64))/3,IF(K64=4,(SUM(C64:G64)-MAX(C64:G64))/3,SUM(C64:G64)/3))*B64/7.6) ->  | K64: 0
A65: =IF(Draw!E64=0,"",Draw!E64) ->  | K65: 0
A66: =IF(Draw!E65=0,"",Draw!E65) ->  | B66: =IF(A66="","",B$3) ->  | H66: =IF(B66="","",IF(K66=5,(SUM(C66:G66)-MAX(C66:G66)-MIN(C66:G66))/3,IF(K66=4,(SUM(C66:G66)-MAX(C66:G66))/3,SUM(C66:G66)/3))*B66/7.6) ->  | K66: 0
A67: =IF(Draw!E66=0,"",Draw!E66) ->  | K67: 0
A68: =IF(Draw!E67=0,"",Draw!E67) ->  | B68: =IF(A68="","",B$3) ->  | H68: =IF(B68="","",IF(K68=5,(SUM(C68:G68)-MAX(C68:G68)-MIN(C68:G68))/3,IF(K68=4,(SUM(C68:G68)-MAX(C68:G68))/3,SUM(C68:G68)/3))*B68/7.6) ->  | K68: =COUNT(C68:G68) -> 0
A69: =IF(Draw!E68=0,"",Draw!E68) ->  | K69: 0
A70: =IF(Draw!E69=0,"",Draw!E69) ->  | B70: =IF(A70="","",B$3) ->  | H70: =IF(B70="","",IF(K70=5,(SUM(C70:G70)-MAX(C70:G70)-MIN(C70:G70))/3,IF(K70=4,(SUM(C70:G70)-MAX(C70:G70))/3,SUM(C70:G70)/3))*B70/7.6) ->  | K70: 0
A71: =IF(Draw!E70=0,"",Draw!E70) ->  | K71: 0
A72: =IF(Draw!E71=0,"",Draw!E71) ->  | B72: =IF(A72="","",B$3) ->  | H72: =IF(B72="","",IF(K72=5,(SUM(C72:G72)-MAX(C72:G72)-MIN(C72:G72))/3,IF(K72=4,(SUM(C72:G72)-MAX(C72:G72))/3,SUM(C72:G72)/3))*B72/7.6) ->  | K72: 0
A73: =IF(Draw!E72=0,"",Draw!E72) ->  | K73: 0
A74: =IF(Draw!E73=0,"",Draw!E73) ->  | B74: =IF(A74="","",B$3) ->  | H74: =IF(B74="","",IF(K74=5,(SUM(C74:G74)-MAX(C74:G74)-MIN(C74:G74))/3,IF(K74=4,(SUM(C74:G74)-MAX(C74:G74))/3,SUM(C74:G74)/3))*B74/7.6) ->  | K74: 0
A75: =IF(Draw!E74=0,"",Draw!E74) ->  | K75: 0
A76: =IF(Draw!E75=0,"",Draw!E75) ->  | B76: =IF(A76="","",B$3) ->  | H76: =IF(B76="","",IF(K76=5,(SUM(C76:G76)-MAX(C76:G76)-MIN(C76:G76))/3,IF(K76=4,(SUM(C76:G76)-MAX(C76:G76))/3,SUM(C76:G76)/3))*B76/7.6) ->  | K76: 0
A77: =IF(Draw!E76=0,"",Draw!E76) ->  | K77: 0
A78: =IF(Draw!E77=0,"",Draw!E77) ->  | B78: =IF(A78="","",B$3) ->  | H78: =IF(B78="","",IF(K78=5,(SUM(C78:G78)-MAX(C78:G78)-MIN(C78:G78))/3,IF(K78=4,(SUM(C78:G78)-MAX(C78:G78))/3,SUM(C78:G78)/3))*B78/7.6) ->  | K78: 0
A79: =IF(Draw!E78=0,"",Draw!E78) ->  | K79: 0
A80: =IF(Draw!E79=0,"",Draw!E79) ->  | B80: =IF(A80="","",B$3) ->  | H80: =IF(B80="","",IF(K80=5,(SUM(C80:G80)-MAX(C80:G80)-MIN(C80:G80))/3,IF(K80=4,(SUM(C80:G80)-MAX(C80:G80))/3,SUM(C80:G80)/3))*B80/7.6) ->  | K80: 0
A81: =IF(Draw!E80=0,"",Draw!E80) ->  | K81: 0
A82: =IF(Draw!E81=0,"",Draw!E81) ->  | B82: =IF(A82="","",B$3) ->  | H82: =IF(B82="","",IF(K82=5,(SUM(C82:G82)-MAX(C82:G82)-MIN(C82:G82))/3,IF(K82=4,(SUM(C82:G82)-MAX(C82:G82))/3,SUM(C82:G82)/3))*B82/7.6) ->  | K82: 0
A83: =IF(Draw!E82=0,"",Draw!E82) ->  | K83: 0
A84: =IF(Draw!E83=0,"",Draw!E83) ->  | B84: =IF(A84="","",B$3) ->  | H84: =IF(B84="","",IF(K84=5,(SUM(C84:G84)-MAX(C84:G84)-MIN(C84:G84))/3,IF(K84=4,(SUM(C84:G84)-MAX(C84:G84))/3,SUM(C84:G84)/3))*B84/7.6) ->  | K84: 0
A85: =IF(Draw!E84=0,"",Draw!E84) ->  | K85: 0
A86: =IF(Draw!E85=0,"",Draw!E85) ->  | B86: =IF(A86="","",B$3) ->  | H86: =IF(B86="","",IF(K86=5,(SUM(C86:G86)-MAX(C86:G86)-MIN(C86:G86))/3,IF(K86=4,(SUM(C86:G86)-MAX(C86:G86))/3,SUM(C86:G86)/3))*B86/7.6) ->  | K86: 0
A87: =IF(Draw!E86=0,"",Draw!E86) ->  | K87: 0
A88: =IF(Draw!E87=0,"",Draw!E87) ->  | B88: =IF(A88="","",B$3) ->  | H88: =IF(B88="","",IF(K88=5,(SUM(C88:G88)-MAX(C88:G88)-MIN(C88:G88))/3,IF(K88=4,(SUM(C88:G88)-MAX(C88:G88))/3,SUM(C88:G88)/3))*B88/7.6) ->  | K88: 0
A89: =IF(Draw!E88=0,"",Draw!E88) ->  | K89: 0
A90: =IF(Draw!E89=0,"",Draw!E89) ->  | B90: =IF(A90="","",B$3) ->  | H90: =IF(B90="","",IF(K90=5,(SUM(C90:G90)-MAX(C90:G90)-MIN(C90:G90))/3,IF(K90=4,(SUM(C90:G90)-MAX(C90:G90))/3,SUM(C90:G90)/3))*B90/7.6) ->  | K90: 0
A91: =IF(Draw!E90=0,"",Draw!E90) ->  | K91: 0
A92: =IF(Draw!E91=0,"",Draw!E91) ->  | B92: =IF(A92="","",B$3) ->  | H92: =IF(B92="","",IF(K92=5,(SUM(C92:G92)-MAX(C92:G92)-MIN(C92:G92))/3,IF(K92=4,(SUM(C92:G92)-MAX(C92:G92))/3,SUM(C92:G92)/3))*B92/7.6) ->  | K92: 0
A93: =IF(Draw!E92=0,"",Draw!E92) ->  | K93: 0
A94: =IF(Draw!E93=0,"",Draw!E93) ->  | B94: =IF(A94="","",B$3) ->  | H94: =IF(B94="","",IF(K94=5,(SUM(C94:G94)-MAX(C94:G94)-MIN(C94:G94))/3,IF(K94=4,(SUM(C94:G94)-MAX(C94:G94))/3,SUM(C94:G94)/3))*B94/7.6) ->  | K94: 0
A95: =IF(Draw!E94=0,"",Draw!E94) ->  | K95: 0
A96: =IF(Draw!E95=0,"",Draw!E95) ->  | B96: =IF(A96="","",B$3) ->  | H96: =IF(B96="","",IF(K96=5,(SUM(C96:G96)-MAX(C96:G96)-MIN(C96:G96))/3,IF(K96=4,(SUM(C96:G96)-MAX(C96:G96))/3,SUM(C96:G96)/3))*B96/7.6) ->  | K96: 0
A97: =IF(Draw!E96=0,"",Draw!E96) ->  | K97: 0
A98: =IF(Draw!E97=0,"",Draw!E97) ->  | B98: =IF(A98="","",B$3) ->  | H98: =IF(B98="","",IF(K98=5,(SUM(C98:G98)-MAX(C98:G98)-MIN(C98:G98))/3,IF(K98=4,(SUM(C98:G98)-MAX(C98:G98))/3,SUM(C98:G98)/3))*B98/7.6) ->  | K98: 0
A99: =IF(Draw!E98=0,"",Draw!E98) ->  | K99: 0
A100: =IF(Draw!E99=0,"",Draw!E99) ->  | B100: =IF(A100="","",B$3) ->  | H100: =IF(B100="","",IF(K100=5,(SUM(C100:G100)-MAX(C100:G100)-MIN(C100:G100))/3,IF(K100=4,(SUM(C100:G100)-MAX(C100:G100))/3,SUM(C100:G100)/3))*B100/7.6) ->  | K100: 0
A101: =IF(Draw!E100=0,"",Draw!E100) ->  | K101: 0
A102: =IF(Draw!E101=0,"",Draw!E101) ->  | B102: =IF(A102="","",B$3) ->  | H102: =IF(B102="","",IF(K102=5,(SUM(C102:G102)-MAX(C102:G102)-MIN(C102:G102))/3,IF(K102=4,(SUM(C102:G102)-MAX(C102:G102))/3,SUM(C102:G102)/3))*B102/7.6) ->  | K102: 0
A103: =IF(Draw!E102=0,"",Draw!E102) ->  | K103: 0
A104: =IF(Draw!E103=0,"",Draw!E103) ->  | B104: =IF(A104="","",B$3) ->  | H104: =IF(B104="","",IF(K104=5,(SUM(C104:G104)-MAX(C104:G104)-MIN(C104:G104))/3,IF(K104=4,(SUM(C104:G104)-MAX(C104:G104))/3,SUM(C104:G104)/3))*B104/7.6) ->  | K104: 0
A105: =IF(Draw!E104=0,"",Draw!E104) ->  | K105: 0
A106: =IF(Draw!E105=0,"",Draw!E105) ->  | B106: =IF(A106="","",B$3) ->  | H106: =IF(B106="","",IF(K106=5,(SUM(C106:G106)-MAX(C106:G106)-MIN(C106:G106))/3,IF(K106=4,(SUM(C106:G106)-MAX(C106:G106))/3,SUM(C106:G106)/3))*B106/7.6) ->  | K106: 0
A107: =IF(Draw!E106=0,"",Draw!E106) ->  | K107: 0
A108: =IF(Draw!E107=0,"",Draw!E107) ->  | B108: =IF(A108="","",B$3) ->  | H108: =IF(B108="","",IF(K108=5,(SUM(C108:G108)-MAX(C108:G108)-MIN(C108:G108))/3,IF(K108=4,(SUM(C108:G108)-MAX(C108:G108))/3,SUM(C108:G108)/3))*B108/7.6) ->  | K108: 0
A109: =IF(Draw!E108=0,"",Draw!E108) ->  | K109: 0
A110: =IF(Draw!E109=0,"",Draw!E109) ->  | B110: =IF(A110="","",B$3) ->  | H110: =IF(B110="","",IF(K110=5,(SUM(C110:G110)-MAX(C110:G110)-MIN(C110:G110))/3,IF(K110=4,(SUM(C110:G110)-MAX(C110:G110))/3,SUM(C110:G110)/3))*B110/7.6) ->  | K110: 0
A111: =IF(Draw!E110=0,"",Draw!E110) ->  | K111: 0
A112: =IF(Draw!E111=0,"",Draw!E111) ->  | B112: =IF(A112="","",B$3) ->  | H112: =IF(B112="","",IF(K112=5,(SUM(C112:G112)-MAX(C112:G112)-MIN(C112:G112))/3,IF(K112=4,(SUM(C112:G112)-MAX(C112:G112))/3,SUM(C112:G112)/3))*B112/7.6) ->  | K112: 0
A113: =IF(Draw!E112=0,"",Draw!E112) ->  | K113: 0
A114: =IF(Draw!E113=0,"",Draw!E113) ->  | B114: =IF(A114="","",B$3) ->  | H114: =IF(B114="","",IF(K114=5,(SUM(C114:G114)-MAX(C114:G114)-MIN(C114:G114))/3,IF(K114=4,(SUM(C114:G114)-MAX(C114:G114))/3,SUM(C114:G114)/3))*B114/7.6) ->  | K114: 0
A115: =IF(Draw!E114=0,"",Draw!E114) ->  | K115: 0
A116: =IF(Draw!E115=0,"",Draw!E115) ->  | B116: =IF(A116="","",B$3) ->  | H116: =IF(B116="","",IF(K116=5,(SUM(C116:G116)-MAX(C116:G116)-MIN(C116:G116))/3,IF(K116=4,(SUM(C116:G116)-MAX(C116:G116))/3,SUM(C116:G116)/3))*B116/7.6) ->  | K116: 0
A117: =IF(Draw!E116=0,"",Draw!E116) ->  | K117: 0
A118: =IF(Draw!E117=0,"",Draw!E117) ->  | B118: =IF(A118="","",B$3) ->  | H118: =IF(B118="","",IF(K118=5,(SUM(C118:G118)-MAX(C118:G118)-MIN(C118:G118))/3,IF(K118=4,(SUM(C118:G118)-MAX(C118:G118))/3,SUM(C118:G118)/3))*B118/7.6) ->  | K118: 0
A119: =IF(Draw!E118=0,"",Draw!E118) ->  | K119: 0
A120: =IF(Draw!E119=0,"",Draw!E119) ->  | B120: =IF(A120="","",B$3) ->  | H120: =IF(B120="","",IF(K120=5,(SUM(C120:G120)-MAX(C120:G120)-MIN(C120:G120))/3,IF(K120=4,(SUM(C120:G120)-MAX(C120:G120))/3,SUM(C120:G120)/3))*B120/7.6) ->  | K120: 0
A121: =IF(Draw!E120=0,"",Draw!E120) ->  | K121: 0
A122: =IF(Draw!E121=0,"",Draw!E121) ->  | B122: =IF(A122="","",B$3) ->  | H122: =IF(B122="","",IF(K122=5,(SUM(C122:G122)-MAX(C122:G122)-MIN(C122:G122))/3,IF(K122=4,(SUM(C122:G122)-MAX(C122:G122))/3,SUM(C122:G122)/3))*B122/7.6) ->  | K122: 0
A123: =IF(Draw!E122=0,"",Draw!E122) ->  | K123: 0
A124: =IF(Draw!E123=0,"",Draw!E123) ->  | B124: =IF(A124="","",B$3) ->  | H124: =IF(B124="","",IF(K124=5,(SUM(C124:G124)-MAX(C124:G124)-MIN(C124:G124))/3,IF(K124=4,(SUM(C124:G124)-MAX(C124:G124))/3,SUM(C124:G124)/3))*B124/7.6) ->  | K124: 0
A125: =IF(Draw!E124=0,"",Draw!E124) ->  | K125: 0
A126: =IF(Draw!E125=0,"",Draw!E125) ->  | B126: =IF(A126="","",B$3) ->  | H126: =IF(B126="","",IF(K126=5,(SUM(C126:G126)-MAX(C126:G126)-MIN(C126:G126))/3,IF(K126=4,(SUM(C126:G126)-MAX(C126:G126))/3,SUM(C126:G126)/3))*B126/7.6) ->  | K126: 0
A127: =IF(Draw!E126=0,"",Draw!E126) ->  | K127: 0
A128: =IF(Draw!E127=0,"",Draw!E127) ->  | B128: =IF(A128="","",B$3) ->  | H128: =IF(B128="","",IF(K128=5,(SUM(C128:G128)-MAX(C128:G128)-MIN(C128:G128))/3,IF(K128=4,(SUM(C128:G128)-MAX(C128:G128))/3,SUM(C128:G128)/3))*B128/7.6) ->  | K128: 0
A129: =IF(Draw!E128=0,"",Draw!E128) ->  | K129: 0
A130: =IF(Draw!E129=0,"",Draw!E129) ->  | B130: =IF(A130="","",B$3) ->  | H130: =IF(B130="","",IF(K130=5,(SUM(C130:G130)-MAX(C130:G130)-MIN(C130:G130))/3,IF(K130=4,(SUM(C130:G130)-MAX(C130:G130))/3,SUM(C130:G130)/3))*B130/7.6) ->  | K130: 0
A131: =IF(Draw!E130=0,"",Draw!E130) ->  | K131: 0
A132: =IF(Draw!E131=0,"",Draw!E131) ->  | B132: =IF(A132="","",B$3) ->  | H132: =IF(B132="","",IF(K132=5,(SUM(C132:G132)-MAX(C132:G132)-MIN(C132:G132))/3,IF(K132=4,(SUM(C132:G132)-MAX(C132:G132))/3,SUM(C132:G132)/3))*B132/7.6) ->  | K132: =COUNT(C132:G132) -> 0
A133: =IF(Draw!E132=0,"",Draw!E132) ->  | K133: 0
A134: =IF(Draw!E133=0,"",Draw!E133) ->  | B134: =IF(A134="","",B$3) ->  | H134: =IF(B134="","",IF(K134=5,(SUM(C134:G134)-MAX(C134:G134)-MIN(C134:G134))/3,IF(K134=4,(SUM(C134:G134)-MAX(C134:G134))/3,SUM(C134:G134)/3))*B134/7.6) ->  | K134: 0
A135: =IF(Draw!E134=0,"",Draw!E134) ->  | K135: 0
A136: =IF(Draw!E135=0,"",Draw!E135) ->  | B136: =IF(A136="","",B$3) ->  | H136: =IF(B136="","",IF(K136=5,(SUM(C136:G136)-MAX(C136:G136)-MIN(C136:G136))/3,IF(K136=4,(SUM(C136:G136)-MAX(C136:G136))/3,SUM(C136:G136)/3))*B136/7.6) ->  | K136: 0
A137: =IF(Draw!E136=0,"",Draw!E136) ->  | K137: 0
A138: =IF(Draw!E137=0,"",Draw!E137) ->  | B138: =IF(A138="","",B$3) ->  | H138: =IF(B138="","",IF(K138=5,(SUM(C138:G138)-MAX(C138:G138)-MIN(C138:G138))/3,IF(K138=4,(SUM(C138:G138)-MAX(C138:G138))/3,SUM(C138:G138)/3))*B138/7.6) ->  | K138: 0
A139: =IF(Draw!E138=0,"",Draw!E138) ->  | K139: 0
A140: =IF(Draw!E139=0,"",Draw!E139) ->  | B140: =IF(A140="","",B$3) ->  | H140: =IF(B140="","",IF(K140=5,(SUM(C140:G140)-MAX(C140:G140)-MIN(C140:G140))/3,IF(K140=4,(SUM(C140:G140)-MAX(C140:G140))/3,SUM(C140:G140)/3))*B140/7.6) ->  | K140: 0
A141: =IF(Draw!E140=0,"",Draw!E140) ->  | K141: 0
A142: =IF(Draw!E141=0,"",Draw!E141) ->  | B142: =IF(A142="","",B$3) ->  | H142: =IF(B142="","",IF(K142=5,(SUM(C142:G142)-MAX(C142:G142)-MIN(C142:G142))/3,IF(K142=4,(SUM(C142:G142)-MAX(C142:G142))/3,SUM(C142:G142)/3))*B142/7.6) ->  | K142: 0
A143: =IF(Draw!E142=0,"",Draw!E142) ->  | K143: 0
A144: =IF(Draw!E143=0,"",Draw!E143) ->  | B144: =IF(A144="","",B$3) ->  | H144: =IF(B144="","",IF(K144=5,(SUM(C144:G144)-MAX(C144:G144)-MIN(C144:G144))/3,IF(K144=4,(SUM(C144:G144)-MAX(C144:G144))/3,SUM(C144:G144)/3))*B144/7.6) ->  | K144: 0
A145: =IF(Draw!E144=0,"",Draw!E144) ->  | K145: 0
A146: =IF(Draw!E145=0,"",Draw!E145) ->  | B146: =IF(A146="","",B$3) ->  | H146: =IF(B146="","",IF(K146=5,(SUM(C146:G146)-MAX(C146:G146)-MIN(C146:G146))/3,IF(K146=4,(SUM(C146:G146)-MAX(C146:G146))/3,SUM(C146:G146)/3))*B146/7.6) ->  | K146: 0
A147: =IF(Draw!E146=0,"",Draw!E146) ->  | K147: 0
A148: =IF(Draw!E147=0,"",Draw!E147) ->  | B148: =IF(A148="","",B$3) ->  | H148: =IF(B148="","",IF(K148=5,(SUM(C148:G148)-MAX(C148:G148)-MIN(C148:G148))/3,IF(K148=4,(SUM(C148:G148)-MAX(C148:G148))/3,SUM(C148:G148)/3))*B148/7.6) ->  | K148: 0
A149: =IF(Draw!E148=0,"",Draw!E148) ->  | K149: 0
A150: =IF(Draw!E149=0,"",Draw!E149) ->  | B150: =IF(A150="","",B$3) ->  | H150: =IF(B150="","",IF(K150=5,(SUM(C150:G150)-MAX(C150:G150)-MIN(C150:G150))/3,IF(K150=4,(SUM(C150:G150)-MAX(C150:G150))/3,SUM(C150:G150)/3))*B150/7.6) ->  | K150: 0

Sheet Totals
A1: # | B1: Swimmer | C1: School | D1: Total Score | E1: Place | F1: Figure 1 | G1: Figure 2 | H1: Figure 3 | I1: Figure 4 | J1: Penalties | K1: Score
A2: =IF(Draw!E2=0,"",Draw!E2) -> 1 | B2: Anna Stockinger | C2: Forest Lake | D2: =IF($A2="","",SUM(F2:I2)-J2) -> 55.95175439 | E2: =IF($A2="","",RANK(D2,D$2:D$150)) -> 23 | F2: =IF($A2="","",'Fig 1 Ballet Leg'!H3) -> 11.71929825 | G2: =IF($A2="","",'Fig 2 Barracuda'!H3) -> 15.87719298 | H2: =IF($A2="","",'Fig 3 Neptunus'!H3) -> 12.78947368 | I2: =IF($A2="","",'Fig 4 Walkover'!H3) -> 15.56578947 | J2: =IF($A2="","",'Fig 1 Ballet Leg'!I3+'Fig 2 Barracuda'!I3+'Fig 3 Neptunus'!I3+'Fig 4 Walkover'!I3) -> 0 | K2: =IF($A2="","",IF(A2="","",VLOOKUP(E2,AX$3:AY$102,2,FALSE))) -> 0
A3: =IF(Draw!E3=0,"",Draw!E3) -> 2 | B3: Abigail Tollas | C3: Osseo-Maple Grove | D3: =IF($A3="","",SUM(F3:I3)-J3) -> 54.47368421 | E3: =IF($A3="","",RANK(D3,D$2:D$150)) -> 33 | F3: =IF($A3="","",'Fig 1 Ballet Leg'!H4) -> 11.78947368 | G3: =IF($A3="","",'Fig 2 Barracuda'!H4) -> 14.21052632 | H3: =IF($A3="","",'Fig 3 Neptunus'!H4) -> 12.63157895 | I3: =IF($A3="","",'Fig 4 Walkover'!H4) -> 15.84210526 | J3: =IF($A3="","",'Fig 1 Ballet Leg'!I4+'Fig 2 Barracuda'!I4+'Fig 3 Neptunus'!I4+'Fig 4 Walkover'!I4) -> 0 | K3: =IF($A3="","",IF(A3="","",VLOOKUP(E3,AX$3:AY$102,2,FALSE))) -> 0 | AX3: 1 | AY3: 8
A4: 3 | B4: Tessa Crohn | C4: Forest Lake | D4: 55.3245614 | E4: 26 | F4: =IF($A4="","",'Fig 1 Ballet Leg'!H5) -> 11.15789474 | G4: =IF($A4="","",'Fig 2 Barracuda'!H5) -> 15.87719298 | H4: =IF($A4="","",'Fig 3 Neptunus'!H5) -> 12.63157895 | I4: =IF($A4="","",'Fig 4 Walkover'!H5) -> 15.65789474 | J4: =IF($A4="","",'Fig 1 Ballet Leg'!I5+'Fig 2 Barracuda'!I5+'Fig 3 Neptunus'!I5+'Fig 4 Walkover'!I5) -> 0 | K4: 0 | AX4: 2 | AY4: 6
A5: 4 | B5: Ella Anderson | C5: Forest Lake | D5: =IF($A5="","",SUM(F5:I5)-J5) -> 55.15789474 | E5: =IF($A5="","",RANK(D5,D$2:D$150)) -> 27 | F5: =IF($A5="","",'Fig 1 Ballet Leg'!H6) -> 11.78947368 | G5: =IF($A5="","",'Fig 2 Barracuda'!H6) -> 15 | H5: =IF($A5="","",'Fig 3 Neptunus'!H6) -> 13.26315789 | I5: =IF($A5="","",'Fig 4 Walkover'!H6) -> 15.10526316 | J5: =IF($A5="","",'Fig 1 Ballet Leg'!I6+'Fig 2 Barracuda'!I6+'Fig 3 Neptunus'!I6+'Fig 4 Walkover'!I6) -> 0 | K5: =IF($A5="","",IF(A5="","",VLOOKUP(E5,AX$3:AY$102,2,FALSE))) -> 0 | AX5: 3 | AY5: 5
A6: 5 | B6: Lydia Bergeron | C6: Forest Lake | D6: 57.04824561 | E6: 16 | F6: =IF($A6="","",'Fig 1 Ballet Leg'!H7) -> 12.07017544 | G6: =IF($A6="","",'Fig 2 Barracuda'!H7) -> 14.64912281 | H6: =IF($A6="","",'Fig 3 Neptunus'!H7) -> 14.21052632 | I6: =IF($A6="","",'Fig 4 Walkover'!H7) -> 16.11842105 | J6: =IF($A6="","",'Fig 1 Ballet Leg'!I7+'Fig 2 Barracuda'!I7+'Fig 3 Neptunus'!I7+'Fig 4 Walkover'!I7) -> 0 | K6: 0 | AX6: 4 | AY6: 4
A7: 6 | B7: Elena Vrba | C7: Osseo-Maple Grove | D7: 53.88596491 | E7: 36 | F7: =IF($A7="","",'Fig 1 Ballet Leg'!H8) -> 11.57894737 | G7: =IF($A7="","",'Fig 2 Barracuda'!H8) -> 14.12280702 | H7: =IF($A7="","",'Fig 3 Neptunus'!H8) -> 13.26315789 | I7: =IF($A7="","",'Fig 4 Walkover'!H8) -> 14.92105263 | J7: =IF($A7="","",'Fig 1 Ballet Leg'!I8+'Fig 2 Barracuda'!I8+'Fig 3 Neptunus'!I8+'Fig 4 Walkover'!I8) -> 0 | K7: 0 | AX7: 5 | AY7: 3
A8: 7 | B8: Hannah Littel | C8: Osseo-Maple Grove | D8: 54.78070175 | E8: 30 | F8: =IF($A8="","",'Fig 1 Ballet Leg'!H9) -> 11.22807018 | G8: =IF($A8="","",'Fig 2 Barracuda'!H9) -> 13.68421053 | H8: =IF($A8="","",'Fig 3 Neptunus'!H9) -> 13.65789474 | I8: =IF($A8="","",'Fig 4 Walkover'!H9) -> 16.21052632 | J8: =IF($A8="","",'Fig 1 Ballet Leg'!I9+'Fig 2 Barracuda'!I9+'Fig 3 Neptunus'!I9+'Fig 4 Walkover'!I9) -> 0 | K8: 0 | AX8: 6 | AY8: 2
A9: 8 | B9: Megan Ihfe | C9: Forest Lake | D9: 56.21052632 | E9: 18 | F9: =IF($A9="","",'Fig 1 Ballet Leg'!H10) -> 11.64912281 | G9: =IF($A9="","",'Fig 2 Barracuda'!H10) -> 14.56140351 | H9: =IF($A9="","",'Fig 3 Neptunus'!H10) -> 13.97368421 | I9: =IF($A9="","",'Fig 4 Walkover'!H10) -> 16.02631579 | J9: =IF($A9="","",'Fig 1 Ballet Leg'!I10+'Fig 2 Barracuda'!I10+'Fig 3 Neptunus'!I10+'Fig 4 Walkover'!I10) -> 0 | K9: 0 | AX9: 7 | AY9: 1
A10: 9 | B10: Katherine Olsen | C10: Osseo-Maple Grove | D10: 49.92982456 | E10: 49 | F10: =IF($A10="","",'Fig 1 Ballet Leg'!H11) -> 10.66666667 | G10: =IF($A10="","",'Fig 2 Barracuda'!H11) -> 13.42105263 | H10: =IF($A10="","",'Fig 3 Neptunus'!H11) -> 11.28947368 | I10: =IF($A10="","",'Fig 4 Walkover'!H11) -> 14.55263158 | J10: =IF($A10="","",'Fig 1 Ballet Leg'!I11+'Fig 2 Barracuda'!I11+'Fig 3 Neptunus'!I11+'Fig 4 Walkover'!I11) -> 0 | K10: 0 | AX10: 8 | AY10: 0
A11: 10 | B11: Leigh Boettner Johnson | C11: Forest Lake | D11: 48.81578947 | E11: 51 | F11: =IF($A11="","",'Fig 1 Ballet Leg'!H12) -> 10.24561404 | G11: =IF($A11="","",'Fig 2 Barracuda'!H12) -> 13.07017544 | H11: =IF($A11="","",'Fig 3 Neptunus'!H12) -> 11.13157895 | I11: =IF($A11="","",'Fig 4 Walkover'!H12) -> 14.36842105 | J11: =IF($A11="","",'Fig 1 Ballet Leg'!I12+'Fig 2 Barracuda'!I12+'Fig 3 Neptunus'!I12+'Fig 4 Walkover'!I12) -> 0 | K11: 0 | AX11: 9 | AY11: 0
A12: 11 | B12: Alise Ostercamp | C12: Forest Lake | D12: 54.03508772 | E12: 35 | F12: =IF($A12="","",'Fig 1 Ballet Leg'!H13) -> 11.85964912 | G12: =IF($A12="","",'Fig 2 Barracuda'!H13) -> 14.38596491 | H12: =IF($A12="","",'Fig 3 Neptunus'!H13) -> 12.86842105 | I12: =IF($A12="","",'Fig 4 Walkover'!H13) -> 14.92105263 | J12: =IF($A12="","",'Fig 1 Ballet Leg'!I13+'Fig 2 Barracuda'!I13+'Fig 3 Neptunus'!I13+'Fig 4 Walkover'!I13) -> 0 | K12: 0 | AX12: 10 | AY12: 0
A13: 12 | B13: Lindsey Biebl | C13: Forest Lake | D13: 54.39912281 | E13: 34 | F13: =IF($A13="","",'Fig 1 Ballet Leg'!H14) -> 11.50877193 | G13: =IF($A13="","",'Fig 2 Barracuda'!H14) -> 15.0877193 | H13: =IF($A13="","",'Fig 3 Neptunus'!H14) -> 13.34210526 | I13: =IF($A13="","",'Fig 4 Walkover'!H14) -> 14.46052632 | J13: =IF($A13="","",'Fig 1 Ballet Leg'!I14+'Fig 2 Barracuda'!I14+'Fig 3 Neptunus'!I14+'Fig 4 Walkover'!I14) -> 0 | K13: 0 | AX13: 11 | AY13: 0
A14: 13 | B14: Gabriela Marick | C14: Osseo-Maple Grove | D14: 57.38157895 | E14: 15 | F14: =IF($A14="","",'Fig 1 Ballet Leg'!H15) -> 12.28070175 | G14: =IF($A14="","",'Fig 2 Barracuda'!H15) -> 15.0877193 | H14: =IF($A14="","",'Fig 3 Neptunus'!H15) -> 14.44736842 | I14: =IF($A14="","",'Fig 4 Walkover'!H15) -> 15.56578947 | J14: =IF($A14="","",'Fig 1 Ballet Leg'!I15+'Fig 2 Barracuda'!I15+'Fig 3 Neptunus'!I15+'Fig 4 Walkover'!I15) -> 0 | K14: 0 | AX14: 12 | AY14: 0
A15: 14 | B15: Emma Stockinger | C15: Forest Lake | D15: 55.75 | E15: 24 | F15: =IF($A15="","",'Fig 1 Ballet Leg'!H16) -> 11.22807018 | G15: =IF($A15="","",'Fig 2 Barracuda'!H16) -> 15.35087719 | H15: =IF($A15="","",'Fig 3 Neptunus'!H16) -> 13.42105263 | I15: =IF($A15="","",'Fig 4 Walkover'!H16) -> 15.75 | J15: =IF($A15="","",'Fig 1 Ballet Leg'!I16+'Fig 2 Barracuda'!I16+'Fig 3 Neptunus'!I16+'Fig 4 Walkover'!I16) -> 0 | K15: 0 | AX15: 13 | AY15: 0
A16: 15 | B16: Sierra Nutter | C16: Forest Lake | D16: 52.73245614 | E16: 40 | F16: =IF($A16="","",'Fig 1 Ballet Leg'!H17) -> 10.66666667 | G16: =IF($A16="","",'Fig 2 Barracuda'!H17) -> 13.94736842 | H16: =IF($A16="","",'Fig 3 Neptunus'!H17) -> 13.10526316 | I16: =IF($A16="","",'Fig 4 Walkover'!H17) -> 15.01315789 | J16: =IF($A16="","",'Fig 1 Ballet Leg'!I17+'Fig 2 Barracuda'!I17+'Fig 3 Neptunus'!I17+'Fig 4 Walkover'!I17) -> 0 | K16: 0 | AX16: 14 | AY16: 0
A17: 16 | B17: Rachel Knox | C17: Osseo-Maple Grove | D17: 0 | E17: 55 | F17: =IF($A17="","",'Fig 1 Ballet Leg'!H18) -> 0 | G17: =IF($A17="","",'Fig 2 Barracuda'!H18) -> 0 | H17: =IF($A17="","",'Fig 3 Neptunus'!H18) -> 0 | I17: =IF($A17="","",'Fig 4 Walkover'!H18) -> 0 | J17: =IF($A17="","",'Fig 1 Ballet Leg'!I18+'Fig 2 Barracuda'!I18+'Fig 3 Neptunus'!I18+'Fig 4 Walkover'!I18) -> 0 | K17: 0 | AX17: 15 | AY17: 0
A18: 17 | B18: LaCresia Meyer | C18: Forest Lake | D18: 56.1754386 | E18: 19 | F18: =IF($A18="","",'Fig 1 Ballet Leg'!H19) -> 11.57894737 | G18: =IF($A18="","",'Fig 2 Barracuda'!H19) -> 15.43859649 | H18: =IF($A18="","",'Fig 3 Neptunus'!H19) -> 14.05263158 | I18: =IF($A18="","",'Fig 4 Walkover'!H19) -> 15.10526316 | J18: =IF($A18="","",'Fig 1 Ballet Leg'!I19+'Fig 2 Barracuda'!I19+'Fig 3 Neptunus'!I19+'Fig 4 Walkover'!I19) -> 0 | K18: 0 | AX18: 16 | AY18: 0
A19: 18 | B19: Emily Ostercamp | C19: Forest Lake | D19: 57.46491228 | E19: 14 | F19: =IF($A19="","",'Fig 1 Ballet Leg'!H20) -> 11.78947368 | G19: =IF($A19="","",'Fig 2 Barracuda'!H20) -> 15.1754386 | H19: =IF($A19="","",'Fig 3 Neptunus'!H20) -> 14.28947368 | I19: =IF($A19="","",'Fig 4 Walkover'!H20) -> 16.21052632 | J19: =IF($A19="","",'Fig 1 Ballet Leg'!I20+'Fig 2 Barracuda'!I20+'Fig 3 Neptunus'!I20+'Fig 4 Walkover'!I20) -> 0 | K19: 0 | AX19: 17 | AY19: 0
A20: 19 | B20: Naomi Krueger | C20: Forest Lake | D20: 52.80263158 | E20: 39 | F20: =IF($A20="","",'Fig 1 Ballet Leg'!H21) -> 11.22807018 | G20: =IF($A20="","",'Fig 2 Barracuda'!H21) -> 14.8245614 | H20: =IF($A20="","",'Fig 3 Neptunus'!H21) -> 12.47368421 | I20: =IF($A20="","",'Fig 4 Walkover'!H21) -> 14.27631579 | J20: =IF($A20="","",'Fig 1 Ballet Leg'!I21+'Fig 2 Barracuda'!I21+'Fig 3 Neptunus'!I21+'Fig 4 Walkover'!I21) -> 0 | K20: 0 | AX20: 18 | AY20: 0
A21: 20 | B21: Jessica Hentges | C21: Forest Lake | D21: 53.47807018 | E21: 37 | F21: =IF($A21="","",'Fig 1 Ballet Leg'!H22) -> 11.43859649 | G21: =IF($A21="","",'Fig 2 Barracuda'!H22) -> 14.47368421 | H21: =IF($A21="","",'Fig 3 Neptunus'!H22) -> 13.10526316 | I21: =IF($A21="","",'Fig 4 Walkover'!H22) -> 14.46052632 | J21: =IF($A21="","",'Fig 1 Ballet Leg'!I22+'Fig 2 Barracuda'!I22+'Fig 3 Neptunus'!I22+'Fig 4 Walkover'!I22) -> 0 | K21: 0 | AX21: 19 | AY21: 0
A22: 21 | B22: Bridget Beynon | C22: Forest Lake | D22: 54.49122807 | E22: 32 | F22: =IF($A22="","",'Fig 1 Ballet Leg'!H23) -> 11.50877193 | G22: =IF($A22="","",'Fig 2 Barracuda'!H23) -> 15.35087719 | H22: =IF($A22="","",'Fig 3 Neptunus'!H23) -> 13.26315789 | I22: =IF($A22="","",'Fig 4 Walkover'!H23) -> 14.36842105 | J22: =IF($A22="","",'Fig 1 Ballet Leg'!I23+'Fig 2 Barracuda'!I23+'Fig 3 Neptunus'!I23+'Fig 4 Walkover'!I23) -> 0 | K22: 0 | AX22: 20 | AY22: 0
A23: 22 | B23: Emily Barr | C23: Osseo-Maple Grove | D23: 51.00877193 | E23: 45 | F23: =IF($A23="","",'Fig 1 Ballet Leg'!H24) -> 10.03508772 | G23: =IF($A23="","",'Fig 2 Barracuda'!H24) -> 13.94736842 | H23: =IF($A23="","",'Fig 3 Neptunus'!H24) -> 12.47368421 | I23: =IF($A23="","",'Fig 4 Walkover'!H24) -> 14.55263158 | J23: =IF($A23="","",'Fig 1 Ballet Leg'!I24+'Fig 2 Barracuda'!I24+'Fig 3 Neptunus'!I24+'Fig 4 Walkover'!I24) -> 0 | K23: 0 | AX23: 21 | AY23: 0
A24: 23 | B24: Michelle Perkins | C24: Forest Lake | D24: 61.5877193 | E24: 5 | F24: =IF($A24="","",'Fig 1 Ballet Leg'!H25) -> 12.98245614 | G24: =IF($A24="","",'Fig 2 Barracuda'!H25) -> 16.57894737 | H24: =IF($A24="","",'Fig 3 Neptunus'!H25) -> 15.07894737 | I24: =IF($A24="","",'Fig 4 Walkover'!H25) -> 16.94736842 | J24: =IF($A24="","",'Fig 1 Ballet Leg'!I25+'Fig 2 Barracuda'!I25+'Fig 3 Neptunus'!I25+'Fig 4 Walkover'!I25) -> 0 | K24: 3 | AX24: 22 | AY24: 0
A25: 24 | B25: Malissa Ball | C25: Forest Lake | D25: 51.17105263 | E25: 43 | F25: =IF($A25="","",'Fig 1 Ballet Leg'!H26) -> 11.57894737 | G25: =IF($A25="","",'Fig 2 Barracuda'!H26) -> 13.42105263 | H25: =IF($A25="","",'Fig 3 Neptunus'!H26) -> 11.52631579 | I25: =IF($A25="","",'Fig 4 Walkover'!H26) -> 14.64473684 | J25: =IF($A25="","",'Fig 1 Ballet Leg'!I26+'Fig 2 Barracuda'!I26+'Fig 3 Neptunus'!I26+'Fig 4 Walkover'!I26) -> 0 | K25: 0 | AX25: 23 | AY25: 0
A26: 25 | B26: Heather Breidenbach | C26: Osseo-Maple Grove | D26: 47.07017544 | E26: 54 | F26: =IF($A26="","",'Fig 1 Ballet Leg'!H27) -> 10.10526316 | G26: =IF($A26="","",'Fig 2 Barracuda'!H27) -> 12.54385965 | H26: =IF($A26="","",'Fig 3 Neptunus'!H27) -> 10.97368421 | I26: =IF($A26="","",'Fig 4 Walkover'!H27) -> 13.44736842 | J26: =IF($A26="","",'Fig 1 Ballet Leg'!I27+'Fig 2 Barracuda'!I27+'Fig 3 Neptunus'!I27+'Fig 4 Walkover'!I27) -> 0 | K26: 0 | AX26: 24 | AY26: 0
A27: 26 | B27: Dani Sardeson | C27: Forest Lake | D27: 61.35087719 | E27: 6 | F27: =IF($A27="","",'Fig 1 Ballet Leg'!H28) -> 12.49122807 | G27: =IF($A27="","",'Fig 2 Barracuda'!H28) -> 15.96491228 | H27: =IF($A27="","",'Fig 3 Neptunus'!H28) -> 15.39473684 | I27: =IF($A27="","",'Fig 4 Walkover'!H28) -> 17.5 | J27: =IF($A27="","",'Fig 1 Ballet Leg'!I28+'Fig 2 Barracuda'!I28+'Fig 3 Neptunus'!I28+'Fig 4 Walkover'!I28) -> 0 | K27: 2 | AX27: 25 | AY27: 0
A28: 27 | B28: Amanda Pothen | C28: Forest Lake | D28: 59.89912281 | E28: 11 | F28: =IF($A28="","",'Fig 1 Ballet Leg'!H29) -> 11.85964912 | G28: =IF($A28="","",'Fig 2 Barracuda'!H29) -> 16.05263158 | H28: =IF($A28="","",'Fig 3 Neptunus'!H29) -> 14.76315789 | I28: =IF($A28="","",'Fig 4 Walkover'!H29) -> 17.22368421 | J28: =IF($A28="","",'Fig 1 Ballet Leg'!I29+'Fig 2 Barracuda'!I29+'Fig 3 Neptunus'!I29+'Fig 4 Walkover'!I29) -> 0 | K28: 0 | AX28: 26 | AY28: 0
A29: 28 | B29: Lacey Wedell | C29: Forest Lake | D29: 60.02192982 | E29: 9 | F29: =IF($A29="","",'Fig 1 Ballet Leg'!H30) -> 13.05263158 | G29: =IF($A29="","",'Fig 2 Barracuda'!H30) -> 16.14035088 | H29: =IF($A29="","",'Fig 3 Neptunus'!H30) -> 15.07894737 | I29: =IF($A29="","",'Fig 4 Walkover'!H30) -> 15.75 | J29: =IF($A29="","",'Fig 1 Ballet Leg'!I30+'Fig 2 Barracuda'!I30+'Fig 3 Neptunus'!I30+'Fig 4 Walkover'!I30) -> 0 | K29: 0 | AX29: 27 | AY29: 0
A30: 29 | B30: Andrea Dunrud | C30: Forest Lake | D30: 67.9254386 | E30: 1 | F30: =IF($A30="","",'Fig 1 Ballet Leg'!H31) -> 14.31578947 | G30: =IF($A30="","",'Fig 2 Barracuda'!H31) -> 17.80701754 | H30: =IF($A30="","",'Fig 3 Neptunus'!H31) -> 16.73684211 | I30: =IF($A30="","",'Fig 4 Walkover'!H31) -> 19.06578947 | J30: =IF($A30="","",'Fig 1 Ballet Leg'!I31+'Fig 2 Barracuda'!I31+'Fig 3 Neptunus'!I31+'Fig 4 Walkover'!I31) -> 0 | K30: 8 | AX30: 28 | AY30: 0
A31: 30 | B31: Marie Vanderwarn | C31: Osseo-Maple Grove | D31: 54.81140351 | E31: 29 | F31: =IF($A31="","",'Fig 1 Ballet Leg'!H32) -> 11.71929825 | G31: =IF($A31="","",'Fig 2 Barracuda'!H32) -> 14.21052632 | H31: =IF($A31="","",'Fig 3 Neptunus'!H32) -> 12.94736842 | I31: =IF($A31="","",'Fig 4 Walkover'!H32) -> 15.93421053 | J31: =IF($A31="","",'Fig 1 Ballet Leg'!I32+'Fig 2 Barracuda'!I32+'Fig 3 Neptunus'!I32+'Fig 4 Walkover'!I32) -> 0 | K31: 0 | AX31: 29 | AY31: 0
A32: 31 | B32: Elisabeth Heitzig | C32: Osseo-Maple Grove | D32: 56.0877193 | E32: 22 | F32: =IF($A32="","",'Fig 1 Ballet Leg'!H33) -> 11.57894737 | G32: =IF($A32="","",'Fig 2 Barracuda'!H33) -> 14.03508772 | H32: =IF($A32="","",'Fig 3 Neptunus'!H33) -> 14.44736842 | I32: =IF($A32="","",'Fig 4 Walkover'!H33) -> 16.02631579 | J32: =IF($A32="","",'Fig 1 Ballet Leg'!I33+'Fig 2 Barracuda'!I33+'Fig 3 Neptunus'!I33+'Fig 4 Walkover'!I33) -> 0 | K32: 0 | AX32: 30 | AY32: 0
A33: 32 | B33: Mika Peterson | C33: Forest Lake | D33: 62.65350877 | E33: 4 | F33: =IF($A33="","",'Fig 1 Ballet Leg'!H34) -> 12.98245614 | G33: =IF($A33="","",'Fig 2 Barracuda'!H34) -> 16.57894737 | H33: =IF($A33="","",'Fig 3 Neptunus'!H34) -> 15.31578947 | I33: =IF($A33="","",'Fig 4 Walkover'!H34) -> 17.77631579 | J33: =IF($A33="","",'Fig 1 Ballet Leg'!I34+'Fig 2 Barracuda'!I34+'Fig 3 Neptunus'!I34+'Fig 4 Walkover'!I34) -> 0 | K33: 4 | AX33: 31 | AY33: 0
A34: 33 | B34: Kelly McNamee | C34: Osseo-Maple Grove | D34: 50.14035088 | E34: 48 | F34: =IF($A34="","",'Fig 1 Ballet Leg'!H35) -> 11.29824561 | G34: =IF($A34="","",'Fig 2 Barracuda'!H35) -> 13.68421053 | H34: =IF($A34="","",'Fig 3 Neptunus'!H35) -> 12.07894737 | I34: =IF($A34="","",'Fig 4 Walkover'!H35) -> 13.07894737 | J34: =IF($A34="","",'Fig 1 Ballet Leg'!I35+'Fig 2 Barracuda'!I35+'Fig 3 Neptunus'!I35+'Fig 4 Walkover'!I35) -> 0 | K34: 0 | AX34: 32 | AY34: 0
A35: 34 | B35: Mia Janisch | C35: Forest Lake | D35: 50.92982456 | E35: 46 | F35: =IF($A35="","",'Fig 1 Ballet Leg'!H36) -> 11.01754386 | G35: =IF($A35="","",'Fig 2 Barracuda'!H36) -> 13.59649123 | H35: =IF($A35="","",'Fig 3 Neptunus'!H36) -> 11.76315789 | I35: =IF($A35="","",'Fig 4 Walkover'!H36) -> 14.55263158 | J35: =IF($A35="","",'Fig 1 Ballet Leg'!I36+'Fig 2 Barracuda'!I36+'Fig 3 Neptunus'!I36+'Fig 4 Walkover'!I36) -> 0 | K35: 0 | AX35: 33 | AY35: 0
A36: 35 | B36: Jane Burk | C36: Forest Lake | D36: 53.47807018 | E36: 37 | F36: =IF($A36="","",'Fig 1 Ballet Leg'!H37) -> 11.50877193 | G36: =IF($A36="","",'Fig 2 Barracuda'!H37) -> 15.87719298 | H36: =IF($A36="","",'Fig 3 Neptunus'!H37) -> 12 | I36: =IF($A36="","",'Fig 4 Walkover'!H37) -> 14.09210526 | J36: =IF($A36="","",'Fig 1 Ballet Leg'!I37+'Fig 2 Barracuda'!I37+'Fig 3 Neptunus'!I37+'Fig 4 Walkover'!I37) -> 0 | K36: 0 | AX36: 34 | AY36: 0
A37: 36 | B37: Moriah Ulbricht | C37: Forest Lake | D37: 54.51315789 | E37: 31 | F37: =IF($A37="","",'Fig 1 Ballet Leg'!H38) -> 11.36842105 | G37: =IF($A37="","",'Fig 2 Barracuda'!H38) -> 13.94736842 | H37: =IF($A37="","",'Fig 3 Neptunus'!H38) -> 13.26315789 | I37: =IF($A37="","",'Fig 4 Walkover'!H38) -> 15.93421053 | J37: =IF($A37="","",'Fig 1 Ballet Leg'!I38+'Fig 2 Barracuda'!I38+'Fig 3 Neptunus'!I38+'Fig 4 Walkover'!I38) -> 0 | K37: 0 | AX37: 35 | AY37: 0
A38: 37 | B38: Elizabeth Campbell | C38: Forest Lake | D38: 54.96929825 | E38: 28 | F38: =IF($A38="","",'Fig 1 Ballet Leg'!H39) -> 11.71929825 | G38: =IF($A38="","",'Fig 2 Barracuda'!H39) -> 14.21052632 | H38: =IF($A38="","",'Fig 3 Neptunus'!H39) -> 13.65789474 | I38: =IF($A38="","",'Fig 4 Walkover'!H39) -> 15.38157895 | J38: =IF($A38="","",'Fig 1 Ballet Leg'!I39+'Fig 2 Barracuda'!I39+'Fig 3 Neptunus'!I39+'Fig 4 Walkover'!I39) -> 0 | K38: 0 | AX38: 36 | AY38: 0
A39: 38 | B39: Annie Larson | C39: Forest Lake | D39: 49.71491228 | E39: 50 | F39: =IF($A39="","",'Fig 1 Ballet Leg'!H40) -> 10.80701754 | G39: =IF($A39="","",'Fig 2 Barracuda'!H40) -> 13.94736842 | H39: =IF($A39="","",'Fig 3 Neptunus'!H40) -> 12.15789474 | I39: =IF($A39="","",'Fig 4 Walkover'!H40) -> 12.80263158 | J39: =IF($A39="","",'Fig 1 Ballet Leg'!I40+'Fig 2 Barracuda'!I40+'Fig 3 Neptunus'!I40+'Fig 4 Walkover'!I40) -> 0 | K39: 0 | AX39: 37 | AY39: 0
A40: 39 | B40: Danielle Hawes | C40: Osseo-Maple Grove | D40: 56.10087719 | E40: 21 | F40: =IF($A40="","",'Fig 1 Ballet Leg'!H41) -> 11.0877193 | G40: =IF($A40="","",'Fig 2 Barracuda'!H41) -> 14.21052632 | H40: =IF($A40="","",'Fig 3 Neptunus'!H41) -> 14.13157895 | I40: =IF($A40="","",'Fig 4 Walkover'!H41) -> 16.67105263 | J40: =IF($A40="","",'Fig 1 Ballet Leg'!I41+'Fig 2 Barracuda'!I41+'Fig 3 Neptunus'!I41+'Fig 4 Walkover'!I41) -> 0 | K40: 0 | AX40: 38 | AY40: 0
A41: 40 | B41: Paige Thurnbeck | C41: Forest Lake | D41: 60.09649123 | E41: 8 | F41: =IF($A41="","",'Fig 1 Ballet Leg'!H42) -> 12.56140351 | G41: =IF($A41="","",'Fig 2 Barracuda'!H42) -> 15.61403509 | H41: =IF($A41="","",'Fig 3 Neptunus'!H42) -> 14.60526316 | I41: =IF($A41="","",'Fig 4 Walkover'!H42) -> 17.31578947 | J41: =IF($A41="","",'Fig 1 Ballet Leg'!I42+'Fig 2 Barracuda'!I42+'Fig 3 Neptunus'!I42+'Fig 4 Walkover'!I42) -> 0 | K41: 0 | AX41: 39 | AY41: 0
A42: 41 | B42: Brecken Carr | C42: Forest Lake | D42: 59.22368421 | E42: 13 | F42: =IF($A42="","",'Fig 1 Ballet Leg'!H43) -> 11.64912281 | G42: =IF($A42="","",'Fig 2 Barracuda'!H43) -> 16.14035088 | H42: =IF($A42="","",'Fig 3 Neptunus'!H43) -> 14.76315789 | I42: =IF($A42="","",'Fig 4 Walkover'!H43) -> 16.67105263 | J42: =IF($A42="","",'Fig 1 Ballet Leg'!I43+'Fig 2 Barracuda'!I43+'Fig 3 Neptunus'!I43+'Fig 4 Walkover'!I43) -> 0 | K42: 0 | AX42: 40 | AY42: 0
A43: 42 | B43: Bridget Olson | C43: Forest Lake | D43: 56.59649123 | E43: 17 | F43: =IF($A43="","",'Fig 1 Ballet Leg'!H44) -> 11.22807018 | G43: =IF($A43="","",'Fig 2 Barracuda'!H44) -> 15.52631579 | H43: =IF($A43="","",'Fig 3 Neptunus'!H44) -> 13.81578947 | I43: =IF($A43="","",'Fig 4 Walkover'!H44) -> 16.02631579 | J43: =IF($A43="","",'Fig 1 Ballet Leg'!I44+'Fig 2 Barracuda'!I44+'Fig 3 Neptunus'!I44+'Fig 4 Walkover'!I44) -> 0 | K43: 0 | AX43: 41 | AY43: 0
A44: 43 | B44: Elizabeth Blount | C44: Forest Lake | D44: 55.5745614 | E44: 25 | F44: =IF($A44="","",'Fig 1 Ballet Leg'!H45) -> 11.29824561 | G44: =IF($A44="","",'Fig 2 Barracuda'!H45) -> 15 | H44: =IF($A44="","",'Fig 3 Neptunus'!H45) -> 13.34210526 | I44: =IF($A44="","",'Fig 4 Walkover'!H45) -> 15.93421053 | J44: =IF($A44="","",'Fig 1 Ballet Leg'!I45+'Fig 2 Barracuda'!I45+'Fig 3 Neptunus'!I45+'Fig 4 Walkover'!I45) -> 0 | K44: 0 | AX44: 42 | AY44: 0
A45: 44 | B45: Megan Palmer | C45: Forest Lake | D45: 59.97807018 | E45: 10 | F45: =IF($A45="","",'Fig 1 Ballet Leg'!H46) -> 12.84210526 | G45: =IF($A45="","",'Fig 2 Barracuda'!H46) -> 15.70175439 | H45: =IF($A45="","",'Fig 3 Neptunus'!H46) -> 14.76315789 | I45: =IF($A45="","",'Fig 4 Walkover'!H46) -> 16.67105263 | J45: =IF($A45="","",'Fig 1 Ballet Leg'!I46+'Fig 2 Barracuda'!I46+'Fig 3 Neptunus'!I46+'Fig 4 Walkover'!I46) -> 0 | K45: 0 | AX45: 43 | AY45: 0
A46: 45 | B46: Holly Drazenovich | C46: Osseo-Maple Grove | D46: 51.06578947 | E46: 44 | F46: =IF($A46="","",'Fig 1 Ballet Leg'!H47) -> 10.52631579 | G46: =IF($A46="","",'Fig 2 Barracuda'!H47) -> 13.94736842 | H46: =IF($A46="","",'Fig 3 Neptunus'!H47) -> 11.76315789 | I46: =IF($A46="","",'Fig 4 Walkover'!H47) -> 14.82894737 | J46: =IF($A46="","",'Fig 1 Ballet Leg'!I47+'Fig 2 Barracuda'!I47+'Fig 3 Neptunus'!I47+'Fig 4 Walkover'!I47) -> 0 | K46: 0 | AX46: 44 | AY46: 0
A47: 46 | B47: Jessica Ruohoniemi | C47: Osseo-Maple Grove | D47: 50.4122807 | E47: 47 | F47: =IF($A47="","",'Fig 1 Ballet Leg'!H48) -> 10.73684211 | G47: =IF($A47="","",'Fig 2 Barracuda'!H48) -> 13.33333333 | H47: =IF($A47="","",'Fig 3 Neptunus'!H48) -> 11.60526316 | I47: =IF($A47="","",'Fig 4 Walkover'!H48) -> 14.73684211 | J47: =IF($A47="","",'Fig 1 Ballet Leg'!I48+'Fig 2 Barracuda'!I48+'Fig 3 Neptunus'!I48+'Fig 4 Walkover'!I48) -> 0 | K47: 0 | AX47: 45 | AY47: 0
A48: 47 | B48: Cora Martinez | C48: Forest Lake | D48: 48.80701754 | E48: 52 | F48: =IF($A48="","",'Fig 1 Ballet Leg'!H49) -> 9.964912281 | G48: =IF($A48="","",'Fig 2 Barracuda'!H49) -> 13.94736842 | H48: =IF($A48="","",'Fig 3 Neptunus'!H49) -> 11.44736842 | I48: =IF($A48="","",'Fig 4 Walkover'!H49) -> 13.44736842 | J48: =IF($A48="","",'Fig 1 Ballet Leg'!I49+'Fig 2 Barracuda'!I49+'Fig 3 Neptunus'!I49+'Fig 4 Walkover'!I49) -> 0 | K48: 0 | AX48: 46 | AY48: 0
A49: 48 | B49: Kenzie Klein | C49: Forest Lake | D49: 63.94736842 | E49: 2 | F49: =IF($A49="","",'Fig 1 Ballet Leg'!H50) -> 14.1754386 | G49: =IF($A49="","",'Fig 2 Barracuda'!H50) -> 17.45614035 | H49: =IF($A49="","",'Fig 3 Neptunus'!H50) -> 15 | I49: =IF($A49="","",'Fig 4 Walkover'!H50) -> 17.31578947 | J49: =IF($A49="","",'Fig 1 Ballet Leg'!I50+'Fig 2 Barracuda'!I50+'Fig 3 Neptunus'!I50+'Fig 4 Walkover'!I50) -> 0 | K49: 6 | AX49: 47 | AY49: 0
A50: 49 | B50: Alle Hale | C50: Forest Lake | D50: 51.43421053 | E50: 42 | F50: =IF($A50="","",'Fig 1 Ballet Leg'!H51) -> 11.36842105 | G50: =IF($A50="","",'Fig 2 Barracuda'!H51) -> 13.15789474 | H50: =IF($A50="","",'Fig 3 Neptunus'!H51) -> 12.63157895 | I50: =IF($A50="","",'Fig 4 Walkover'!H51) -> 14.27631579 | J50: =IF($A50="","",'Fig 1 Ballet Leg'!I51+'Fig 2 Barracuda'!I51+'Fig 3 Neptunus'!I51+'Fig 4 Walkover'!I51) -> 0 | K50: 0 | AX50: 48 | AY50: 0
A51: 50 | B51: Sophie Jarosz | C51: Forest Lake | D51: 56.1754386 | E51: 19 | F51: =IF($A51="","",'Fig 1 Ballet Leg'!H52) -> 11.71929825 | G51: =IF($A51="","",'Fig 2 Barracuda'!H52) -> 15.0877193 | H51: =IF($A51="","",'Fig 3 Neptunus'!H52) -> 13.89473684 | I51: =IF($A51="","",'Fig 4 Walkover'!H52) -> 15.47368421 | J51: =IF($A51="","",'Fig 1 Ballet Leg'!I52+'Fig 2 Barracuda'!I52+'Fig 3 Neptunus'!I52+'Fig 4 Walkover'!I52) -> 0 | K51: 0 | AX51: 49 | AY51: 0
A52: 51 | B52: Elizabeth McBride | C52: Osseo-Maple Grove | D52: 60.1622807 | E52: 7 | F52: =IF($A52="","",'Fig 1 Ballet Leg'!H53) -> 12.49122807 | G52: =IF($A52="","",'Fig 2 Barracuda'!H53) -> 15.26315789 | H52: =IF($A52="","",'Fig 3 Neptunus'!H53) -> 15 | I52: =IF($A52="","",'Fig 4 Walkover'!H53) -> 17.40789474 | J52: =IF($A52="","",'Fig 1 Ballet Leg'!I53+'Fig 2 Barracuda'!I53+'Fig 3 Neptunus'!I53+'Fig 4 Walkover'!I53) -> 0 | K52: 1 | AX52: 50 | AY52: 0
A53: 52 | B53: Lydia Hansen | C53: Forest Lake | D53: 51.57894737 | E53: 41 | F53: =IF($A53="","",'Fig 1 Ballet Leg'!H54) -> 10.73684211 | G53: =IF($A53="","",'Fig 2 Barracuda'!H54) -> 13.15789474 | H53: =IF($A53="","",'Fig 3 Neptunus'!H54) -> 12.94736842 | I53: =IF($A53="","",'Fig 4 Walkover'!H54) -> 14.73684211 | J53: =IF($A53="","",'Fig 1 Ballet Leg'!I54+'Fig 2 Barracuda'!I54+'Fig 3 Neptunus'!I54+'Fig 4 Walkover'!I54) -> 0 | K53: 0 | AX53: 51 | AY53: 0
A54: 53 | B54: Anna Ganser | C54: Osseo-Maple Grove | D54: 59.40789474 | E54: 12 | F54: =IF($A54="","",'Fig 1 Ballet Leg'!H55) -> 12.49122807 | G54: =IF($A54="","",'Fig 2 Barracuda'!H55) -> 15.35087719 | H54: =IF($A54="","",'Fig 3 Neptunus'!H55) -> 14.52631579 | I54: =IF($A54="","",'Fig 4 Walkover'!H55) -> 17.03947368 | J54: =IF($A54="","",'Fig 1 Ballet Leg'!I55+'Fig 2 Barracuda'!I55+'Fig 3 Neptunus'!I55+'Fig 4 Walkover'!I55) -> 0 | K54: 0 | AX54: 52 | AY54: 0
A55: 54 | B55: Fallon Olson | C55: Forest Lake | D55: 63.79824561 | E55: 3 | F55: =IF($A55="","",'Fig 1 Ballet Leg'!H56) -> 13.26315789 | G55: =IF($A55="","",'Fig 2 Barracuda'!H56) -> 16.92982456 | H55: =IF($A55="","",'Fig 3 Neptunus'!H56) -> 15.55263158 | I55: =IF($A55="","",'Fig 4 Walkover'!H56) -> 18.05263158 | J55: =IF($A55="","",'Fig 1 Ballet Leg'!I56+'Fig 2 Barracuda'!I56+'Fig 3 Neptunus'!I56+'Fig 4 Walkover'!I56) -> 0 | K55: 5 | AX55: 53 | AY55: 0
A56: 55 | B56: Caroline LaBord | C56: Osseo-Maple Grove | D56: 47.37719298 | E56: 53 | F56: =IF($A56="","",'Fig 1 Ballet Leg'!H57) -> 10.66666667 | G56: =IF($A56="","",'Fig 2 Barracuda'!H57) -> 12.36842105 | H56: =IF($A56="","",'Fig 3 Neptunus'!H57) -> 10.89473684 | I56: =IF($A56="","",'Fig 4 Walkover'!H57) -> 13.44736842 | J56: =IF($A56="","",'Fig 1 Ballet Leg'!I57+'Fig 2 Barracuda'!I57+'Fig 3 Neptunus'!I57+'Fig 4 Walkover'!I57) -> 0 | K56: 0 | AX56: 54 | AY56: 0
F57: =IF($A57="","",'Fig 1 Ballet Leg'!H58) ->  | G57: =IF($A57="","",'Fig 2 Barracuda'!H58) ->  | H57: =IF($A57="","",'Fig 3 Neptunus'!H58) ->  | I57: =IF($A57="","",'Fig 4 Walkover'!H58) ->  | J57: =IF($A57="","",'Fig 1 Ballet Leg'!I58+'Fig 2 Barracuda'!I58+'Fig 3 Neptunus'!I58+'Fig 4 Walkover'!I58) ->  | AX57: 55 | AY57: 0
F58: =IF($A58="","",'Fig 1 Ballet Leg'!H59) ->  | G58: =IF($A58="","",'Fig 2 Barracuda'!H59) ->  | H58: =IF($A58="","",'Fig 3 Neptunus'!H59) ->  | I58: =IF($A58="","",'Fig 4 Walkover'!H59) ->  | J58: =IF($A58="","",'Fig 1 Ballet Leg'!I59+'Fig 2 Barracuda'!I59+'Fig 3 Neptunus'!I59+'Fig 4 Walkover'!I59) ->  | AX58: 56 | AY58: 0
F59: =IF($A59="","",'Fig 1 Ballet Leg'!H60) ->  | G59: =IF($A59="","",'Fig 2 Barracuda'!H60) ->  | H59: =IF($A59="","",'Fig 3 Neptunus'!H60) ->  | I59: =IF($A59="","",'Fig 4 Walkover'!H60) ->  | J59: =IF($A59="","",'Fig 1 Ballet Leg'!I60+'Fig 2 Barracuda'!I60+'Fig 3 Neptunus'!I60+'Fig 4 Walkover'!I60) ->  | AX59: 57 | AY59: 0
F60: =IF($A60="","",'Fig 1 Ballet Leg'!H61) ->  | G60: =IF($A60="","",'Fig 2 Barracuda'!H61) ->  | H60: =IF($A60="","",'Fig 3 Neptunus'!H61) ->  | I60: =IF($A60="","",'Fig 4 Walkover'!H61) ->  | J60: =IF($A60="","",'Fig 1 Ballet Leg'!I61+'Fig 2 Barracuda'!I61+'Fig 3 Neptunus'!I61+'Fig 4 Walkover'!I61) ->  | AX60: 58 | AY60: 0
F61: =IF($A61="","",'Fig 1 Ballet Leg'!H62) ->  | G61: =IF($A61="","",'Fig 2 Barracuda'!H62) ->  | H61: =IF($A61="","",'Fig 3 Neptunus'!H62) ->  | I61: =IF($A61="","",'Fig 4 Walkover'!H62) ->  | J61: =IF($A61="","",'Fig 1 Ballet Leg'!I62+'Fig 2 Barracuda'!I62+'Fig 3 Neptunus'!I62+'Fig 4 Walkover'!I62) ->  | AX61: 59 | AY61: 0
F62: =IF($A62="","",'Fig 1 Ballet Leg'!H63) ->  | G62: =IF($A62="","",'Fig 2 Barracuda'!H63) ->  | H62: =IF($A62="","",'Fig 3 Neptunus'!H63) ->  | I62: =IF($A62="","",'Fig 4 Walkover'!H63) ->  | J62: =IF($A62="","",'Fig 1 Ballet Leg'!I63+'Fig 2 Barracuda'!I63+'Fig 3 Neptunus'!I63+'Fig 4 Walkover'!I63) ->  | AX62: 60 | AY62: 0
F63: =IF($A63="","",'Fig 1 Ballet Leg'!H64) ->  | G63: =IF($A63="","",'Fig 2 Barracuda'!H64) ->  | H63: =IF($A63="","",'Fig 3 Neptunus'!H64) ->  | I63: =IF($A63="","",'Fig 4 Walkover'!H64) ->  | J63: =IF($A63="","",'Fig 1 Ballet Leg'!I64+'Fig 2 Barracuda'!I64+'Fig 3 Neptunus'!I64+'Fig 4 Walkover'!I64) ->  | AX63: 61 | AY63: 0
F64: =IF($A64="","",'Fig 1 Ballet Leg'!H65) ->  | G64: =IF($A64="","",'Fig 2 Barracuda'!H65) ->  | H64: =IF($A64="","",'Fig 3 Neptunus'!H65) ->  | I64: =IF($A64="","",'Fig 4 Walkover'!H65) ->  | J64: =IF($A64="","",'Fig 1 Ballet Leg'!I65+'Fig 2 Barracuda'!I65+'Fig 3 Neptunus'!I65+'Fig 4 Walkover'!I65) ->  | AX64: 62 | AY64: 0
F65: =IF($A65="","",'Fig 1 Ballet Leg'!H66) ->  | G65: =IF($A65="","",'Fig 2 Barracuda'!H66) ->  | H65: =IF($A65="","",'Fig 3 Neptunus'!H66) ->  | I65: =IF($A65="","",'Fig 4 Walkover'!H66) ->  | J65: =IF($A65="","",'Fig 1 Ballet Leg'!I66+'Fig 2 Barracuda'!I66+'Fig 3 Neptunus'!I66+'Fig 4 Walkover'!I66) ->  | AX65: 63 | AY65: 0
F66: =IF($A66="","",'Fig 1 Ballet Leg'!H67) ->  | G66: =IF($A66="","",'Fig 2 Barracuda'!H67) ->  | H66: =IF($A66="","",'Fig 3 Neptunus'!H67) ->  | I66: =IF($A66="","",'Fig 4 Walkover'!H67) ->  | J66: =IF($A66="","",'Fig 1 Ballet Leg'!I67+'Fig 2 Barracuda'!I67+'Fig 3 Neptunus'!I67+'Fig 4 Walkover'!I67) ->  | AX66: 64 | AY66: 0
F67: =IF($A67="","",'Fig 1 Ballet Leg'!H68) ->  | G67: =IF($A67="","",'Fig 2 Barracuda'!H68) ->  | H67: =IF($A67="","",'Fig 3 Neptunus'!H68) ->  | I67: =IF($A67="","",'Fig 4 Walkover'!H68) ->  | J67: =IF($A67="","",'Fig 1 Ballet Leg'!I68+'Fig 2 Barracuda'!I68+'Fig 3 Neptunus'!I68+'Fig 4 Walkover'!I68) ->  | AX67: 65 | AY67: 0
F68: =IF($A68="","",'Fig 1 Ballet Leg'!H69) ->  | G68: =IF($A68="","",'Fig 2 Barracuda'!H69) ->  | H68: =IF($A68="","",'Fig 3 Neptunus'!H69) ->  | I68: =IF($A68="","",'Fig 4 Walkover'!H69) ->  | J68: =IF($A68="","",'Fig 1 Ballet Leg'!I69+'Fig 2 Barracuda'!I69+'Fig 3 Neptunus'!I69+'Fig 4 Walkover'!I69) ->  | AX68: 66 | AY68: 0
D69: =IF($A69="","",SUM(F69:I69)-J69) ->  | E69: =IF($A69="","",RANK(D69,D$2:D$150)) ->  | F69: =IF($A69="","",'Fig 1 Ballet Leg'!H70) ->  | G69: =IF($A69="","",'Fig 2 Barracuda'!H70) ->  | H69: =IF($A69="","",'Fig 3 Neptunus'!H70) ->  | I69: =IF($A69="","",'Fig 4 Walkover'!H70) ->  | J69: =IF($A69="","",'Fig 1 Ballet Leg'!I70+'Fig 2 Barracuda'!I70+'Fig 3 Neptunus'!I70+'Fig 4 Walkover'!I70) ->  | K69: =IF($A69="","",IF(A69="","",VLOOKUP(E69,AX$3:AY$102,2,FALSE))) ->  | AX69: 67 | AY69: 0
F70: =IF($A70="","",'Fig 1 Ballet Leg'!H71) ->  | G70: =IF($A70="","",'Fig 2 Barracuda'!H71) ->  | H70: =IF($A70="","",'Fig 3 Neptunus'!H71) ->  | I70: =IF($A70="","",'Fig 4 Walkover'!H71) ->  | J70: =IF($A70="","",'Fig 1 Ballet Leg'!I71+'Fig 2 Barracuda'!I71+'Fig 3 Neptunus'!I71+'Fig 4 Walkover'!I71) ->  | AX70: 68 | AY70: 0
F71: =IF($A71="","",'Fig 1 Ballet Leg'!H72) ->  | G71: =IF($A71="","",'Fig 2 Barracuda'!H72) ->  | H71: =IF($A71="","",'Fig 3 Neptunus'!H72) ->  | I71: =IF($A71="","",'Fig 4 Walkover'!H72) ->  | J71: =IF($A71="","",'Fig 1 Ballet Leg'!I72+'Fig 2 Barracuda'!I72+'Fig 3 Neptunus'!I72+'Fig 4 Walkover'!I72) ->  | AX71: 69 | AY71: 0
F72: =IF($A72="","",'Fig 1 Ballet Leg'!H73) ->  | G72: =IF($A72="","",'Fig 2 Barracuda'!H73) ->  | H72: =IF($A72="","",'Fig 3 Neptunus'!H73) ->  | I72: =IF($A72="","",'Fig 4 Walkover'!H73) ->  | J72: =IF($A72="","",'Fig 1 Ballet Leg'!I73+'Fig 2 Barracuda'!I73+'Fig 3 Neptunus'!I73+'Fig 4 Walkover'!I73) ->  | AX72: 70 | AY72: 0
F73: =IF($A73="","",'Fig 1 Ballet Leg'!H74) ->  | G73: =IF($A73="","",'Fig 2 Barracuda'!H74) ->  | H73: =IF($A73="","",'Fig 3 Neptunus'!H74) ->  | I73: =IF($A73="","",'Fig 4 Walkover'!H74) ->  | J73: =IF($A73="","",'Fig 1 Ballet Leg'!I74+'Fig 2 Barracuda'!I74+'Fig 3 Neptunus'!I74+'Fig 4 Walkover'!I74) ->  | AX73: 71 | AY73: 0
F74: =IF($A74="","",'Fig 1 Ballet Leg'!H75) ->  | G74: =IF($A74="","",'Fig 2 Barracuda'!H75) ->  | H74: =IF($A74="","",'Fig 3 Neptunus'!H75) ->  | I74: =IF($A74="","",'Fig 4 Walkover'!H75) ->  | J74: =IF($A74="","",'Fig 1 Ballet Leg'!I75+'Fig 2 Barracuda'!I75+'Fig 3 Neptunus'!I75+'Fig 4 Walkover'!I75) ->  | AX74: 72 | AY74: 0
F75: =IF($A75="","",'Fig 1 Ballet Leg'!H76) ->  | G75: =IF($A75="","",'Fig 2 Barracuda'!H76) ->  | H75: =IF($A75="","",'Fig 3 Neptunus'!H76) ->  | I75: =IF($A75="","",'Fig 4 Walkover'!H76) ->  | J75: =IF($A75="","",'Fig 1 Ballet Leg'!I76+'Fig 2 Barracuda'!I76+'Fig 3 Neptunus'!I76+'Fig 4 Walkover'!I76) ->  | AX75: 73 | AY75: 0
F76: =IF($A76="","",'Fig 1 Ballet Leg'!H77) ->  | G76: =IF($A76="","",'Fig 2 Barracuda'!H77) ->  | H76: =IF($A76="","",'Fig 3 Neptunus'!H77) ->  | I76: =IF($A76="","",'Fig 4 Walkover'!H77) ->  | J76: =IF($A76="","",'Fig 1 Ballet Leg'!I77+'Fig 2 Barracuda'!I77+'Fig 3 Neptunus'!I77+'Fig 4 Walkover'!I77) ->  | AX76: 74 | AY76: 0
F77: =IF($A77="","",'Fig 1 Ballet Leg'!H78) ->  | G77: =IF($A77="","",'Fig 2 Barracuda'!H78) ->  | H77: =IF($A77="","",'Fig 3 Neptunus'!H78) ->  | I77: =IF($A77="","",'Fig 4 Walkover'!H78) ->  | J77: =IF($A77="","",'Fig 1 Ballet Leg'!I78+'Fig 2 Barracuda'!I78+'Fig 3 Neptunus'!I78+'Fig 4 Walkover'!I78) ->  | AX77: 75 | AY77: 0
F78: =IF($A78="","",'Fig 1 Ballet Leg'!H79) ->  | G78: =IF($A78="","",'Fig 2 Barracuda'!H79) ->  | H78: =IF($A78="","",'Fig 3 Neptunus'!H79) ->  | I78: =IF($A78="","",'Fig 4 Walkover'!H79) ->  | J78: =IF($A78="","",'Fig 1 Ballet Leg'!I79+'Fig 2 Barracuda'!I79+'Fig 3 Neptunus'!I79+'Fig 4 Walkover'!I79) ->  | AX78: 76 | AY78: 0
F79: =IF($A79="","",'Fig 1 Ballet Leg'!H80) ->  | G79: =IF($A79="","",'Fig 2 Barracuda'!H80) ->  | H79: =IF($A79="","",'Fig 3 Neptunus'!H80) ->  | I79: =IF($A79="","",'Fig 4 Walkover'!H80) ->  | J79: =IF($A79="","",'Fig 1 Ballet Leg'!I80+'Fig 2 Barracuda'!I80+'Fig 3 Neptunus'!I80+'Fig 4 Walkover'!I80) ->  | AX79: 77 | AY79: 0
F80: =IF($A80="","",'Fig 1 Ballet Leg'!H81) ->  | G80: =IF($A80="","",'Fig 2 Barracuda'!H81) ->  | H80: =IF($A80="","",'Fig 3 Neptunus'!H81) ->  | I80: =IF($A80="","",'Fig 4 Walkover'!H81) ->  | J80: =IF($A80="","",'Fig 1 Ballet Leg'!I81+'Fig 2 Barracuda'!I81+'Fig 3 Neptunus'!I81+'Fig 4 Walkover'!I81) ->  | AX80: 78 | AY80: 0
F81: =IF($A81="","",'Fig 1 Ballet Leg'!H82) ->  | G81: =IF($A81="","",'Fig 2 Barracuda'!H82) ->  | H81: =IF($A81="","",'Fig 3 Neptunus'!H82) ->  | I81: =IF($A81="","",'Fig 4 Walkover'!H82) ->  | J81: =IF($A81="","",'Fig 1 Ballet Leg'!I82+'Fig 2 Barracuda'!I82+'Fig 3 Neptunus'!I82+'Fig 4 Walkover'!I82) ->  | AX81: 79 | AY81: 0
F82: =IF($A82="","",'Fig 1 Ballet Leg'!H83) ->  | G82: =IF($A82="","",'Fig 2 Barracuda'!H83) ->  | H82: =IF($A82="","",'Fig 3 Neptunus'!H83) ->  | I82: =IF($A82="","",'Fig 4 Walkover'!H83) ->  | J82: =IF($A82="","",'Fig 1 Ballet Leg'!I83+'Fig 2 Barracuda'!I83+'Fig 3 Neptunus'!I83+'Fig 4 Walkover'!I83) ->  | AX82: 80 | AY82: 0
F83: =IF($A83="","",'Fig 1 Ballet Leg'!H84) ->  | G83: =IF($A83="","",'Fig 2 Barracuda'!H84) ->  | H83: =IF($A83="","",'Fig 3 Neptunus'!H84) ->  | I83: =IF($A83="","",'Fig 4 Walkover'!H84) ->  | J83: =IF($A83="","",'Fig 1 Ballet Leg'!I84+'Fig 2 Barracuda'!I84+'Fig 3 Neptunus'!I84+'Fig 4 Walkover'!I84) ->  | AX83: 81 | AY83: 0
F84: =IF($A84="","",'Fig 1 Ballet Leg'!H85) ->  | G84: =IF($A84="","",'Fig 2 Barracuda'!H85) ->  | H84: =IF($A84="","",'Fig 3 Neptunus'!H85) ->  | I84: =IF($A84="","",'Fig 4 Walkover'!H85) ->  | J84: =IF($A84="","",'Fig 1 Ballet Leg'!I85+'Fig 2 Barracuda'!I85+'Fig 3 Neptunus'!I85+'Fig 4 Walkover'!I85) ->  | AX84: 82 | AY84: 0
F85: =IF($A85="","",'Fig 1 Ballet Leg'!H86) ->  | G85: =IF($A85="","",'Fig 2 Barracuda'!H86) ->  | H85: =IF($A85="","",'Fig 3 Neptunus'!H86) ->  | I85: =IF($A85="","",'Fig 4 Walkover'!H86) ->  | J85: =IF($A85="","",'Fig 1 Ballet Leg'!I86+'Fig 2 Barracuda'!I86+'Fig 3 Neptunus'!I86+'Fig 4 Walkover'!I86) ->  | AX85: 83 | AY85: 0
F86: =IF($A86="","",'Fig 1 Ballet Leg'!H87) ->  | G86: =IF($A86="","",'Fig 2 Barracuda'!H87) ->  | H86: =IF($A86="","",'Fig 3 Neptunus'!H87) ->  | I86: =IF($A86="","",'Fig 4 Walkover'!H87) ->  | J86: =IF($A86="","",'Fig 1 Ballet Leg'!I87+'Fig 2 Barracuda'!I87+'Fig 3 Neptunus'!I87+'Fig 4 Walkover'!I87) ->  | AX86: 84 | AY86: 0
F87: =IF($A87="","",'Fig 1 Ballet Leg'!H88) ->  | G87: =IF($A87="","",'Fig 2 Barracuda'!H88) ->  | H87: =IF($A87="","",'Fig 3 Neptunus'!H88) ->  | I87: =IF($A87="","",'Fig 4 Walkover'!H88) ->  | J87: =IF($A87="","",'Fig 1 Ballet Leg'!I88+'Fig 2 Barracuda'!I88+'Fig 3 Neptunus'!I88+'Fig 4 Walkover'!I88) ->  | AX87: 85 | AY87: 0
F88: =IF($A88="","",'Fig 1 Ballet Leg'!H89) ->  | G88: =IF($A88="","",'Fig 2 Barracuda'!H89) ->  | H88: =IF($A88="","",'Fig 3 Neptunus'!H89) ->  | I88: =IF($A88="","",'Fig 4 Walkover'!H89) ->  | J88: =IF($A88="","",'Fig 1 Ballet Leg'!I89+'Fig 2 Barracuda'!I89+'Fig 3 Neptunus'!I89+'Fig 4 Walkover'!I89) ->  | AX88: 86 | AY88: 0
F89: =IF($A89="","",'Fig 1 Ballet Leg'!H90) ->  | G89: =IF($A89="","",'Fig 2 Barracuda'!H90) ->  | H89: =IF($A89="","",'Fig 3 Neptunus'!H90) ->  | I89: =IF($A89="","",'Fig 4 Walkover'!H90) ->  | J89: =IF($A89="","",'Fig 1 Ballet Leg'!I90+'Fig 2 Barracuda'!I90+'Fig 3 Neptunus'!I90+'Fig 4 Walkover'!I90) ->  | AX89: 87 | AY89: 0
F90: =IF($A90="","",'Fig 1 Ballet Leg'!H91) ->  | G90: =IF($A90="","",'Fig 2 Barracuda'!H91) ->  | H90: =IF($A90="","",'Fig 3 Neptunus'!H91) ->  | I90: =IF($A90="","",'Fig 4 Walkover'!H91) ->  | J90: =IF($A90="","",'Fig 1 Ballet Leg'!I91+'Fig 2 Barracuda'!I91+'Fig 3 Neptunus'!I91+'Fig 4 Walkover'!I91) ->  | AX90: 88 | AY90: 0
F91: =IF($A91="","",'Fig 1 Ballet Leg'!H92) ->  | G91: =IF($A91="","",'Fig 2 Barracuda'!H92) ->  | H91: =IF($A91="","",'Fig 3 Neptunus'!H92) ->  | I91: =IF($A91="","",'Fig 4 Walkover'!H92) ->  | J91: =IF($A91="","",'Fig 1 Ballet Leg'!I92+'Fig 2 Barracuda'!I92+'Fig 3 Neptunus'!I92+'Fig 4 Walkover'!I92) ->  | AX91: 89 | AY91: 0
F92: =IF($A92="","",'Fig 1 Ballet Leg'!H93) ->  | G92: =IF($A92="","",'Fig 2 Barracuda'!H93) ->  | H92: =IF($A92="","",'Fig 3 Neptunus'!H93) ->  | I92: =IF($A92="","",'Fig 4 Walkover'!H93) ->  | J92: =IF($A92="","",'Fig 1 Ballet Leg'!I93+'Fig 2 Barracuda'!I93+'Fig 3 Neptunus'!I93+'Fig 4 Walkover'!I93) ->  | AX92: 90 | AY92: 0
F93: =IF($A93="","",'Fig 1 Ballet Leg'!H94) ->  | G93: =IF($A93="","",'Fig 2 Barracuda'!H94) ->  | H93: =IF($A93="","",'Fig 3 Neptunus'!H94) ->  | I93: =IF($A93="","",'Fig 4 Walkover'!H94) ->  | J93: =IF($A93="","",'Fig 1 Ballet Leg'!I94+'Fig 2 Barracuda'!I94+'Fig 3 Neptunus'!I94+'Fig 4 Walkover'!I94) ->  | AX93: 91 | AY93: 0
F94: =IF($A94="","",'Fig 1 Ballet Leg'!H95) ->  | G94: =IF($A94="","",'Fig 2 Barracuda'!H95) ->  | H94: =IF($A94="","",'Fig 3 Neptunus'!H95) ->  | I94: =IF($A94="","",'Fig 4 Walkover'!H95) ->  | J94: =IF($A94="","",'Fig 1 Ballet Leg'!I95+'Fig 2 Barracuda'!I95+'Fig 3 Neptunus'!I95+'Fig 4 Walkover'!I95) ->  | AX94: 92 | AY94: 0
F95: =IF($A95="","",'Fig 1 Ballet Leg'!H96) ->  | G95: =IF($A95="","",'Fig 2 Barracuda'!H96) ->  | H95: =IF($A95="","",'Fig 3 Neptunus'!H96) ->  | I95: =IF($A95="","",'Fig 4 Walkover'!H96) ->  | J95: =IF($A95="","",'Fig 1 Ballet Leg'!I96+'Fig 2 Barracuda'!I96+'Fig 3 Neptunus'!I96+'Fig 4 Walkover'!I96) ->  | AX95: 93 | AY95: 0
F96: =IF($A96="","",'Fig 1 Ballet Leg'!H97) ->  | G96: =IF($A96="","",'Fig 2 Barracuda'!H97) ->  | H96: =IF($A96="","",'Fig 3 Neptunus'!H97) ->  | I96: =IF($A96="","",'Fig 4 Walkover'!H97) ->  | J96: =IF($A96="","",'Fig 1 Ballet Leg'!I97+'Fig 2 Barracuda'!I97+'Fig 3 Neptunus'!I97+'Fig 4 Walkover'!I97) ->  | AX96: 94 | AY96: 0
F97: =IF($A97="","",'Fig 1 Ballet Leg'!H98) ->  | G97: =IF($A97="","",'Fig 2 Barracuda'!H98) ->  | H97: =IF($A97="","",'Fig 3 Neptunus'!H98) ->  | I97: =IF($A97="","",'Fig 4 Walkover'!H98) ->  | J97: =IF($A97="","",'Fig 1 Ballet Leg'!I98+'Fig 2 Barracuda'!I98+'Fig 3 Neptunus'!I98+'Fig 4 Walkover'!I98) ->  | AX97: 95 | AY97: 0
F98: =IF($A98="","",'Fig 1 Ballet Leg'!H99) ->  | G98: =IF($A98="","",'Fig 2 Barracuda'!H99) ->  | H98: =IF($A98="","",'Fig 3 Neptunus'!H99) ->  | I98: =IF($A98="","",'Fig 4 Walkover'!H99) ->  | J98: =IF($A98="","",'Fig 1 Ballet Leg'!I99+'Fig 2 Barracuda'!I99+'Fig 3 Neptunus'!I99+'Fig 4 Walkover'!I99) ->  | AX98: 96 | AY98: 0
F99: =IF($A99="","",'Fig 1 Ballet Leg'!H100) ->  | G99: =IF($A99="","",'Fig 2 Barracuda'!H100) ->  | H99: =IF($A99="","",'Fig 3 Neptunus'!H100) ->  | I99: =IF($A99="","",'Fig 4 Walkover'!H100) ->  | J99: =IF($A99="","",'Fig 1 Ballet Leg'!I100+'Fig 2 Barracuda'!I100+'Fig 3 Neptunus'!I100+'Fig 4 Walkover'!I100) ->  | AX99: 97 | AY99: 0
F100: =IF($A100="","",'Fig 1 Ballet Leg'!H101) ->  | G100: =IF($A100="","",'Fig 2 Barracuda'!H101) ->  | H100: =IF($A100="","",'Fig 3 Neptunus'!H101) ->  | I100: =IF($A100="","",'Fig 4 Walkover'!H101) ->  | J100: =IF($A100="","",'Fig 1 Ballet Leg'!I101+'Fig 2 Barracuda'!I101+'Fig 3 Neptunus'!I101+'Fig 4 Walkover'!I101) ->  | AX100: 98 | AY100: 0
F101: =IF($A101="","",'Fig 1 Ballet Leg'!H102) ->  | G101: =IF($A101="","",'Fig 2 Barracuda'!H102) ->  | H101: =IF($A101="","",'Fig 3 Neptunus'!H102) ->  | I101: =IF($A101="","",'Fig 4 Walkover'!H102) ->  | J101: =IF($A101="","",'Fig 1 Ballet Leg'!I102+'Fig 2 Barracuda'!I102+'Fig 3 Neptunus'!I102+'Fig 4 Walkover'!I102) ->  | AX101: 99 | AY101: 0
F102: =IF($A102="","",'Fig 1 Ballet Leg'!H103) ->  | G102: =IF($A102="","",'Fig 2 Barracuda'!H103) ->  | H102: =IF($A102="","",'Fig 3 Neptunus'!H103) ->  | I102: =IF($A102="","",'Fig 4 Walkover'!H103) ->  | J102: =IF($A102="","",'Fig 1 Ballet Leg'!I103+'Fig 2 Barracuda'!I103+'Fig 3 Neptunus'!I103+'Fig 4 Walkover'!I103) ->  | AX102: 100 | AY102: 0
F103: =IF($A103="","",'Fig 1 Ballet Leg'!H104) ->  | G103: =IF($A103="","",'Fig 2 Barracuda'!H104) ->  | H103: =IF($A103="","",'Fig 3 Neptunus'!H104) ->  | I103: =IF($A103="","",'Fig 4 Walkover'!H104) ->  | J103: =IF($A103="","",'Fig 1 Ballet Leg'!I104+'Fig 2 Barracuda'!I104+'Fig 3 Neptunus'!I104+'Fig 4 Walkover'!I104) -> 
F104: =IF($A104="","",'Fig 1 Ballet Leg'!H105) ->  | G104: =IF($A104="","",'Fig 2 Barracuda'!H105) ->  | H104: =IF($A104="","",'Fig 3 Neptunus'!H105) ->  | I104: =IF($A104="","",'Fig 4 Walkover'!H105) ->  | J104: =IF($A104="","",'Fig 1 Ballet Leg'!I105+'Fig 2 Barracuda'!I105+'Fig 3 Neptunus'!I105+'Fig 4 Walkover'!I105) -> 
F105: =IF($A105="","",'Fig 1 Ballet Leg'!H106) ->  | G105: =IF($A105="","",'Fig 2 Barracuda'!H106) ->  | H105: =IF($A105="","",'Fig 3 Neptunus'!H106) ->  | I105: =IF($A105="","",'Fig 4 Walkover'!H106) ->  | J105: =IF($A105="","",'Fig 1 Ballet Leg'!I106+'Fig 2 Barracuda'!I106+'Fig 3 Neptunus'!I106+'Fig 4 Walkover'!I106) -> 
F106: =IF($A106="","",'Fig 1 Ballet Leg'!H107) ->  | G106: =IF($A106="","",'Fig 2 Barracuda'!H107) ->  | H106: =IF($A106="","",'Fig 3 Neptunus'!H107) ->  | I106: =IF($A106="","",'Fig 4 Walkover'!H107) ->  | J106: =IF($A106="","",'Fig 1 Ballet Leg'!I107+'Fig 2 Barracuda'!I107+'Fig 3 Neptunus'!I107+'Fig 4 Walkover'!I107) -> 
F107: =IF($A107="","",'Fig 1 Ballet Leg'!H108) ->  | G107: =IF($A107="","",'Fig 2 Barracuda'!H108) ->  | H107: =IF($A107="","",'Fig 3 Neptunus'!H108) ->  | I107: =IF($A107="","",'Fig 4 Walkover'!H108) ->  | J107: =IF($A107="","",'Fig 1 Ballet Leg'!I108+'Fig 2 Barracuda'!I108+'Fig 3 Neptunus'!I108+'Fig 4 Walkover'!I108) -> 
F108: =IF($A108="","",'Fig 1 Ballet Leg'!H109) ->  | G108: =IF($A108="","",'Fig 2 Barracuda'!H109) ->  | H108: =IF($A108="","",'Fig 3 Neptunus'!H109) ->  | I108: =IF($A108="","",'Fig 4 Walkover'!H109) ->  | J108: =IF($A108="","",'Fig 1 Ballet Leg'!I109+'Fig 2 Barracuda'!I109+'Fig 3 Neptunus'!I109+'Fig 4 Walkover'!I109) -> 
F109: =IF($A109="","",'Fig 1 Ballet Leg'!H110) ->  | G109: =IF($A109="","",'Fig 2 Barracuda'!H110) ->  | H109: =IF($A109="","",'Fig 3 Neptunus'!H110) ->  | I109: =IF($A109="","",'Fig 4 Walkover'!H110) ->  | J109: =IF($A109="","",'Fig 1 Ballet Leg'!I110+'Fig 2 Barracuda'!I110+'Fig 3 Neptunus'!I110+'Fig 4 Walkover'!I110) -> 
F110: =IF($A110="","",'Fig 1 Ballet Leg'!H111) ->  | G110: =IF($A110="","",'Fig 2 Barracuda'!H111) ->  | H110: =IF($A110="","",'Fig 3 Neptunus'!H111) ->  | I110: =IF($A110="","",'Fig 4 Walkover'!H111) ->  | J110: =IF($A110="","",'Fig 1 Ballet Leg'!I111+'Fig 2 Barracuda'!I111+'Fig 3 Neptunus'!I111+'Fig 4 Walkover'!I111) -> 
F111: =IF($A111="","",'Fig 1 Ballet Leg'!H112) ->  | G111: =IF($A111="","",'Fig 2 Barracuda'!H112) ->  | H111: =IF($A111="","",'Fig 3 Neptunus'!H112) ->  | I111: =IF($A111="","",'Fig 4 Walkover'!H112) ->  | J111: =IF($A111="","",'Fig 1 Ballet Leg'!I112+'Fig 2 Barracuda'!I112+'Fig 3 Neptunus'!I112+'Fig 4 Walkover'!I112) -> 
F112: =IF($A112="","",'Fig 1 Ballet Leg'!H113) ->  | G112: =IF($A112="","",'Fig 2 Barracuda'!H113) ->  | H112: =IF($A112="","",'Fig 3 Neptunus'!H113) ->  | I112: =IF($A112="","",'Fig 4 Walkover'!H113) ->  | J112: =IF($A112="","",'Fig 1 Ballet Leg'!I113+'Fig 2 Barracuda'!I113+'Fig 3 Neptunus'!I113+'Fig 4 Walkover'!I113) -> 
F113: =IF($A113="","",'Fig 1 Ballet Leg'!H114) ->  | G113: =IF($A113="","",'Fig 2 Barracuda'!H114) ->  | H113: =IF($A113="","",'Fig 3 Neptunus'!H114) ->  | I113: =IF($A113="","",'Fig 4 Walkover'!H114) ->  | J113: =IF($A113="","",'Fig 1 Ballet Leg'!I114+'Fig 2 Barracuda'!I114+'Fig 3 Neptunus'!I114+'Fig 4 Walkover'!I114) -> 
F114: =IF($A114="","",'Fig 1 Ballet Leg'!H115) ->  | G114: =IF($A114="","",'Fig 2 Barracuda'!H115) ->  | H114: =IF($A114="","",'Fig 3 Neptunus'!H115) ->  | I114: =IF($A114="","",'Fig 4 Walkover'!H115) ->  | J114: =IF($A114="","",'Fig 1 Ballet Leg'!I115+'Fig 2 Barracuda'!I115+'Fig 3 Neptunus'!I115+'Fig 4 Walkover'!I115) -> 
F115: =IF($A115="","",'Fig 1 Ballet Leg'!H116) ->  | G115: =IF($A115="","",'Fig 2 Barracuda'!H116) ->  | H115: =IF($A115="","",'Fig 3 Neptunus'!H116) ->  | I115: =IF($A115="","",'Fig 4 Walkover'!H116) ->  | J115: =IF($A115="","",'Fig 1 Ballet Leg'!I116+'Fig 2 Barracuda'!I116+'Fig 3 Neptunus'!I116+'Fig 4 Walkover'!I116) -> 
F116: =IF($A116="","",'Fig 1 Ballet Leg'!H117) ->  | G116: =IF($A116="","",'Fig 2 Barracuda'!H117) ->  | H116: =IF($A116="","",'Fig 3 Neptunus'!H117) ->  | I116: =IF($A116="","",'Fig 4 Walkover'!H117) ->  | J116: =IF($A116="","",'Fig 1 Ballet Leg'!I117+'Fig 2 Barracuda'!I117+'Fig 3 Neptunus'!I117+'Fig 4 Walkover'!I117) -> 
F117: =IF($A117="","",'Fig 1 Ballet Leg'!H118) ->  | G117: =IF($A117="","",'Fig 2 Barracuda'!H118) ->  | H117: =IF($A117="","",'Fig 3 Neptunus'!H118) ->  | I117: =IF($A117="","",'Fig 4 Walkover'!H118) ->  | J117: =IF($A117="","",'Fig 1 Ballet Leg'!I118+'Fig 2 Barracuda'!I118+'Fig 3 Neptunus'!I118+'Fig 4 Walkover'!I118) -> 
F118: =IF($A118="","",'Fig 1 Ballet Leg'!H119) ->  | G118: =IF($A118="","",'Fig 2 Barracuda'!H119) ->  | H118: =IF($A118="","",'Fig 3 Neptunus'!H119) ->  | I118: =IF($A118="","",'Fig 4 Walkover'!H119) ->  | J118: =IF($A118="","",'Fig 1 Ballet Leg'!I119+'Fig 2 Barracuda'!I119+'Fig 3 Neptunus'!I119+'Fig 4 Walkover'!I119) -> 
F119: =IF($A119="","",'Fig 1 Ballet Leg'!H120) ->  | G119: =IF($A119="","",'Fig 2 Barracuda'!H120) ->  | H119: =IF($A119="","",'Fig 3 Neptunus'!H120) ->  | I119: =IF($A119="","",'Fig 4 Walkover'!H120) ->  | J119: =IF($A119="","",'Fig 1 Ballet Leg'!I120+'Fig 2 Barracuda'!I120+'Fig 3 Neptunus'!I120+'Fig 4 Walkover'!I120) -> 
F120: =IF($A120="","",'Fig 1 Ballet Leg'!H121) ->  | G120: =IF($A120="","",'Fig 2 Barracuda'!H121) ->  | H120: =IF($A120="","",'Fig 3 Neptunus'!H121) ->  | I120: =IF($A120="","",'Fig 4 Walkover'!H121) ->  | J120: =IF($A120="","",'Fig 1 Ballet Leg'!I121+'Fig 2 Barracuda'!I121+'Fig 3 Neptunus'!I121+'Fig 4 Walkover'!I121) -> 
F121: =IF($A121="","",'Fig 1 Ballet Leg'!H122) ->  | G121: =IF($A121="","",'Fig 2 Barracuda'!H122) ->  | H121: =IF($A121="","",'Fig 3 Neptunus'!H122) ->  | I121: =IF($A121="","",'Fig 4 Walkover'!H122) ->  | J121: =IF($A121="","",'Fig 1 Ballet Leg'!I122+'Fig 2 Barracuda'!I122+'Fig 3 Neptunus'!I122+'Fig 4 Walkover'!I122) -> 
F122: =IF($A122="","",'Fig 1 Ballet Leg'!H123) ->  | G122: =IF($A122="","",'Fig 2 Barracuda'!H123) ->  | H122: =IF($A122="","",'Fig 3 Neptunus'!H123) ->  | I122: =IF($A122="","",'Fig 4 Walkover'!H123) ->  | J122: =IF($A122="","",'Fig 1 Ballet Leg'!I123+'Fig 2 Barracuda'!I123+'Fig 3 Neptunus'!I123+'Fig 4 Walkover'!I123) -> 
F123: =IF($A123="","",'Fig 1 Ballet Leg'!H124) ->  | G123: =IF($A123="","",'Fig 2 Barracuda'!H124) ->  | H123: =IF($A123="","",'Fig 3 Neptunus'!H124) ->  | I123: =IF($A123="","",'Fig 4 Walkover'!H124) ->  | J123: =IF($A123="","",'Fig 1 Ballet Leg'!I124+'Fig 2 Barracuda'!I124+'Fig 3 Neptunus'!I124+'Fig 4 Walkover'!I124) -> 
F124: =IF($A124="","",'Fig 1 Ballet Leg'!H125) ->  | G124: =IF($A124="","",'Fig 2 Barracuda'!H125) ->  | H124: =IF($A124="","",'Fig 3 Neptunus'!H125) ->  | I124: =IF($A124="","",'Fig 4 Walkover'!H125) ->  | J124: =IF($A124="","",'Fig 1 Ballet Leg'!I125+'Fig 2 Barracuda'!I125+'Fig 3 Neptunus'!I125+'Fig 4 Walkover'!I125) -> 
F125: =IF($A125="","",'Fig 1 Ballet Leg'!H126) ->  | G125: =IF($A125="","",'Fig 2 Barracuda'!H126) ->  | H125: =IF($A125="","",'Fig 3 Neptunus'!H126) ->  | I125: =IF($A125="","",'Fig 4 Walkover'!H126) ->  | J125: =IF($A125="","",'Fig 1 Ballet Leg'!I126+'Fig 2 Barracuda'!I126+'Fig 3 Neptunus'!I126+'Fig 4 Walkover'!I126) -> 
F126: =IF($A126="","",'Fig 1 Ballet Leg'!H127) ->  | G126: =IF($A126="","",'Fig 2 Barracuda'!H127) ->  | H126: =IF($A126="","",'Fig 3 Neptunus'!H127) ->  | I126: =IF($A126="","",'Fig 4 Walkover'!H127) ->  | J126: =IF($A126="","",'Fig 1 Ballet Leg'!I127+'Fig 2 Barracuda'!I127+'Fig 3 Neptunus'!I127+'Fig 4 Walkover'!I127) -> 
F127: =IF($A127="","",'Fig 1 Ballet Leg'!H128) ->  | G127: =IF($A127="","",'Fig 2 Barracuda'!H128) ->  | H127: =IF($A127="","",'Fig 3 Neptunus'!H128) ->  | I127: =IF($A127="","",'Fig 4 Walkover'!H128) ->  | J127: =IF($A127="","",'Fig 1 Ballet Leg'!I128+'Fig 2 Barracuda'!I128+'Fig 3 Neptunus'!I128+'Fig 4 Walkover'!I128) -> 
F128: =IF($A128="","",'Fig 1 Ballet Leg'!H129) ->  | G128: =IF($A128="","",'Fig 2 Barracuda'!H129) ->  | H128: =IF($A128="","",'Fig 3 Neptunus'!H129) ->  | I128: =IF($A128="","",'Fig 4 Walkover'!H129) ->  | J128: =IF($A128="","",'Fig 1 Ballet Leg'!I129+'Fig 2 Barracuda'!I129+'Fig 3 Neptunus'!I129+'Fig 4 Walkover'!I129) -> 
F129: =IF($A129="","",'Fig 1 Ballet Leg'!H130) ->  | G129: =IF($A129="","",'Fig 2 Barracuda'!H130) ->  | H129: =IF($A129="","",'Fig 3 Neptunus'!H130) ->  | I129: =IF($A129="","",'Fig 4 Walkover'!H130) ->  | J129: =IF($A129="","",'Fig 1 Ballet Leg'!I130+'Fig 2 Barracuda'!I130+'Fig 3 Neptunus'!I130+'Fig 4 Walkover'!I130) -> 
F130: =IF($A130="","",'Fig 1 Ballet Leg'!H131) ->  | G130: =IF($A130="","",'Fig 2 Barracuda'!H131) ->  | H130: =IF($A130="","",'Fig 3 Neptunus'!H131) ->  | I130: =IF($A130="","",'Fig 4 Walkover'!H131) ->  | J130: =IF($A130="","",'Fig 1 Ballet Leg'!I131+'Fig 2 Barracuda'!I131+'Fig 3 Neptunus'!I131+'Fig 4 Walkover'!I131) -> 
F131: =IF($A131="","",'Fig 1 Ballet Leg'!H132) ->  | G131: =IF($A131="","",'Fig 2 Barracuda'!H132) ->  | H131: =IF($A131="","",'Fig 3 Neptunus'!H132) ->  | I131: =IF($A131="","",'Fig 4 Walkover'!H132) ->  | J131: =IF($A131="","",'Fig 1 Ballet Leg'!I132+'Fig 2 Barracuda'!I132+'Fig 3 Neptunus'!I132+'Fig 4 Walkover'!I132) -> 
F132: =IF($A132="","",'Fig 1 Ballet Leg'!H133) ->  | G132: =IF($A132="","",'Fig 2 Barracuda'!H133) ->  | H132: =IF($A132="","",'Fig 3 Neptunus'!H133) ->  | I132: =IF($A132="","",'Fig 4 Walkover'!H133) ->  | J132: =IF($A132="","",'Fig 1 Ballet Leg'!I133+'Fig 2 Barracuda'!I133+'Fig 3 Neptunus'!I133+'Fig 4 Walkover'!I133) -> 
D133: =IF($A133="","",SUM(F133:I133)-J133) ->  | E133: =IF($A133="","",RANK(D133,D$2:D$150)) ->  | F133: =IF($A133="","",'Fig 1 Ballet Leg'!H134) ->  | G133: =IF($A133="","",'Fig 2 Barracuda'!H134) ->  | H133: =IF($A133="","",'Fig 3 Neptunus'!H134) ->  | I133: =IF($A133="","",'Fig 4 Walkover'!H134) ->  | J133: =IF($A133="","",'Fig 1 Ballet Leg'!I134+'Fig 2 Barracuda'!I134+'Fig 3 Neptunus'!I134+'Fig 4 Walkover'!I134) ->  | K133: =IF($A133="","",IF(A133="","",VLOOKUP(E133,AX$3:AY$102,2,FALSE))) -> 
F134: =IF($A134="","",'Fig 1 Ballet Leg'!H135) ->  | G134: =IF($A134="","",'Fig 2 Barracuda'!H135) ->  | H134: =IF($A134="","",'Fig 3 Neptunus'!H135) ->  | I134: =IF($A134="","",'Fig 4 Walkover'!H135) ->  | J134: =IF($A134="","",'Fig 1 Ballet Leg'!I135+'Fig 2 Barracuda'!I135+'Fig 3 Neptunus'!I135+'Fig 4 Walkover'!I135) -> 
F135: =IF($A135="","",'Fig 1 Ballet Leg'!H136) ->  | G135: =IF($A135="","",'Fig 2 Barracuda'!H136) ->  | H135: =IF($A135="","",'Fig 3 Neptunus'!H136) ->  | I135: =IF($A135="","",'Fig 4 Walkover'!H136) ->  | J135: =IF($A135="","",'Fig 1 Ballet Leg'!I136+'Fig 2 Barracuda'!I136+'Fig 3 Neptunus'!I136+'Fig 4 Walkover'!I136) -> 
F136: =IF($A136="","",'Fig 1 Ballet Leg'!H137) ->  | G136: =IF($A136="","",'Fig 2 Barracuda'!H137) ->  | H136: =IF($A136="","",'Fig 3 Neptunus'!H137) ->  | I136: =IF($A136="","",'Fig 4 Walkover'!H137) ->  | J136: =IF($A136="","",'Fig 1 Ballet Leg'!I137+'Fig 2 Barracuda'!I137+'Fig 3 Neptunus'!I137+'Fig 4 Walkover'!I137) -> 
F137: =IF($A137="","",'Fig 1 Ballet Leg'!H138) ->  | G137: =IF($A137="","",'Fig 2 Barracuda'!H138) ->  | H137: =IF($A137="","",'Fig 3 Neptunus'!H138) ->  | I137: =IF($A137="","",'Fig 4 Walkover'!H138) ->  | J137: =IF($A137="","",'Fig 1 Ballet Leg'!I138+'Fig 2 Barracuda'!I138+'Fig 3 Neptunus'!I138+'Fig 4 Walkover'!I138) -> 
F138: =IF($A138="","",'Fig 1 Ballet Leg'!H139) ->  | G138: =IF($A138="","",'Fig 2 Barracuda'!H139) ->  | H138: =IF($A138="","",'Fig 3 Neptunus'!H139) ->  | I138: =IF($A138="","",'Fig 4 Walkover'!H139) ->  | J138: =IF($A138="","",'Fig 1 Ballet Leg'!I139+'Fig 2 Barracuda'!I139+'Fig 3 Neptunus'!I139+'Fig 4 Walkover'!I139) -> 
F139: =IF($A139="","",'Fig 1 Ballet Leg'!H140) ->  | G139: =IF($A139="","",'Fig 2 Barracuda'!H140) ->  | H139: =IF($A139="","",'Fig 3 Neptunus'!H140) ->  | I139: =IF($A139="","",'Fig 4 Walkover'!H140) ->  | J139: =IF($A139="","",'Fig 1 Ballet Leg'!I140+'Fig 2 Barracuda'!I140+'Fig 3 Neptunus'!I140+'Fig 4 Walkover'!I140) -> 
F140: =IF($A140="","",'Fig 1 Ballet Leg'!H141) ->  | G140: =IF($A140="","",'Fig 2 Barracuda'!H141) ->  | H140: =IF($A140="","",'Fig 3 Neptunus'!H141) ->  | I140: =IF($A140="","",'Fig 4 Walkover'!H141) ->  | J140: =IF($A140="","",'Fig 1 Ballet Leg'!I141+'Fig 2 Barracuda'!I141+'Fig 3 Neptunus'!I141+'Fig 4 Walkover'!I141) -> 
F141: =IF($A141="","",'Fig 1 Ballet Leg'!H142) ->  | G141: =IF($A141="","",'Fig 2 Barracuda'!H142) ->  | H141: =IF($A141="","",'Fig 3 Neptunus'!H142) ->  | I141: =IF($A141="","",'Fig 4 Walkover'!H142) ->  | J141: =IF($A141="","",'Fig 1 Ballet Leg'!I142+'Fig 2 Barracuda'!I142+'Fig 3 Neptunus'!I142+'Fig 4 Walkover'!I142) -> 
F142: =IF($A142="","",'Fig 1 Ballet Leg'!H143) ->  | G142: =IF($A142="","",'Fig 2 Barracuda'!H143) ->  | H142: =IF($A142="","",'Fig 3 Neptunus'!H143) ->  | I142: =IF($A142="","",'Fig 4 Walkover'!H143) ->  | J142: =IF($A142="","",'Fig 1 Ballet Leg'!I143+'Fig 2 Barracuda'!I143+'Fig 3 Neptunus'!I143+'Fig 4 Walkover'!I143) -> 
F143: =IF($A143="","",'Fig 1 Ballet Leg'!H144) ->  | G143: =IF($A143="","",'Fig 2 Barracuda'!H144) ->  | H143: =IF($A143="","",'Fig 3 Neptunus'!H144) ->  | I143: =IF($A143="","",'Fig 4 Walkover'!H144) ->  | J143: =IF($A143="","",'Fig 1 Ballet Leg'!I144+'Fig 2 Barracuda'!I144+'Fig 3 Neptunus'!I144+'Fig 4 Walkover'!I144) -> 
F144: =IF($A144="","",'Fig 1 Ballet Leg'!H145) ->  | G144: =IF($A144="","",'Fig 2 Barracuda'!H145) ->  | H144: =IF($A144="","",'Fig 3 Neptunus'!H145) ->  | I144: =IF($A144="","",'Fig 4 Walkover'!H145) ->  | J144: =IF($A144="","",'Fig 1 Ballet Leg'!I145+'Fig 2 Barracuda'!I145+'Fig 3 Neptunus'!I145+'Fig 4 Walkover'!I145) -> 
F145: =IF($A145="","",'Fig 1 Ballet Leg'!H146) ->  | G145: =IF($A145="","",'Fig 2 Barracuda'!H146) ->  | H145: =IF($A145="","",'Fig 3 Neptunus'!H146) ->  | I145: =IF($A145="","",'Fig 4 Walkover'!H146) ->  | J145: =IF($A145="","",'Fig 1 Ballet Leg'!I146+'Fig 2 Barracuda'!I146+'Fig 3 Neptunus'!I146+'Fig 4 Walkover'!I146) -> 
F146: =IF($A146="","",'Fig 1 Ballet Leg'!H147) ->  | G146: =IF($A146="","",'Fig 2 Barracuda'!H147) ->  | H146: =IF($A146="","",'Fig 3 Neptunus'!H147) ->  | I146: =IF($A146="","",'Fig 4 Walkover'!H147) ->  | J146: =IF($A146="","",'Fig 1 Ballet Leg'!I147+'Fig 2 Barracuda'!I147+'Fig 3 Neptunus'!I147+'Fig 4 Walkover'!I147) -> 
F147: =IF($A147="","",'Fig 1 Ballet Leg'!H148) ->  | G147: =IF($A147="","",'Fig 2 Barracuda'!H148) ->  | H147: =IF($A147="","",'Fig 3 Neptunus'!H148) ->  | I147: =IF($A147="","",'Fig 4 Walkover'!H148) ->  | J147: =IF($A147="","",'Fig 1 Ballet Leg'!I148+'Fig 2 Barracuda'!I148+'Fig 3 Neptunus'!I148+'Fig 4 Walkover'!I148) -> 
F148: =IF($A148="","",'Fig 1 Ballet Leg'!H149) ->  | G148: =IF($A148="","",'Fig 2 Barracuda'!H149) ->  | H148: =IF($A148="","",'Fig 3 Neptunus'!H149) ->  | I148: =IF($A148="","",'Fig 4 Walkover'!H149) ->  | J148: =IF($A148="","",'Fig 1 Ballet Leg'!I149+'Fig 2 Barracuda'!I149+'Fig 3 Neptunus'!I149+'Fig 4 Walkover'!I149) -> 
F149: =IF($A149="","",'Fig 1 Ballet Leg'!H150) ->  | G149: =IF($A149="","",'Fig 2 Barracuda'!H150) ->  | H149: =IF($A149="","",'Fig 3 Neptunus'!H150) ->  | I149: =IF($A149="","",'Fig 4 Walkover'!H150) ->  | J149: =IF($A149="","",'Fig 1 Ballet Leg'!I150+'Fig 2 Barracuda'!I150+'Fig 3 Neptunus'!I150+'Fig 4 Walkover'!I150) -> 
F150: =IF($A150="","",'Fig 1 Ballet Leg'!H151) ->  | G150: =IF($A150="","",'Fig 2 Barracuda'!H151) ->  | H150: =IF($A150="","",'Fig 3 Neptunus'!H151) ->  | I150: =IF($A150="","",'Fig 4 Walkover'!H151) ->  | J150: =IF($A150="","",'Fig 1 Ballet Leg'!I151+'Fig 2 Barracuda'!I151+'Fig 3 Neptunus'!I151+'Fig 4 Walkover'!I151) -> 
K151: =IF($A151="","",IF(A151="","",VLOOKUP(E151,AX$3:AY$102,2,FALSE))) -> 

Sheet Draw (hidden)
A1: 1 | B1: Bloomington | C1: =RAND() -> 0.1840652811 | G1: School | H1: Name | I1: Draw # | J1: Name | K1: School
A2: Student Names: | B2: Edina | C2: =RAND() -> 0.560567593 | D2: =IF(ISNA(RANK(C2,C$2:C$150,1)),"",RANK(C2,C$2:C$150,1)) -> 1 | E2: =IF(B2<>"",F2,"") -> 1 | F2: 1 | G2: =B2 -> Edina | H2: =A2 -> Student Names: | I2: =E2 -> 1 | J2: =IF(ISNA(VLOOKUP(I2,D$2:H$150,5,FALSE)),"",VLOOKUP(I2,D$2:H$150,5,FALSE)) -> Student Names: | K2: =IF(ISNA(VLOOKUP(I2,D$2:G$150,4,FALSE)),"",VLOOKUP(I2,D$2:G$150,4,FALSE)) -> Edina | N2: 1 | O2: Student Names: | P2: Edina
A3: Student Names: | B3: Hopkins | C3: =RAND() -> 0.9216092454 | D3: =IF(ISNA(RANK(C3,C$2:C$150,1)),"",RANK(C3,C$2:C$150,1)) -> 2 | E3: =IF(B3<>"",F3,"") -> 2 | F3: 2 | G3: =B3 -> Hopkins | H3: =A3 -> Student Names: | I3: =E3 -> 2 | J3: =IF(ISNA(VLOOKUP(I3,D$2:H$150,5,FALSE)),"",VLOOKUP(I3,D$2:H$150,5,FALSE)) -> Student Names: | K3: =IF(ISNA(VLOOKUP(I3,D$2:G$150,4,FALSE)),"",VLOOKUP(I3,D$2:G$150,4,FALSE)) -> Hopkins | N3: 2 | O3: Student Names: | P3: Hopkins
F4: 3 | G4: 0 | H4: 0 | J4: 0 | K4: 0
F5: 4 | G5: 0 | H5: 0 | J5: 0 | K5: 0
F6: 5 | G6: 0 | H6: 0 | J6: 0 | K6: 0
F7: 6 | G7: 0 | H7: 0 | J7: 0 | K7: 0
F8: 7 | G8: 0 | H8: 0 | J8: 0 | K8: 0
F9: 8 | G9: 0 | H9: 0 | J9: 0 | K9: 0
F10: 9 | G10: 0 | H10: 0 | J10: 0 | K10: 0
F11: 10 | G11: 0 | H11: 0 | J11: 0 | K11: 0
F12: 11 | G12: 0 | H12: 0 | J12: 0 | K12: 0
F13: 12 | G13: 0 | H13: 0 | J13: 0 | K13: 0
F14: 13 | G14: 0 | H14: 0 | J14: 0 | K14: 0
F15: 14 | G15: 0 | H15: 0 | J15: 0 | K15: 0
F16: 15 | G16: 0 | H16: 0 | J16: 0 | K16: 0
F17: 16 | G17: 0 | H17: 0 | J17: 0 | K17: 0
F18: 17 | G18: 0 | H18: 0 | J18: 0 | K18: 0
F19: 18 | G19: 0 | H19: 0 | J19: 0 | K19: 0
F20: 19 | G20: 0 | H20: 0 | J20: 0 | K20: 0
F21: 20 | G21: 0 | H21: 0 | J21: 0 | K21: 0
F22: 21 | G22: 0 | H22: 0 | J22: 0 | K22: 0
F23: 22 | G23: 0 | H23: 0 | J23: 0 | K23: 0
F24: 23 | G24: 0 | H24: 0 | J24: 0 | K24: 0
F25: 24 | G25: 0 | H25: 0 | J25: 0 | K25: 0
F26: 25 | G26: 0 | H26: 0 | J26: 0 | K26: 0
F27: 26 | G27: 0 | H27: 0 | J27: 0 | K27: 0
F28: 27 | G28: 0 | H28: 0 | J28: 0 | K28: 0
F29: 28 | G29: 0 | H29: 0 | J29: 0 | K29: 0
F30: 29 | G30: 0 | H30: 0 | J30: 0 | K30: 0
F31: 30 | G31: 0 | H31: 0 | J31: 0 | K31: 0
E32: =IF(B32<>"",F32,"") ->  | F32: 31 | G32: 0 | H32: 0 | J32: 0 | K32: 0
F33: 32 | G33: 0 | H33: 0 | J33: 0 | K33: 0
F34: 33 | G34: 0 | H34: 0 | J34: 0 | K34: 0
F35: 34 | G35: 0 | H35: 0 | J35: 0 | K35: 0
F36: 35 | G36: 0 | H36: 0 | J36: 0 | K36: 0
F37: 36 | G37: 0 | H37: 0 | J37: 0 | K37: 0
F38: 37 | G38: 0 | H38: 0 | J38: 0 | K38: 0
F39: 38 | G39: 0 | H39: 0 | J39: 0 | K39: 0
F40: 39 | G40: 0 | H40: 0 | J40: 0 | K40: 0
F41: 40 | G41: 0 | H41: 0 | J41: 0 | K41: 0
F42: 41 | G42: 0 | H42: 0 | J42: 0 | K42: 0
F43: 42 | G43: 0 | H43: 0 | J43: 0 | K43: 0
F44: 43 | G44: 0 | H44: 0 | J44: 0 | K44: 0
F45: 44 | G45: 0 | H45: 0 | J45: 0 | K45: 0
F46: 45 | G46: 0 | H46: 0 | J46: 0 | K46: 0
F47: 46 | G47: 0 | H47: 0 | J47: 0 | K47: 0
F48: 47 | G48: 0 | H48: 0 | J48: 0 | K48: 0
F49: 48 | G49: 0 | H49: 0 | J49: 0 | K49: 0
F50: 49 | G50: 0 | H50: 0 | J50: 0 | K50: 0
F51: 50 | G51: 0 | H51: 0 | J51: 0 | K51: 0
F52: 51 | G52: 0 | H52: 0 | J52: 0 | K52: 0
F53: 52 | G53: 0 | H53: 0 | J53: 0 | K53: 0
F54: 53 | G54: 0 | H54: 0 | J54: 0 | K54: 0
F55: 54 | G55: 0 | H55: 0 | J55: 0 | K55: 0
F56: 55 | G56: 0 | H56: 0 | J56: 0 | K56: 0
F57: 56 | G57: 0 | H57: 0 | J57: 0 | K57: 0
F58: 57 | G58: 0 | H58: 0 | J58: 0 | K58: 0
F59: 58 | G59: 0 | H59: 0 | J59: 0 | K59: 0
F60: 59 | G60: 0 | H60: 0 | J60: 0 | K60: 0
F61: 60 | G61: 0 | H61: 0 | J61: 0 | K61: 0
F62: 61 | G62: 0 | H62: 0 | J62: 0 | K62: 0
F63: 62 | G63: 0 | H63: 0 | J63: 0 | K63: 0
F64: 63 | G64: 0 | H64: 0 | J64: 0 | K64: 0
F65: 64 | G65: 0 | H65: 0 | J65: 0 | K65: 0
F66: 65 | G66: 0 | H66: 0 | J66: 0 | K66: 0
F67: 66 | G67: =B67 -> 0 | H67: =A67 -> 0 | I67: =E67 ->  | J67: =IF(ISNA(VLOOKUP(I67,D$2:H$150,5,FALSE)),"",VLOOKUP(I67,D$2:H$150,5,FALSE)) -> 0 | K67: =IF(ISNA(VLOOKUP(I67,D$2:G$150,4,FALSE)),"",VLOOKUP(I67,D$2:G$150,4,FALSE)) -> 0
F68: 67 | G68: 0 | H68: 0 | J68: 0 | K68: 0
F69: 68 | G69: 0 | H69: 0 | J69: 0 | K69: 0
F70: 69 | G70: 0 | H70: 0 | J70: 0 | K70: 0
F71: 70 | G71: 0 | H71: 0 | J71: 0 | K71: 0
F72: 71 | G72: 0 | H72: 0 | J72: 0 | K72: 0
F73: 72 | G73: 0 | H73: 0 | J73: 0 | K73: 0
F74: 73 | G74: 0 | H74: 0 | J74: 0 | K74: 0
F75: 74 | G75: 0 | H75: 0 | J75: 0 | K75: 0
F76: 75 | G76: 0 | H76: 0 | J76: 0 | K76: 0
F77: 76 | G77: 0 | H77: 0 | J77: 0 | K77: 0
F78: 77 | G78: 0 | H78: 0 | J78: 0 | K78: 0
F79: 78 | G79: 0 | H79: 0 | J79: 0 | K79: 0
F80: 79 | G80: 0 | H80: 0 | J80: 0 | K80: 0
F81: 80 | G81: 0 | H81: 0 | J81: 0 | K81: 0
F82: 81 | G82: 0 | H82: 0 | J82: 0 | K82: 0
F83: 82 | G83: 0 | H83: 0 | J83: 0 | K83: 0
F84: 83 | G84: 0 | H84: 0 | J84: 0 | K84: 0
F85: 84 | G85: 0 | H85: 0 | J85: 0 | K85: 0
F86: 85 | G86: 0 | H86: 0 | J86: 0 | K86: 0
F87: 86 | G87: 0 | H87: 0 | J87: 0 | K87: 0
F88: 87 | G88: 0 | H88: 0 | J88: 0 | K88: 0
F89: 88 | G89: 0 | H89: 0 | J89: 0 | K89: 0
F90: 89 | G90: 0 | H90: 0 | J90: 0 | K90: 0
F91: 90 | G91: 0 | H91: 0 | J91: 0 | K91: 0
F92: 91 | G92: 0 | H92: 0 | J92: 0 | K92: 0
F93: 92 | G93: 0 | H93: 0 | J93: 0 | K93: 0
F94: 93 | G94: 0 | H94: 0 | J94: 0 | K94: 0
F95: 94 | G95: =B95 -> 0 | H95: =A95 -> 0 | I95: =E95 ->  | J95: 0 | K95: 0
E96: =IF(B96<>"",F96,"") ->  | F96: 95 | G96: 0 | H96: 0 | J96: 0 | K96: 0
F97: 96 | G97: 0 | H97: 0 | J97: 0 | K97: 0
F98: 97 | G98: 0 | H98: 0 | J98: 0 | K98: 0
F99: 98 | G99: 0 | H99: 0 | J99: 0 | K99: 0
F100: 99 | G100: 0 | H100: 0 | J100: 0 | K100: 0
F101: 100 | G101: 0 | H101: 0 | J101: 0 | K101: 0
F102: 101 | G102: 0 | H102: 0 | J102: 0 | K102: 0
F103: 102 | G103: 0 | H103: 0 | J103: 0 | K103: 0
F104: 103 | G104: 0 | H104: 0 | J104: 0 | K104: 0
F105: 104 | G105: 0 | H105: 0 | J105: 0 | K105: 0
F106: 105 | G106: 0 | H106: 0 | J106: 0 | K106: 0
F107: 106 | G107: 0 | H107: 0 | J107: 0 | K107: 0
F108: 107 | G108: 0 | H108: 0 | J108: 0 | K108: 0
F109: 108 | G109: 0 | H109: 0 | J109: 0 | K109: 0
F110: 109 | G110: 0 | H110: 0 | J110: 0 | K110: 0
F111: 110 | G111: 0 | H111: 0 | J111: 0 | K111: 0
F112: 111 | G112: 0 | H112: 0 | J112: 0 | K112: 0
F113: 112 | G113: 0 | H113: 0 | J113: 0 | K113: 0
F114: 113 | G114: 0 | H114: 0 | J114: 0 | K114: 0
F115: 114 | G115: 0 | H115: 0 | J115: 0 | K115: 0
F116: 115 | G116: 0 | H116: 0 | J116: 0 | K116: 0
F117: 116 | G117: 0 | H117: 0 | J117: 0 | K117: 0
F118: 117 | G118: 0 | H118: 0 | J118: 0 | K118: 0
F119: 118 | G119: 0 | H119: 0 | J119: 0 | K119: 0
F120: 119 | G120: 0 | H120: 0 | J120: 0 | K120: 0
F121: 120 | G121: 0 | H121: 0 | J121: 0 | K121: 0
F122: 121 | G122: 0 | H122: 0 | J122: 0 | K122: 0
F123: 122 | G123: 0 | H123: 0 | J123: 0 | K123: 0
F124: 123 | G124: 0 | H124: 0 | J124: 0 | K124: 0
F125: 124 | G125: 0 | H125: 0 | J125: 0 | K125: 0
F126: 125 | G126: 0 | H126: 0 | J126: 0 | K126: 0
F127: 126 | G127: 0 | H127: 0 | J127: 0 | K127: 0
F128: 127 | G128: 0 | H128: 0 | J128: 0 | K128: 0
F129: 128 | G129: 0 | H129: 0 | J129: 0 | K129: 0
F130: 129 | G130: 0 | H130: 0 | J130: 0 | K130: 0
F131: 130 | G131: 0 | H131: 0 | J131: =IF(ISNA(VLOOKUP(I131,D$2:H$150,5,FALSE)),"",VLOOKUP(I131,D$2:H$150,5,FALSE)) -> 0 | K131: =IF(ISNA(VLOOKUP(I131,D$2:G$150,4,FALSE)),"",VLOOKUP(I131,D$2:G$150,4,FALSE)) -> 0
F132: 131 | G132: 0 | H132: 0 | J132: 0 | K132: 0
F133: 132 | G133: 0 | H133: 0 | J133: 0 | K133: 0
F134: 133 | G134: 0 | H134: 0 | J134: 0 | K134: 0
F135: 134 | G135: 0 | H135: 0 | J135: 0 | K135: 0
F136: 135 | G136: 0 | H136: 0 | J136: 0 | K136: 0
F137: 136 | G137: 0 | H137: 0 | J137: 0 | K137: 0
F138: 137 | G138: 0 | H138: 0 | J138: 0 | K138: 0
F139: 138 | G139: 0 | H139: 0 | J139: 0 | K139: 0
F140: 139 | G140: 0 | H140: 0 | J140: 0 | K140: 0
F141: 140 | G141: 0 | H141: 0 | J141: 0 | K141: 0
F142: 141 | G142: 0 | H142: 0 | J142: 0 | K142: 0
F143: 142 | G143: 0 | H143: 0 | J143: 0 | K143: 0
F144: 143 | G144: 0 | H144: 0 | J144: 0 | K144: 0
F145: 144 | G145: 0 | H145: 0 | J145: 0 | K145: 0
F146: 145 | G146: 0 | H146: 0 | J146: 0 | K146: 0
F147: 146 | G147: 0 | H147: 0 | J147: 0 | K147: 0
F148: 147 | G148: 0 | H148: 0 | J148: 0 | K148: 0
F149: 148 | G149: 0 | H149: 0 | J149: 0 | K149: 0
F150: 149 | G150: 0 | H150: 0 | J150: 0 | K150: 0

Sheet Schools (hidden)
A1: List of Schools:
A2: Bloomington
A3: Columbia Heights
A4: Eden Prairie
A5: Edina
A6: Forest Lake
A7: Hopkins
A8: Itasca
A9: Osseo-Maple Grove
A10: Prior Lake
A11: Richfield
A12: St. Louis Park
A13: Stillwater
A14: Wayzata

Sheet Official Draw
B1: VARSITY - Osseo Maple Grove v. Forest Lake
B2: =Draw!I1 -> Draw # | C2: =Draw!J1 -> Name | D2: =Draw!K1 -> School
B3: 1 | C3: Anna Stockinger | D3: Forest Lake
B4: 2 | C4: Abigail Tollas | D4: Osseo-Maple Grove
B5: 3 | C5: Tessa Crohn | D5: Forest Lake
B6: 4 | C6: Ella Anderson | D6: Forest Lake
B7: 5 | C7: Lydia Bergeron | D7: Forest Lake
B8: 6 | C8: Elena Vrba | D8: Osseo-Maple Grove
B9: 7 | C9: Hannah Littel | D9: Osseo-Maple Grove
B10: 8 | C10: Megan Ihfe | D10: Forest Lake
B11: 9 | C11: Katherine Olsen | D11: Osseo-Maple Grove
B12: 10 | C12: Leigh Boettner Johnson | D12: Forest Lake
B13: 11 | C13: Alise Ostercamp | D13: Forest Lake
B14: 12 | C14: Lindsey Biebl | D14: Forest Lake
B15: 13 | C15: Gabriela Marick | D15: Osseo-Maple Grove
B16: 14 | C16: Emma Stockinger | D16: Forest Lake
B17: 15 | C17: Sierra Nutter | D17: Forest Lake
B18: 16 | C18: Rachel Knox | D18: Osseo-Maple Grove
B19: 17 | C19: LaCresia Meyer | D19: Forest Lake
B20: 18 | C20: Emily Ostercamp | D20: Forest Lake
B21: 19 | C21: Naomi Krueger | D21: Forest Lake
B22: 20 | C22: Jessica Hentges | D22: Forest Lake
B23: 21 | C23: Bridget Beynon | D23: Forest Lake
B24: 22 | C24: Emily Barr | D24: Osseo-Maple Grove
B25: 23 | C25: Michelle Perkins | D25: Forest Lake
B26: 24 | C26: Malissa Ball | D26: Forest Lake
B27: 25 | C27: Heather Breidenbach | D27: Osseo-Maple Grove
B28: 26 | C28: Dani Sardeson | D28: Forest Lake
B29: 27 | C29: Amanda Pothen | D29: Forest Lake
B30: 28 | C30: Lacey Wedell | D30: Forest Lake
B31: 29 | C31: Andrea Dunrud | D31: Forest Lake
B32: 30 | C32: Marie Vanderwarn | D32: Osseo-Maple Grove
B33: 31 | C33: Elisabeth Heitzig | D33: Osseo-Maple Grove
B34: 32 | C34: Mika Peterson | D34: Forest Lake
B35: 33 | C35: Kelly McNamee | D35: Osseo-Maple Grove
B36: 34 | C36: Mia Janisch | D36: Forest Lake
B37: 35 | C37: Jane Burk | D37: Forest Lake
B38: 36 | C38: Moriah Ulbricht | D38: Forest Lake
B39: 37 | C39: Elizabeth Campbell | D39: Forest Lake
B40: 38 | C40: Annie Larson | D40: Forest Lake
B41: 39 | C41: Danielle Hawes | D41: Osseo-Maple Grove
B42: 40 | C42: Paige Thurnbeck | D42: Forest Lake
B43: 41 | C43: Brecken Carr | D43: Forest Lake
B44: 42 | C44: Bridget Olson | D44: Forest Lake
B45: 43 | C45: Elizabeth Blount | D45: Forest Lake
B46: 44 | C46: Megan Palmer | D46: Forest Lake
B47: 45 | C47: Holly Drazenovich | D47: Osseo-Maple Grove
B48: 46 | C48: Jessica Ruohoniemi | D48: Osseo-Maple Grove
B49: 47 | C49: Cora Martinez | D49: Forest Lake
B50: 48 | C50: Kenzie Klein | D50: Forest Lake
B51: 49 | C51: Alle Hale | D51: Forest Lake
B52: 50 | C52: Sophie Jarosz | D52: Forest Lake
B53: 51 | C53: Elizabeth McBride | D53: Osseo-Maple Grove
B54: 52 | C54: Lydia Hansen | D54: Forest Lake
B55: 53 | C55: Anna Ganser | D55: Osseo-Maple Grove
B56: 54 | C56: Fallon Olson | D56: Forest Lake
B57: 55 | C57: Caroline LaBord | D57: Osseo-Maple Grove
C58: =Draw!O57 -> 0 | D58: =Draw!P57 -> 0
C59: =Draw!O58 -> 0 | D59: =Draw!P58 -> 0
C60: =Draw!O59 -> 0 | D60: =Draw!P59 -> 0
C61: =Draw!O60 -> 0 | D61: =Draw!P60 -> 0
C62: =Draw!O61 -> 0 | D62: =Draw!P61 -> 0
C63: =Draw!O62 -> 0 | D63: =Draw!P62 -> 0
C64: =Draw!O63 -> 0 | D64: =Draw!P63 -> 0
C65: =Draw!O64 -> 0 | D65: =Draw!P64 -> 0
C66: =Draw!O65 -> 0 | D66: =Draw!P65 -> 0
C67: =Draw!O66 -> 0 | D67: =Draw!P66 -> 0
C68: =Draw!O67 -> 0 | D68: =Draw!P67 -> 0
C69: =Draw!O68 -> 0 | D69: =Draw!P68 -> 0
C70: =Draw!O69 -> 0 | D70: =Draw!P69 -> 0
C71: =Draw!O70 -> 0 | D71: =Draw!P70 -> 0
C72: =Draw!O71 -> 0 | D72: =Draw!P71 -> 0
C73: =Draw!O72 -> 0 | D73: =Draw!P72 -> 0
C74: =Draw!O73 -> 0 | D74: =Draw!P73 -> 0
C75: =Draw!O74 -> 0 | D75: =Draw!P74 -> 0
C76: =Draw!O75 -> 0 | D76: =Draw!P75 -> 0
C77: =Draw!O76 -> 0 | D77: =Draw!P76 -> 0
C78: =Draw!O77 -> 0 | D78: =Draw!P77 -> 0
C79: =Draw!O78 -> 0 | D79: =Draw!P78 -> 0
C80: =Draw!O79 -> 0 | D80: =Draw!P79 -> 0
C81: =Draw!O80 -> 0 | D81: =Draw!P80 -> 0
C82: =Draw!O81 -> 0 | D82: =Draw!P81 -> 0
C83: =Draw!O82 -> 0 | D83: =Draw!P82 -> 0
C84: =Draw!O83 -> 0 | D84: =Draw!P83 -> 0
C85: =Draw!O84 -> 0 | D85: =Draw!P84 -> 0
C86: =Draw!O85 -> 0 | D86: =Draw!P85 -> 0
C87: =Draw!O86 -> 0 | D87: =Draw!P86 -> 0
C88: =Draw!O87 -> 0 | D88: =Draw!P87 -> 0
C89: =Draw!O88 -> 0 | D89: =Draw!P88 -> 0
C90: =Draw!O89 -> 0 | D90: =Draw!P89 -> 0
C91: =Draw!O90 -> 0 | D91: =Draw!P90 -> 0
C92: =Draw!O91 -> 0 | D92: =Draw!P91 -> 0
C93: =Draw!O92 -> 0 | D93: =Draw!P92 -> 0
C94: =Draw!O93 -> 0 | D94: =Draw!P93 -> 0
C95: =Draw!O94 -> 0 | D95: =Draw!P94 -> 0
C96: =Draw!O95 -> 0 | D96: =Draw!P95 -> 0
C97: =Draw!O96 -> 0 | D97: =Draw!P96 -> 0
C98: =Draw!O97 -> 0 | D98: =Draw!P97 -> 0
C99: =Draw!O98 -> 0 | D99: =Draw!P98 -> 0
C100: =Draw!O99 -> 0 | D100: =Draw!P99 -> 0
C101: =Draw!O100 -> 0 | D101: =Draw!P100 -> 0
C102: =Draw!O101 -> 0 | D102: =Draw!P101 -> 0
C103: =Draw!O102 -> 0 | D103: =Draw!P102 -> 0
C104: =Draw!O103 -> 0 | D104: =Draw!P103 -> 0
C105: =Draw!O104 -> 0 | D105: =Draw!P104 -> 0
C106: =Draw!O105 -> 0 | D106: =Draw!P105 -> 0
C107: =Draw!O106 -> 0 | D107: =Draw!P106 -> 0
C108: =Draw!O107 -> 0 | D108: =Draw!P107 -> 0
C109: =Draw!O108 -> 0 | D109: =Draw!P108 -> 0
C110: =Draw!O109 -> 0 | D110: =Draw!P109 -> 0
C111: =Draw!O110 -> 0 | D111: =Draw!P110 -> 0
C112: =Draw!O111 -> 0 | D112: =Draw!P111 -> 0
C113: =Draw!O112 -> 0 | D113: =Draw!P112 -> 0
C114: =Draw!O113 -> 0 | D114: =Draw!P113 -> 0
C115: =Draw!O114 -> 0 | D115: =Draw!P114 -> 0
C116: =Draw!O115 -> 0 | D116: =Draw!P115 -> 0
C117: =Draw!O116 -> 0 | D117: =Draw!P116 -> 0
C118: =Draw!O117 -> 0 | D118: =Draw!P117 -> 0
C119: =Draw!O118 -> 0 | D119: =Draw!P118 -> 0
C120: =Draw!O119 -> 0 | D120: =Draw!P119 -> 0
C121: =Draw!O120 -> 0 | D121: =Draw!P120 -> 0
C122: =Draw!O121 -> 0 | D122: =Draw!P121 -> 0
C123: =Draw!O122 -> 0 | D123: =Draw!P122 -> 0
C124: =Draw!O123 -> 0 | D124: =Draw!P123 -> 0
C125: =Draw!O124 -> 0 | D125: =Draw!P124 -> 0
C126: =Draw!O125 -> 0 | D126: =Draw!P125 -> 0
C127: =Draw!O126 -> 0 | D127: =Draw!P126 -> 0
C128: =Draw!O127 -> 0 | D128: =Draw!P127 -> 0
C129: =Draw!O128 -> 0 | D129: =Draw!P128 -> 0
C130: =Draw!O129 -> 0 | D130: =Draw!P129 -> 0
C131: =Draw!O130 -> 0 | D131: =Draw!P130 -> 0
C132: =Draw!O131 -> 0 | D132: =Draw!P131 -> 0
C133: =Draw!O132 -> 0 | D133: =Draw!P132 -> 0
C134: =Draw!O133 -> 0 | D134: =Draw!P133 -> 0
C135: =Draw!O134 -> 0 | D135: =Draw!P134 -> 0
C136: =Draw!O135 -> 0 | D136: =Draw!P135 -> 0
C137: =Draw!O136 -> 0 | D137: =Draw!P136 -> 0
C138: =Draw!O137 -> 0 | D138: =Draw!P137 -> 0
C139: =Draw!O138 -> 0 | D139: =Draw!P138 -> 0
C140: =Draw!O139 -> 0 | D140: =Draw!P139 -> 0
C141: =Draw!O140 -> 0 | D141: =Draw!P140 -> 0
C142: =Draw!O141 -> 0 | D142: =Draw!P141 -> 0
C143: =Draw!O142 -> 0 | D143: =Draw!P142 -> 0
C144: =Draw!O143 -> 0 | D144: =Draw!P143 -> 0
C145: =Draw!O144 -> 0 | D145: =Draw!P144 -> 0
C146: =Draw!O145 -> 0 | D146: =Draw!P145 -> 0
C147: =Draw!O146 -> 0 | D147: =Draw!P146 -> 0
C148: =Draw!O147 -> 0 | D148: =Draw!P147 -> 0
C149: =Draw!O148 -> 0 | D149: =Draw!P148 -> 0
C150: =Draw!O149 -> 0 | D150: =Draw!P149 -> 0
C151: =Draw!O150 -> 0 | D151: =Draw!P150 -> 0

Sheet Meet Results
D2: Osseo-Maple Grove | E2: =SUMIF($F5:$G24,D2,$H5:$H24) -> 1 | F2: Forest Lake | G2: =SUMIF($F5:$G24,F2,$H5:$H24) -> 28 | K2: Edina | L2: =SUMIF($M5:$N24,K2,$O5:$O24) -> 0 | M2: Edina | N2: =SUMIF($M5:$N24,M2,$O5:$O24) -> 0 | R2: Hopkins | S2: =SUMIF($T5:$U24,R2,$V5:$V24) -> 0 | T2: Hopkins | U2: =SUMIF($T5:$U24,T2,$V5:$V24) -> 0
D3: Total Score | K3: Total Score | R3: Total Score
D4: # | E4: Swimmer | F4: School | G4: Total | H4: SCORE | I4: PLACE | K4: # | L4: Swimmer | M4: School | N4: Total | O4: SCORE | P4: PLACE | R4: # | S4: Swimmer | T4: School | U4: Total | V4: SCORE | W4: PLACE
D5: 29 | E5: Andrea Dunrud | F5: Forest Lake | G5: 67.9254386 | H5: =IF(ISNA(VLOOKUP(I5,Totals!$AX$3:$AY$102,2,FALSE)),"",VLOOKUP(I5,Totals!$AX$3:$AY$102,2,FALSE)) -> 8 | I5: =IF(ISNA(RANK(G5,G$5:G$150)),"",RANK(G5,G$5:G$150)) -> 1 | K5: 29 | L5: Andrea Dunrud | M5: Forest Lake | N5: 67.9254386 | O5: =IF(ISNA(VLOOKUP(P5,Totals!$AX$3:$AY$102,2,FALSE)),"",VLOOKUP(P5,Totals!$AX$3:$AY$102,2,FALSE)) -> 8 | P5: =IF(ISNA(RANK(N5,N$5:N$150)),"",RANK(N5,N$5:N$150)) -> 1 | R5: 29 | S5: Andrea Dunrud | T5: Forest Lake | U5: 67.9254386 | V5: =IF(ISNA(VLOOKUP(W5,Totals!$AX$3:$AY$102,2,FALSE)),"",VLOOKUP(W5,Totals!$AX$3:$AY$102,2,FALSE)) -> 8 | W5: =IF(ISNA(RANK(U5,U$5:U$150)),"",RANK(U5,U$5:U$150)) -> 1
D6: 48 | E6: Kenzie Klein | F6: Forest Lake | G6: 63.94736842 | H6: =IF(ISNA(VLOOKUP(I6,Totals!$AX$3:$AY$102,2,FALSE)),"",VLOOKUP(I6,Totals!$AX$3:$AY$102,2,FALSE)) -> 6 | I6: =IF(G6=G5,I5,IF(ISNA(RANK(G6,G$5:G$150)),"",RANK(G6,G$5:G$150))) -> 2 | K6: 48 | L6: Kenzie Klein | M6: Forest Lake | N6: 63.94736842 | O6: =IF(ISNA(VLOOKUP(P6,Totals!$AX$3:$AY$102,2,FALSE)),"",VLOOKUP(P6,Totals!$AX$3:$AY$102,2,FALSE)) -> 6 | P6: =IF(ISNA(RANK(N6,N$5:N$150)),"",RANK(N6,N$5:N$150)) -> 2 | R6: 48 | S6: Kenzie Klein | T6: Forest Lake | U6: 63.94736842 | V6: =IF(ISNA(VLOOKUP(W6,Totals!$AX$3:$AY$102,2,FALSE)),"",VLOOKUP(W6,Totals!$AX$3:$AY$102,2,FALSE)) -> 6 | W6: =IF(ISNA(RANK(U6,U$5:U$150)),"",RANK(U6,U$5:U$150)) -> 2
D7: 54 | E7: Fallon Olson | F7: Forest Lake | G7: 63.79824561 | H7: =IF(ISNA(VLOOKUP(I7,Totals!$AX$3:$AY$102,2,FALSE)),"",VLOOKUP(I7,Totals!$AX$3:$AY$102,2,FALSE)) -> 5 | I7: =IF(G7=G6,I6,IF(ISNA(RANK(G7,G$5:G$150)),"",RANK(G7,G$5:G$150))) -> 3 | K7: 54 | L7: Fallon Olson | M7: Forest Lake | N7: 63.79824561 | O7: =IF(ISNA(VLOOKUP(P7,Totals!$AX$3:$AY$102,2,FALSE)),"",VLOOKUP(P7,Totals!$AX$3:$AY$102,2,FALSE)) -> 5 | P7: 3 | R7: 54 | S7: Fallon Olson | T7: Forest Lake | U7: 63.79824561 | V7: =IF(ISNA(VLOOKUP(W7,Totals!$AX$3:$AY$102,2,FALSE)),"",VLOOKUP(W7,Totals!$AX$3:$AY$102,2,FALSE)) -> 5 | W7: 3
D8: 32 | E8: Mika Peterson | F8: Forest Lake | G8: 62.65350877 | H8: =IF(ISNA(VLOOKUP(I8,Totals!$AX$3:$AY$102,2,FALSE)),"",VLOOKUP(I8,Totals!$AX$3:$AY$102,2,FALSE)) -> 4 | I8: 4 | K8: 32 | L8: Mika Peterson | M8: Forest Lake | N8: 62.65350877 | O8: =IF(ISNA(VLOOKUP(P8,Totals!$AX$3:$AY$102,2,FALSE)),"",VLOOKUP(P8,Totals!$AX$3:$AY$102,2,FALSE)) -> 4 | P8: 4 | R8: 32 | S8: Mika Peterson | T8: Forest Lake | U8: 62.65350877 | V8: =IF(ISNA(VLOOKUP(W8,Totals!$AX$3:$AY$102,2,FALSE)),"",VLOOKUP(W8,Totals!$AX$3:$AY$102,2,FALSE)) -> 4 | W8: 4
D9: 23 | E9: Michelle Perkins | F9: Forest Lake | G9: 61.5877193 | H9: =IF(ISNA(VLOOKUP(I9,Totals!$AX$3:$AY$102,2,FALSE)),"",VLOOKUP(I9,Totals!$AX$3:$AY$102,2,FALSE)) -> 3 | I9: 5 | K9: 23 | L9: Michelle Perkins | M9: Forest Lake | N9: 61.5877193 | O9: =IF(ISNA(VLOOKUP(P9,Totals!$AX$3:$AY$102,2,FALSE)),"",VLOOKUP(P9,Totals!$AX$3:$AY$102,2,FALSE)) -> 3 | P9: 5 | R9: 23 | S9: Michelle Perkins | T9: Forest Lake | U9: 61.5877193 | V9: =IF(ISNA(VLOOKUP(W9,Totals!$AX$3:$AY$102,2,FALSE)),"",VLOOKUP(W9,Totals!$AX$3:$AY$102,2,FALSE)) -> 3 | W9: 5
D10: 26 | E10: Dani Sardeson | F10: Forest Lake | G10: 61.35087719 | H10: =IF(ISNA(VLOOKUP(I10,Totals!$AX$3:$AY$102,2,FALSE)),"",VLOOKUP(I10,Totals!$AX$3:$AY$102,2,FALSE)) -> 2 | I10: 6 | K10: 26 | L10: Dani Sardeson | M10: Forest Lake | N10: 61.35087719 | O10: =IF(ISNA(VLOOKUP(P10,Totals!$AX$3:$AY$102,2,FALSE)),"",VLOOKUP(P10,Totals!$AX$3:$AY$102,2,FALSE)) -> 2 | P10: 6 | R10: 26 | S10: Dani Sardeson | T10: Forest Lake | U10: 61.35087719 | V10: =IF(ISNA(VLOOKUP(W10,Totals!$AX$3:$AY$102,2,FALSE)),"",VLOOKUP(W10,Totals!$AX$3:$AY$102,2,FALSE)) -> 2 | W10: 6
D11: 51 | E11: Elizabeth McBride | F11: Osseo-Maple Grove | G11: 60.1622807 | H11: =IF(ISNA(VLOOKUP(I11,Totals!$AX$3:$AY$102,2,FALSE)),"",VLOOKUP(I11,Totals!$AX$3:$AY$102,2,FALSE)) -> 1 | I11: 7 | K11: 51 | L11: Elizabeth McBride | M11: Osseo-Maple Grove | N11: 60.1622807 | O11: =IF(ISNA(VLOOKUP(P11,Totals!$AX$3:$AY$102,2,FALSE)),"",VLOOKUP(P11,Totals!$AX$3:$AY$102,2,FALSE)) -> 1 | P11: 7 | R11: 51 | S11: Elizabeth McBride | T11: Osseo-Maple Grove | U11: 60.1622807 | V11: =IF(ISNA(VLOOKUP(W11,Totals!$AX$3:$AY$102,2,FALSE)),"",VLOOKUP(W11,Totals!$AX$3:$AY$102,2,FALSE)) -> 1 | W11: 7
D12: 40 | E12: Paige Thurnbeck | F12: Forest Lake | G12: 60.09649123 | H12: =IF(ISNA(VLOOKUP(I12,Totals!$AX$3:$AY$102,2,FALSE)),"",VLOOKUP(I12,Totals!$AX$3:$AY$102,2,FALSE)) -> 0 | I12: 8 | K12: 40 | L12: Paige Thurnbeck | M12: Forest Lake | N12: 60.09649123 | O12: =IF(ISNA(VLOOKUP(P12,Totals!$AX$3:$AY$102,2,FALSE)),"",VLOOKUP(P12,Totals!$AX$3:$AY$102,2,FALSE)) -> 0 | P12: 8 | R12: 40 | S12: Paige Thurnbeck | T12: Forest Lake | U12: 60.09649123 | V12: =IF(ISNA(VLOOKUP(W12,Totals!$AX$3:$AY$102,2,FALSE)),"",VLOOKUP(W12,Totals!$AX$3:$AY$102,2,FALSE)) -> 0 | W12: 8
D13: 28 | E13: Lacey Wedell | F13: Forest Lake | G13: 60.02192982 | H13: =IF(ISNA(VLOOKUP(I13,Totals!$AX$3:$AY$102,2,FALSE)),"",VLOOKUP(I13,Totals!$AX$3:$AY$102,2,FALSE)) -> 0 | I13: 9 | K13: 28 | L13: Lacey Wedell | M13: Forest Lake | N13: 60.02192982 | O13: =IF(ISNA(VLOOKUP(P13,Totals!$AX$3:$AY$102,2,FALSE)),"",VLOOKUP(P13,Totals!$AX$3:$AY$102,2,FALSE)) -> 0 | P13: 9 | R13: 28 | S13: Lacey Wedell | T13: Forest Lake | U13: 60.02192982 | V13: =IF(ISNA(VLOOKUP(W13,Totals!$AX$3:$AY$102,2,FALSE)),"",VLOOKUP(W13,Totals!$AX$3:$AY$102,2,FALSE)) -> 0 | W13: 9
D14: 44 | E14: Megan Palmer | F14: Forest Lake | G14: 59.97807018 | H14: =IF(ISNA(VLOOKUP(I14,Totals!$AX$3:$AY$102,2,FALSE)),"",VLOOKUP(I14,Totals!$AX$3:$AY$102,2,FALSE)) -> 0 | I14: 10 | K14: 44 | L14: Megan Palmer | M14: Forest Lake | N14: 59.97807018 | O14: =IF(ISNA(VLOOKUP(P14,Totals!$AX$3:$AY$102,2,FALSE)),"",VLOOKUP(P14,Totals!$AX$3:$AY$102,2,FALSE)) -> 0 | P14: 10 | R14: 44 | S14: Megan Palmer | T14: Forest Lake | U14: 59.97807018 | V14: =IF(ISNA(VLOOKUP(W14,Totals!$AX$3:$AY$102,2,FALSE)),"",VLOOKUP(W14,Totals!$AX$3:$AY$102,2,FALSE)) -> 0 | W14: 10
D15: 27 | E15: Amanda Pothen | F15: Forest Lake | G15: 59.89912281 | H15: =IF(ISNA(VLOOKUP(I15,Totals!$AX$3:$AY$102,2,FALSE)),"",VLOOKUP(I15,Totals!$AX$3:$AY$102,2,FALSE)) -> 0 | I15: 11 | K15: 27 | L15: Amanda Pothen | M15: Forest Lake | N15: 59.89912281 | O15: =IF(ISNA(VLOOKUP(P15,Totals!$AX$3:$AY$102,2,FALSE)),"",VLOOKUP(P15,Totals!$AX$3:$AY$102,2,FALSE)) -> 0 | P15: 11 | R15: 27 | S15: Amanda Pothen | T15: Forest Lake | U15: 59.89912281 | V15: =IF(ISNA(VLOOKUP(W15,Totals!$AX$3:$AY$102,2,FALSE)),"",VLOOKUP(W15,Totals!$AX$3:$AY$102,2,FALSE)) -> 0 | W15: 11
D16: 53 | E16: Anna Ganser | F16: Osseo-Maple Grove | G16: 59.40789474 | H16: =IF(ISNA(VLOOKUP(I16,Totals!$AX$3:$AY$102,2,FALSE)),"",VLOOKUP(I16,Totals!$AX$3:$AY$102,2,FALSE)) -> 0 | I16: 12 | K16: 53 | L16: Anna Ganser | M16: Osseo-Maple Grove | N16: 59.40789474 | O16: =IF(ISNA(VLOOKUP(P16,Totals!$AX$3:$AY$102,2,FALSE)),"",VLOOKUP(P16,Totals!$AX$3:$AY$102,2,FALSE)) -> 0 | P16: 12 | R16: 53 | S16: Anna Ganser | T16: Osseo-Maple Grove | U16: 59.40789474 | V16: =IF(ISNA(VLOOKUP(W16,Totals!$AX$3:$AY$102,2,FALSE)),"",VLOOKUP(W16,Totals!$AX$3:$AY$102,2,FALSE)) -> 0 | W16: 12
D17: 41 | E17: Brecken Carr | F17: Forest Lake | G17: 59.22368421 | H17: =IF(ISNA(VLOOKUP(I17,Totals!$AX$3:$AY$102,2,FALSE)),"",VLOOKUP(I17,Totals!$AX$3:$AY$102,2,FALSE)) -> 0 | I17: 13 | K17: 41 | L17: Brecken Carr | M17: Forest Lake | N17: 59.22368421 | O17: =IF(ISNA(VLOOKUP(P17,Totals!$AX$3:$AY$102,2,FALSE)),"",VLOOKUP(P17,Totals!$AX$3:$AY$102,2,FALSE)) -> 0 | P17: 13 | R17: 41 | S17: Brecken Carr | T17: Forest Lake | U17: 59.22368421 | V17: =IF(ISNA(VLOOKUP(W17,Totals!$AX$3:$AY$102,2,FALSE)),"",VLOOKUP(W17,Totals!$AX$3:$AY$102,2,FALSE)) -> 0 | W17: 13
D18: 18 | E18: Emily Ostercamp | F18: Forest Lake | G18: 57.46491228 | H18: =IF(ISNA(VLOOKUP(I18,Totals!$AX$3:$AY$102,2,FALSE)),"",VLOOKUP(I18,Totals!$AX$3:$AY$102,2,FALSE)) -> 0 | I18: 14 | K18: 18 | L18: Emily Ostercamp | M18: Forest Lake | N18: 57.46491228 | O18: =IF(ISNA(VLOOKUP(P18,Totals!$AX$3:$AY$102,2,FALSE)),"",VLOOKUP(P18,Totals!$AX$3:$AY$102,2,FALSE)) -> 0 | P18: 14 | R18: 18 | S18: Emily Ostercamp | T18: Forest Lake | U18: 57.46491228 | V18: =IF(ISNA(VLOOKUP(W18,Totals!$AX$3:$AY$102,2,FALSE)),"",VLOOKUP(W18,Totals!$AX$3:$AY$102,2,FALSE)) -> 0 | W18: 14
D19: 13 | E19: Gabriela Marick | F19: Osseo-Maple Grove | G19: 57.38157895 | H19: =IF(ISNA(VLOOKUP(I19,Totals!$AX$3:$AY$102,2,FALSE)),"",VLOOKUP(I19,Totals!$AX$3:$AY$102,2,FALSE)) -> 0 | I19: 15 | K19: 13 | L19: Gabriela Marick | M19: Osseo-Maple Grove | N19: 57.38157895 | O19: =IF(ISNA(VLOOKUP(P19,Totals!$AX$3:$AY$102,2,FALSE)),"",VLOOKUP(P19,Totals!$AX$3:$AY$102,2,FALSE)) -> 0 | P19: 15 | R19: 13 | S19: Gabriela Marick | T19: Osseo-Maple Grove | U19: 57.38157895 | V19: =IF(ISNA(VLOOKUP(W19,Totals!$AX$3:$AY$102,2,FALSE)),"",VLOOKUP(W19,Totals!$AX$3:$AY$102,2,FALSE)) -> 0 | W19: 15
D20: 5 | E20: Lydia Bergeron | F20: Forest Lake | G20: 57.04824561 | H20: =IF(ISNA(VLOOKUP(I20,Totals!$AX$3:$AY$102,2,FALSE)),"",VLOOKUP(I20,Totals!$AX$3:$AY$102,2,FALSE)) -> 0 | I20: 16 | K20: 5 | L20: Lydia Bergeron | M20: Forest Lake | N20: 57.04824561 | O20: =IF(ISNA(VLOOKUP(P20,Totals!$AX$3:$AY$102,2,FALSE)),"",VLOOKUP(P20,Totals!$AX$3:$AY$102,2,FALSE)) -> 0 | P20: 16 | R20: 5 | S20: Lydia Bergeron | T20: Forest Lake | U20: 57.04824561 | V20: =IF(ISNA(VLOOKUP(W20,Totals!$AX$3:$AY$102,2,FALSE)),"",VLOOKUP(W20,Totals!$AX$3:$AY$102,2,FALSE)) -> 0 | W20: 16
D21: 42 | E21: Bridget Olson | F21: Forest Lake | G21: 56.59649123 | H21: =IF(ISNA(VLOOKUP(I21,Totals!$AX$3:$AY$102,2,FALSE)),"",VLOOKUP(I21,Totals!$AX$3:$AY$102,2,FALSE)) -> 0 | I21: 17 | K21: 42 | L21: Bridget Olson | M21: Forest Lake | N21: 56.59649123 | O21: =IF(ISNA(VLOOKUP(P21,Totals!$AX$3:$AY$102,2,FALSE)),"",VLOOKUP(P21,Totals!$AX$3:$AY$102,2,FALSE)) -> 0 | P21: 17 | R21: 42 | S21: Bridget Olson | T21: Forest Lake | U21: 56.59649123 | V21: =IF(ISNA(VLOOKUP(W21,Totals!$AX$3:$AY$102,2,FALSE)),"",VLOOKUP(W21,Totals!$AX$3:$AY$102,2,FALSE)) -> 0 | W21: 17
D22: 8 | E22: Megan Ihfe | F22: Forest Lake | G22: 56.21052632 | H22: =IF(ISNA(VLOOKUP(I22,Totals!$AX$3:$AY$102,2,FALSE)),"",VLOOKUP(I22,Totals!$AX$3:$AY$102,2,FALSE)) -> 0 | I22: 18 | K22: 8 | L22: Megan Ihfe | M22: Forest Lake | N22: 56.21052632 | O22: =IF(ISNA(VLOOKUP(P22,Totals!$AX$3:$AY$102,2,FALSE)),"",VLOOKUP(P22,Totals!$AX$3:$AY$102,2,FALSE)) -> 0 | P22: 18 | R22: 8 | S22: Megan Ihfe | T22: Forest Lake | U22: 56.21052632 | V22: =IF(ISNA(VLOOKUP(W22,Totals!$AX$3:$AY$102,2,FALSE)),"",VLOOKUP(W22,Totals!$AX$3:$AY$102,2,FALSE)) -> 0 | W22: 18
D23: 50 | E23: Sophie Jarosz | F23: Forest Lake | G23: 56.1754386 | H23: =IF(ISNA(VLOOKUP(I23,Totals!$AX$3:$AY$102,2,FALSE)),"",VLOOKUP(I23,Totals!$AX$3:$AY$102,2,FALSE)) -> 0 | I23: 19 | K23: 50 | L23: Sophie Jarosz | M23: Forest Lake | N23: 56.1754386 | O23: =IF(ISNA(VLOOKUP(P23,Totals!$AX$3:$AY$102,2,FALSE)),"",VLOOKUP(P23,Totals!$AX$3:$AY$102,2,FALSE)) -> 0 | P23: 19 | R23: 50 | S23: Sophie Jarosz | T23: Forest Lake | U23: 56.1754386 | V23: =IF(ISNA(VLOOKUP(W23,Totals!$AX$3:$AY$102,2,FALSE)),"",VLOOKUP(W23,Totals!$AX$3:$AY$102,2,FALSE)) -> 0 | W23: 19
D24: 17 | E24: LaCresia Meyer | F24: Forest Lake | G24: 56.1754386 | H24: =IF(ISNA(VLOOKUP(I24,Totals!$AX$3:$AY$102,2,FALSE)),"",VLOOKUP(I24,Totals!$AX$3:$AY$102,2,FALSE)) -> 0 | I24: 19 | K24: 17 | L24: LaCresia Meyer | M24: Forest Lake | N24: 56.1754386 | O24: =IF(ISNA(VLOOKUP(P24,Totals!$AX$3:$AY$102,2,FALSE)),"",VLOOKUP(P24,Totals!$AX$3:$AY$102,2,FALSE)) -> 0 | P24: 19 | R24: 17 | S24: LaCresia Meyer | T24: Forest Lake | U24: 56.1754386 | V24: =IF(ISNA(VLOOKUP(W24,Totals!$AX$3:$AY$102,2,FALSE)),"",VLOOKUP(W24,Totals!$AX$3:$AY$102,2,FALSE)) -> 0 | W24: 19
D25: 39 | E25: Danielle Hawes | F25: Osseo-Maple Grove | G25: 56.10087719 | H25: =IF(ISNA(VLOOKUP(I25,Totals!$AX$3:$AY$102,2,FALSE)),"",VLOOKUP(I25,Totals!$AX$3:$AY$102,2,FALSE)) -> 0 | I25: 21 | K25: 39 | L25: Danielle Hawes | M25: Osseo-Maple Grove | N25: 56.10087719 | O25: =IF(ISNA(VLOOKUP(P25,Totals!$AX$3:$AY$102,2,FALSE)),"",VLOOKUP(P25,Totals!$AX$3:$AY$102,2,FALSE)) -> 0 | P25: 21 | R25: 39 | S25: Danielle Hawes | T25: Osseo-Maple Grove | U25: 56.10087719 | V25: =IF(ISNA(VLOOKUP(W25,Totals!$AX$3:$AY$102,2,FALSE)),"",VLOOKUP(W25,Totals!$AX$3:$AY$102,2,FALSE)) -> 0 | W25: 21
D26: 31 | E26: Elisabeth Heitzig | F26: Osseo-Maple Grove | G26: 56.0877193 | H26: =IF(ISNA(VLOOKUP(I26,Totals!$AX$3:$AY$102,2,FALSE)),"",VLOOKUP(I26,Totals!$AX$3:$AY$102,2,FALSE)) -> 0 | I26: 22 | K26: 31 | L26: Elisabeth Heitzig | M26: Osseo-Maple Grove | N26: 56.0877193 | O26: =IF(ISNA(VLOOKUP(P26,Totals!$AX$3:$AY$102,2,FALSE)),"",VLOOKUP(P26,Totals!$AX$3:$AY$102,2,FALSE)) -> 0 | P26: 22 | R26: 31 | S26: Elisabeth Heitzig | T26: Osseo-Maple Grove | U26: 56.0877193 | V26: =IF(ISNA(VLOOKUP(W26,Totals!$AX$3:$AY$102,2,FALSE)),"",VLOOKUP(W26,Totals!$AX$3:$AY$102,2,FALSE)) -> 0 | W26: 22
D27: 1 | E27: Anna Stockinger | F27: Forest Lake | G27: 55.95175439 | H27: =IF(ISNA(VLOOKUP(I27,Totals!$AX$3:$AY$102,2,FALSE)),"",VLOOKUP(I27,Totals!$AX$3:$AY$102,2,FALSE)) -> 0 | I27: 23 | K27: 1 | L27: Anna Stockinger | M27: Forest Lake | N27: 55.95175439 | O27: =IF(ISNA(VLOOKUP(P27,Totals!$AX$3:$AY$102,2,FALSE)),"",VLOOKUP(P27,Totals!$AX$3:$AY$102,2,FALSE)) -> 0 | P27: 23 | R27: 1 | S27: Anna Stockinger | T27: Forest Lake | U27: 55.95175439 | V27: =IF(ISNA(VLOOKUP(W27,Totals!$AX$3:$AY$102,2,FALSE)),"",VLOOKUP(W27,Totals!$AX$3:$AY$102,2,FALSE)) -> 0 | W27: 23
D28: 14 | E28: Emma Stockinger | F28: Forest Lake | G28: 55.75 | H28: =IF(ISNA(VLOOKUP(I28,Totals!$AX$3:$AY$102,2,FALSE)),"",VLOOKUP(I28,Totals!$AX$3:$AY$102,2,FALSE)) -> 0 | I28: 24 | K28: 14 | L28: Emma Stockinger | M28: Forest Lake | N28: 55.75 | O28: =IF(ISNA(VLOOKUP(P28,Totals!$AX$3:$AY$102,2,FALSE)),"",VLOOKUP(P28,Totals!$AX$3:$AY$102,2,FALSE)) -> 0 | P28: 24 | R28: 14 | S28: Emma Stockinger | T28: Forest Lake | U28: 55.75 | V28: =IF(ISNA(VLOOKUP(W28,Totals!$AX$3:$AY$102,2,FALSE)),"",VLOOKUP(W28,Totals!$AX$3:$AY$102,2,FALSE)) -> 0 | W28: 24
D29: 43 | E29: Elizabeth Blount | F29: Forest Lake | G29: 55.5745614 | H29: =IF(ISNA(VLOOKUP(I29,Totals!$AX$3:$AY$102,2,FALSE)),"",VLOOKUP(I29,Totals!$AX$3:$AY$102,2,FALSE)) -> 0 | I29: 25 | K29: 43 | L29: Elizabeth Blount | M29: Forest Lake | N29: 55.5745614 | O29: =IF(ISNA(VLOOKUP(P29,Totals!$AX$3:$AY$102,2,FALSE)),"",VLOOKUP(P29,Totals!$AX$3:$AY$102,2,FALSE)) -> 0 | P29: 25 | R29: 43 | S29: Elizabeth Blount | T29: Forest Lake | U29: 55.5745614 | V29: =IF(ISNA(VLOOKUP(W29,Totals!$AX$3:$AY$102,2,FALSE)),"",VLOOKUP(W29,Totals!$AX$3:$AY$102,2,FALSE)) -> 0 | W29: 25
D30: 3 | E30: Tessa Crohn | F30: Forest Lake | G30: 55.3245614 | H30: =IF(ISNA(VLOOKUP(I30,Totals!$AX$3:$AY$102,2,FALSE)),"",VLOOKUP(I30,Totals!$AX$3:$AY$102,2,FALSE)) -> 0 | I30: 26 | K30: 3 | L30: Tessa Crohn | M30: Forest Lake | N30: 55.3245614 | O30: =IF(ISNA(VLOOKUP(P30,Totals!$AX$3:$AY$102,2,FALSE)),"",VLOOKUP(P30,Totals!$AX$3:$AY$102,2,FALSE)) -> 0 | P30: 26 | R30: 3 | S30: Tessa Crohn | T30: Forest Lake | U30: 55.3245614 | V30: =IF(ISNA(VLOOKUP(W30,Totals!$AX$3:$AY$102,2,FALSE)),"",VLOOKUP(W30,Totals!$AX$3:$AY$102,2,FALSE)) -> 0 | W30: 26
D31: 4 | E31: Ella Anderson | F31: Forest Lake | G31: 55.15789474 | H31: =IF(ISNA(VLOOKUP(I31,Totals!$AX$3:$AY$102,2,FALSE)),"",VLOOKUP(I31,Totals!$AX$3:$AY$102,2,FALSE)) -> 0 | I31: 27 | K31: 4 | L31: Ella Anderson | M31: Forest Lake | N31: 55.15789474 | O31: =IF(ISNA(VLOOKUP(P31,Totals!$AX$3:$AY$102,2,FALSE)),"",VLOOKUP(P31,Totals!$AX$3:$AY$102,2,FALSE)) -> 0 | P31: 27 | R31: 4 | S31: Ella Anderson | T31: Forest Lake | U31: 55.15789474 | V31: =IF(ISNA(VLOOKUP(W31,Totals!$AX$3:$AY$102,2,FALSE)),"",VLOOKUP(W31,Totals!$AX$3:$AY$102,2,FALSE)) -> 0 | W31: 27
D32: 37 | E32: Elizabeth Campbell | F32: Forest Lake | G32: 54.96929825 | H32: =IF(ISNA(VLOOKUP(I32,Totals!$AX$3:$AY$102,2,FALSE)),"",VLOOKUP(I32,Totals!$AX$3:$AY$102,2,FALSE)) -> 0 | I32: 28 | K32: 37 | L32: Elizabeth Campbell | M32: Forest Lake | N32: 54.96929825 | O32: =IF(ISNA(VLOOKUP(P32,Totals!$AX$3:$AY$102,2,FALSE)),"",VLOOKUP(P32,Totals!$AX$3:$AY$102,2,FALSE)) -> 0 | P32: 28 | R32: 37 | S32: Elizabeth Campbell | T32: Forest Lake | U32: 54.96929825 | V32: =IF(ISNA(VLOOKUP(W32,Totals!$AX$3:$AY$102,2,FALSE)),"",VLOOKUP(W32,Totals!$AX$3:$AY$102,2,FALSE)) -> 0 | W32: 28
D33: 30 | E33: Marie Vanderwarn | F33: Osseo-Maple Grove | G33: 54.81140351 | H33: =IF(ISNA(VLOOKUP(I33,Totals!$AX$3:$AY$102,2,FALSE)),"",VLOOKUP(I33,Totals!$AX$3:$AY$102,2,FALSE)) -> 0 | I33: 29 | K33: 30 | L33: Marie Vanderwarn | M33: Osseo-Maple Grove | N33: 54.81140351 | O33: =IF(ISNA(VLOOKUP(P33,Totals!$AX$3:$AY$102,2,FALSE)),"",VLOOKUP(P33,Totals!$AX$3:$AY$102,2,FALSE)) -> 0 | P33: 29 | R33: 30 | S33: Marie Vanderwarn | T33: Osseo-Maple Grove | U33: 54.81140351 | V33: =IF(ISNA(VLOOKUP(W33,Totals!$AX$3:$AY$102,2,FALSE)),"",VLOOKUP(W33,Totals!$AX$3:$AY$102,2,FALSE)) -> 0 | W33: 29
D34: 7 | E34: Hannah Littel | F34: Osseo-Maple Grove | G34: 54.78070175 | H34: =IF(ISNA(VLOOKUP(I34,Totals!$AX$3:$AY$102,2,FALSE)),"",VLOOKUP(I34,Totals!$AX$3:$AY$102,2,FALSE)) -> 0 | I34: 30 | K34: 7 | L34: Hannah Littel | M34: Osseo-Maple Grove | N34: 54.78070175 | O34: =IF(ISNA(VLOOKUP(P34,Totals!$AX$3:$AY$102,2,FALSE)),"",VLOOKUP(P34,Totals!$AX$3:$AY$102,2,FALSE)) -> 0 | P34: 30 | R34: 7 | S34: Hannah Littel | T34: Osseo-Maple Grove | U34: 54.78070175 | V34: =IF(ISNA(VLOOKUP(W34,Totals!$AX$3:$AY$102,2,FALSE)),"",VLOOKUP(W34,Totals!$AX$3:$AY$102,2,FALSE)) -> 0 | W34: 30
D35: 36 | E35: Moriah Ulbricht | F35: Forest Lake | G35: 54.51315789 | H35: =IF(ISNA(VLOOKUP(I35,Totals!$AX$3:$AY$102,2,FALSE)),"",VLOOKUP(I35,Totals!$AX$3:$AY$102,2,FALSE)) -> 0 | I35: 31 | K35: 36 | L35: Moriah Ulbricht | M35: Forest Lake | N35: 54.51315789 | O35: =IF(ISNA(VLOOKUP(P35,Totals!$AX$3:$AY$102,2,FALSE)),"",VLOOKUP(P35,Totals!$AX$3:$AY$102,2,FALSE)) -> 0 | P35: 31 | R35: 36 | S35: Moriah Ulbricht | T35: Forest Lake | U35: 54.51315789 | V35: =IF(ISNA(VLOOKUP(W35,Totals!$AX$3:$AY$102,2,FALSE)),"",VLOOKUP(W35,Totals!$AX$3:$AY$102,2,FALSE)) -> 0 | W35: 31
D36: 21 | E36: Bridget Beynon | F36: Forest Lake | G36: 54.49122807 | H36: =IF(ISNA(VLOOKUP(I36,Totals!$AX$3:$AY$102,2,FALSE)),"",VLOOKUP(I36,Totals!$AX$3:$AY$102,2,FALSE)) -> 0 | I36: 32 | K36: 21 | L36: Bridget Beynon | M36: Forest Lake | N36: 54.49122807 | O36: =IF(ISNA(VLOOKUP(P36,Totals!$AX$3:$AY$102,2,FALSE)),"",VLOOKUP(P36,Totals!$AX$3:$AY$102,2,FALSE)) -> 0 | P36: 32 | R36: 21 | S36: Bridget Beynon | T36: Forest Lake | U36: 54.49122807 | V36: =IF(ISNA(VLOOKUP(W36,Totals!$AX$3:$AY$102,2,FALSE)),"",VLOOKUP(W36,Totals!$AX$3:$AY$102,2,FALSE)) -> 0 | W36: 32
D37: 2 | E37: Abigail Tollas | F37: Osseo-Maple Grove | G37: 54.47368421 | H37: =IF(ISNA(VLOOKUP(I37,Totals!$AX$3:$AY$102,2,FALSE)),"",VLOOKUP(I37,Totals!$AX$3:$AY$102,2,FALSE)) -> 0 | I37: 33 | K37: 2 | L37: Abigail Tollas | M37: Osseo-Maple Grove | N37: 54.47368421 | O37: =IF(ISNA(VLOOKUP(P37,Totals!$AX$3:$AY$102,2,FALSE)),"",VLOOKUP(P37,Totals!$AX$3:$AY$102,2,FALSE)) -> 0 | P37: 33 | R37: 2 | S37: Abigail Tollas | T37: Osseo-Maple Grove | U37: 54.47368421 | V37: =IF(ISNA(VLOOKUP(W37,Totals!$AX$3:$AY$102,2,FALSE)),"",VLOOKUP(W37,Totals!$AX$3:$AY$102,2,FALSE)) -> 0 | W37: 33
D38: 12 | E38: Lindsey Biebl | F38: Forest Lake | G38: 54.39912281 | H38: =IF(ISNA(VLOOKUP(I38,Totals!$AX$3:$AY$102,2,FALSE)),"",VLOOKUP(I38,Totals!$AX$3:$AY$102,2,FALSE)) -> 0 | I38: =IF(G38=G37,I37,IF(ISNA(RANK(G38,G$5:G$150)),"",RANK(G38,G$5:G$150))) -> 34 | K38: 12 | L38: Lindsey Biebl | M38: Forest Lake | N38: 54.39912281 | O38: =IF(ISNA(VLOOKUP(P38,Totals!$AX$3:$AY$102,2,FALSE)),"",VLOOKUP(P38,Totals!$AX$3:$AY$102,2,FALSE)) -> 0 | P38: 34 | R38: 12 | S38: Lindsey Biebl | T38: Forest Lake | U38: 54.39912281 | V38: =IF(ISNA(VLOOKUP(W38,Totals!$AX$3:$AY$102,2,FALSE)),"",VLOOKUP(W38,Totals!$AX$3:$AY$102,2,FALSE)) -> 0 | W38: 34
D39: 11 | E39: Alise Ostercamp | F39: Forest Lake | G39: 54.03508772 | H39: =IF(ISNA(VLOOKUP(I39,Totals!$AX$3:$AY$102,2,FALSE)),"",VLOOKUP(I39,Totals!$AX$3:$AY$102,2,FALSE)) -> 0 | I39: 35 | K39: 11 | L39: Alise Ostercamp | M39: Forest Lake | N39: 54.03508772 | O39: =IF(ISNA(VLOOKUP(P39,Totals!$AX$3:$AY$102,2,FALSE)),"",VLOOKUP(P39,Totals!$AX$3:$AY$102,2,FALSE)) -> 0 | P39: 35 | R39: 11 | S39: Alise Ostercamp | T39: Forest Lake | U39: 54.03508772 | V39: =IF(ISNA(VLOOKUP(W39,Totals!$AX$3:$AY$102,2,FALSE)),"",VLOOKUP(W39,Totals!$AX$3:$AY$102,2,FALSE)) -> 0 | W39: 35
D40: 6 | E40: Elena Vrba | F40: Osseo-Maple Grove | G40: 53.88596491 | H40: =IF(ISNA(VLOOKUP(I40,Totals!$AX$3:$AY$102,2,FALSE)),"",VLOOKUP(I40,Totals!$AX$3:$AY$102,2,FALSE)) -> 0 | I40: 36 | K40: 6 | L40: Elena Vrba | M40: Osseo-Maple Grove | N40: 53.88596491 | O40: =IF(ISNA(VLOOKUP(P40,Totals!$AX$3:$AY$102,2,FALSE)),"",VLOOKUP(P40,Totals!$AX$3:$AY$102,2,FALSE)) -> 0 | P40: 36 | R40: 6 | S40: Elena Vrba | T40: Osseo-Maple Grove | U40: 53.88596491 | V40: =IF(ISNA(VLOOKUP(W40,Totals!$AX$3:$AY$102,2,FALSE)),"",VLOOKUP(W40,Totals!$AX$3:$AY$102,2,FALSE)) -> 0 | W40: 36
D41: 20 | E41: Jessica Hentges | F41: Forest Lake | G41: 53.47807018 | H41: =IF(ISNA(VLOOKUP(I41,Totals!$AX$3:$AY$102,2,FALSE)),"",VLOOKUP(I41,Totals!$AX$3:$AY$102,2,FALSE)) -> 0 | I41: 37 | K41: 20 | L41: Jessica Hentges | M41: Forest Lake | N41: 53.47807018 | O41: =IF(ISNA(VLOOKUP(P41,Totals!$AX$3:$AY$102,2,FALSE)),"",VLOOKUP(P41,Totals!$AX$3:$AY$102,2,FALSE)) -> 0 | P41: 37 | R41: 20 | S41: Jessica Hentges | T41: Forest Lake | U41: 53.47807018 | V41: =IF(ISNA(VLOOKUP(W41,Totals!$AX$3:$AY$102,2,FALSE)),"",VLOOKUP(W41,Totals!$AX$3:$AY$102,2,FALSE)) -> 0 | W41: 37
D42: 35 | E42: Jane Burk | F42: Forest Lake | G42: 53.47807018 | H42: =IF(ISNA(VLOOKUP(I42,Totals!$AX$3:$AY$102,2,FALSE)),"",VLOOKUP(I42,Totals!$AX$3:$AY$102,2,FALSE)) -> 0 | I42: 37 | K42: 35 | L42: Jane Burk | M42: Forest Lake | N42: 53.47807018 | O42: =IF(ISNA(VLOOKUP(P42,Totals!$AX$3:$AY$102,2,FALSE)),"",VLOOKUP(P42,Totals!$AX$3:$AY$102,2,FALSE)) -> 0 | P42: 37 | R42: 35 | S42: Jane Burk | T42: Forest Lake | U42: 53.47807018 | V42: =IF(ISNA(VLOOKUP(W42,Totals!$AX$3:$AY$102,2,FALSE)),"",VLOOKUP(W42,Totals!$AX$3:$AY$102,2,FALSE)) -> 0 | W42: 37
D43: 19 | E43: Naomi Krueger | F43: Forest Lake | G43: 52.80263158 | H43: =IF(ISNA(VLOOKUP(I43,Totals!$AX$3:$AY$102,2,FALSE)),"",VLOOKUP(I43,Totals!$AX$3:$AY$102,2,FALSE)) -> 0 | I43: 39 | K43: 19 | L43: Naomi Krueger | M43: Forest Lake | N43: 52.80263158 | O43: =IF(ISNA(VLOOKUP(P43,Totals!$AX$3:$AY$102,2,FALSE)),"",VLOOKUP(P43,Totals!$AX$3:$AY$102,2,FALSE)) -> 0 | P43: 39 | R43: 19 | S43: Naomi Krueger | T43: Forest Lake | U43: 52.80263158 | V43: =IF(ISNA(VLOOKUP(W43,Totals!$AX$3:$AY$102,2,FALSE)),"",VLOOKUP(W43,Totals!$AX$3:$AY$102,2,FALSE)) -> 0 | W43: 39
D44: 15 | E44: Sierra Nutter | F44: Forest Lake | G44: 52.73245614 | H44: =IF(ISNA(VLOOKUP(I44,Totals!$AX$3:$AY$102,2,FALSE)),"",VLOOKUP(I44,Totals!$AX$3:$AY$102,2,FALSE)) -> 0 | I44: 40 | K44: 15 | L44: Sierra Nutter | M44: Forest Lake | N44: 52.73245614 | O44: =IF(ISNA(VLOOKUP(P44,Totals!$AX$3:$AY$102,2,FALSE)),"",VLOOKUP(P44,Totals!$AX$3:$AY$102,2,FALSE)) -> 0 | P44: 40 | R44: 15 | S44: Sierra Nutter | T44: Forest Lake | U44: 52.73245614 | V44: =IF(ISNA(VLOOKUP(W44,Totals!$AX$3:$AY$102,2,FALSE)),"",VLOOKUP(W44,Totals!$AX$3:$AY$102,2,FALSE)) -> 0 | W44: 40
D45: 52 | E45: Lydia Hansen | F45: Forest Lake | G45: 51.57894737 | H45: =IF(ISNA(VLOOKUP(I45,Totals!$AX$3:$AY$102,2,FALSE)),"",VLOOKUP(I45,Totals!$AX$3:$AY$102,2,FALSE)) -> 0 | I45: 41 | K45: 52 | L45: Lydia Hansen | M45: Forest Lake | N45: 51.57894737 | O45: =IF(ISNA(VLOOKUP(P45,Totals!$AX$3:$AY$102,2,FALSE)),"",VLOOKUP(P45,Totals!$AX$3:$AY$102,2,FALSE)) -> 0 | P45: 41 | R45: 52 | S45: Lydia Hansen | T45: Forest Lake | U45: 51.57894737 | V45: =IF(ISNA(VLOOKUP(W45,Totals!$AX$3:$AY$102,2,FALSE)),"",VLOOKUP(W45,Totals!$AX$3:$AY$102,2,FALSE)) -> 0 | W45: 41
D46: 49 | E46: Alle Hale | F46: Forest Lake | G46: 51.43421053 | H46: =IF(ISNA(VLOOKUP(I46,Totals!$AX$3:$AY$102,2,FALSE)),"",VLOOKUP(I46,Totals!$AX$3:$AY$102,2,FALSE)) -> 0 | I46: 42 | K46: 49 | L46: Alle Hale | M46: Forest Lake | N46: 51.43421053 | O46: =IF(ISNA(VLOOKUP(P46,Totals!$AX$3:$AY$102,2,FALSE)),"",VLOOKUP(P46,Totals!$AX$3:$AY$102,2,FALSE)) -> 0 | P46: 42 | R46: 49 | S46: Alle Hale | T46: Forest Lake | U46: 51.43421053 | V46: =IF(ISNA(VLOOKUP(W46,Totals!$AX$3:$AY$102,2,FALSE)),"",VLOOKUP(W46,Totals!$AX$3:$AY$102,2,FALSE)) -> 0 | W46: 42
D47: 24 | E47: Malissa Ball | F47: Forest Lake | G47: 51.17105263 | H47: =IF(ISNA(VLOOKUP(I47,Totals!$AX$3:$AY$102,2,FALSE)),"",VLOOKUP(I47,Totals!$AX$3:$AY$102,2,FALSE)) -> 0 | I47: 43 | K47: 24 | L47: Malissa Ball | M47: Forest Lake | N47: 51.17105263 | O47: =IF(ISNA(VLOOKUP(P47,Totals!$AX$3:$AY$102,2,FALSE)),"",VLOOKUP(P47,Totals!$AX$3:$AY$102,2,FALSE)) -> 0 | P47: 43 | R47: 24 | S47: Malissa Ball | T47: Forest Lake | U47: 51.17105263 | V47: =IF(ISNA(VLOOKUP(W47,Totals!$AX$3:$AY$102,2,FALSE)),"",VLOOKUP(W47,Totals!$AX$3:$AY$102,2,FALSE)) -> 0 | W47: 43
D48: 45 | E48: Holly Drazenovich | F48: Osseo-Maple Grove | G48: 51.06578947 | H48: =IF(ISNA(VLOOKUP(I48,Totals!$AX$3:$AY$102,2,FALSE)),"",VLOOKUP(I48,Totals!$AX$3:$AY$102,2,FALSE)) -> 0 | I48: 44 | K48: 45 | L48: Holly Drazenovich | M48: Osseo-Maple Grove | N48: 51.06578947 | O48: =IF(ISNA(VLOOKUP(P48,Totals!$AX$3:$AY$102,2,FALSE)),"",VLOOKUP(P48,Totals!$AX$3:$AY$102,2,FALSE)) -> 0 | P48: 44 | R48: 45 | S48: Holly Drazenovich | T48: Osseo-Maple Grove | U48: 51.06578947 | V48: =IF(ISNA(VLOOKUP(W48,Totals!$AX$3:$AY$102,2,FALSE)),"",VLOOKUP(W48,Totals!$AX$3:$AY$102,2,FALSE)) -> 0 | W48: 44
D49: 22 | E49: Emily Barr | F49: Osseo-Maple Grove | G49: 51.00877193 | H49: =IF(ISNA(VLOOKUP(I49,Totals!$AX$3:$AY$102,2,FALSE)),"",VLOOKUP(I49,Totals!$AX$3:$AY$102,2,FALSE)) -> 0 | I49: 45 | K49: 22 | L49: Emily Barr | M49: Osseo-Maple Grove | N49: 51.00877193 | O49: =IF(ISNA(VLOOKUP(P49,Totals!$AX$3:$AY$102,2,FALSE)),"",VLOOKUP(P49,Totals!$AX$3:$AY$102,2,FALSE)) -> 0 | P49: 45 | R49: 22 | S49: Emily Barr | T49: Osseo-Maple Grove | U49: 51.00877193 | V49: =IF(ISNA(VLOOKUP(W49,Totals!$AX$3:$AY$102,2,FALSE)),"",VLOOKUP(W49,Totals!$AX$3:$AY$102,2,FALSE)) -> 0 | W49: 45
D50: 34 | E50: Mia Janisch | F50: Forest Lake | G50: 50.92982456 | H50: =IF(ISNA(VLOOKUP(I50,Totals!$AX$3:$AY$102,2,FALSE)),"",VLOOKUP(I50,Totals!$AX$3:$AY$102,2,FALSE)) -> 0 | I50: 46 | K50: 34 | L50: Mia Janisch | M50: Forest Lake | N50: 50.92982456 | O50: =IF(ISNA(VLOOKUP(P50,Totals!$AX$3:$AY$102,2,FALSE)),"",VLOOKUP(P50,Totals!$AX$3:$AY$102,2,FALSE)) -> 0 | P50: 46 | R50: 34 | S50: Mia Janisch | T50: Forest Lake | U50: 50.92982456 | V50: =IF(ISNA(VLOOKUP(W50,Totals!$AX$3:$AY$102,2,FALSE)),"",VLOOKUP(W50,Totals!$AX$3:$AY$102,2,FALSE)) -> 0 | W50: 46
D51: 46 | E51: Jessica Ruohoniemi | F51: Osseo-Maple Grove | G51: 50.4122807 | H51: =IF(ISNA(VLOOKUP(I51,Totals!$AX$3:$AY$102,2,FALSE)),"",VLOOKUP(I51,Totals!$AX$3:$AY$102,2,FALSE)) -> 0 | I51: 47 | K51: 46 | L51: Jessica Ruohoniemi | M51: Osseo-Maple Grove | N51: 50.4122807 | O51: =IF(ISNA(VLOOKUP(P51,Totals!$AX$3:$AY$102,2,FALSE)),"",VLOOKUP(P51,Totals!$AX$3:$AY$102,2,FALSE)) -> 0 | P51: 47 | R51: 46 | S51: Jessica Ruohoniemi | T51: Osseo-Maple Grove | U51: 50.4122807 | V51: =IF(ISNA(VLOOKUP(W51,Totals!$AX$3:$AY$102,2,FALSE)),"",VLOOKUP(W51,Totals!$AX$3:$AY$102,2,FALSE)) -> 0 | W51: 47
D52: 33 | E52: Kelly McNamee | F52: Osseo-Maple Grove | G52: 50.14035088 | H52: =IF(ISNA(VLOOKUP(I52,Totals!$AX$3:$AY$102,2,FALSE)),"",VLOOKUP(I52,Totals!$AX$3:$AY$102,2,FALSE)) -> 0 | I52: 48 | K52: 33 | L52: Kelly McNamee | M52: Osseo-Maple Grove | N52: 50.14035088 | O52: =IF(ISNA(VLOOKUP(P52,Totals!$AX$3:$AY$102,2,FALSE)),"",VLOOKUP(P52,Totals!$AX$3:$AY$102,2,FALSE)) -> 0 | P52: 48 | R52: 33 | S52: Kelly McNamee | T52: Osseo-Maple Grove | U52: 50.14035088 | V52: =IF(ISNA(VLOOKUP(W52,Totals!$AX$3:$AY$102,2,FALSE)),"",VLOOKUP(W52,Totals!$AX$3:$AY$102,2,FALSE)) -> 0 | W52: 48
D53: 9 | E53: Katherine Olsen | F53: Osseo-Maple Grove | G53: 49.92982456 | H53: =IF(ISNA(VLOOKUP(I53,Totals!$AX$3:$AY$102,2,FALSE)),"",VLOOKUP(I53,Totals!$AX$3:$AY$102,2,FALSE)) -> 0 | I53: 49 | K53: 9 | L53: Katherine Olsen | M53: Osseo-Maple Grove | N53: 49.92982456 | O53: =IF(ISNA(VLOOKUP(P53,Totals!$AX$3:$AY$102,2,FALSE)),"",VLOOKUP(P53,Totals!$AX$3:$AY$102,2,FALSE)) -> 0 | P53: 49 | R53: 9 | S53: Katherine Olsen | T53: Osseo-Maple Grove | U53: 49.92982456 | V53: =IF(ISNA(VLOOKUP(W53,Totals!$AX$3:$AY$102,2,FALSE)),"",VLOOKUP(W53,Totals!$AX$3:$AY$102,2,FALSE)) -> 0 | W53: 49
D54: 38 | E54: Annie Larson | F54: Forest Lake | G54: 49.71491228 | H54: =IF(ISNA(VLOOKUP(I54,Totals!$AX$3:$AY$102,2,FALSE)),"",VLOOKUP(I54,Totals!$AX$3:$AY$102,2,FALSE)) -> 0 | I54: 50 | K54: 38 | L54: Annie Larson | M54: Forest Lake | N54: 49.71491228 | O54: =IF(ISNA(VLOOKUP(P54,Totals!$AX$3:$AY$102,2,FALSE)),"",VLOOKUP(P54,Totals!$AX$3:$AY$102,2,FALSE)) -> 0 | P54: 50 | R54: 38 | S54: Annie Larson | T54: Forest Lake | U54: 49.71491228 | V54: =IF(ISNA(VLOOKUP(W54,Totals!$AX$3:$AY$102,2,FALSE)),"",VLOOKUP(W54,Totals!$AX$3:$AY$102,2,FALSE)) -> 0 | W54: 50
D55: 10 | E55: Leigh Boettner Johnson | F55: Forest Lake | G55: 48.81578947 | H55: =IF(ISNA(VLOOKUP(I55,Totals!$AX$3:$AY$102,2,FALSE)),"",VLOOKUP(I55,Totals!$AX$3:$AY$102,2,FALSE)) -> 0 | I55: 51 | K55: 10 | L55: Leigh Boettner Johnson | M55: Forest Lake | N55: 48.81578947 | O55: =IF(ISNA(VLOOKUP(P55,Totals!$AX$3:$AY$102,2,FALSE)),"",VLOOKUP(P55,Totals!$AX$3:$AY$102,2,FALSE)) -> 0 | P55: 51 | R55: 10 | S55: Leigh Boettner Johnson | T55: Forest Lake | U55: 48.81578947 | V55: =IF(ISNA(VLOOKUP(W55,Totals!$AX$3:$AY$102,2,FALSE)),"",VLOOKUP(W55,Totals!$AX$3:$AY$102,2,FALSE)) -> 0 | W55: 51
D56: 47 | E56: Cora Martinez | F56: Forest Lake | G56: 48.80701754 | H56: =IF(ISNA(VLOOKUP(I56,Totals!$AX$3:$AY$102,2,FALSE)),"",VLOOKUP(I56,Totals!$AX$3:$AY$102,2,FALSE)) -> 0 | I56: 52 | K56: 47 | L56: Cora Martinez | M56: Forest Lake | N56: 48.80701754 | O56: =IF(ISNA(VLOOKUP(P56,Totals!$AX$3:$AY$102,2,FALSE)),"",VLOOKUP(P56,Totals!$AX$3:$AY$102,2,FALSE)) -> 0 | P56: 52 | R56: 47 | S56: Cora Martinez | T56: Forest Lake | U56: 48.80701754 | V56: =IF(ISNA(VLOOKUP(W56,Totals!$AX$3:$AY$102,2,FALSE)),"",VLOOKUP(W56,Totals!$AX$3:$AY$102,2,FALSE)) -> 0 | W56: 52
D57: 55 | E57: Caroline LaBord | F57: Osseo-Maple Grove | G57: 47.37719298 | H57: =IF(ISNA(VLOOKUP(I57,Totals!$AX$3:$AY$102,2,FALSE)),"",VLOOKUP(I57,Totals!$AX$3:$AY$102,2,FALSE)) -> 0 | I57: 53 | K57: 55 | L57: Caroline LaBord | M57: Osseo-Maple Grove | N57: 47.37719298 | O57: =IF(ISNA(VLOOKUP(P57,Totals!$AX$3:$AY$102,2,FALSE)),"",VLOOKUP(P57,Totals!$AX$3:$AY$102,2,FALSE)) -> 0 | P57: 53 | R57: 55 | S57: Caroline LaBord | T57: Osseo-Maple Grove | U57: 47.37719298 | V57: =IF(ISNA(VLOOKUP(W57,Totals!$AX$3:$AY$102,2,FALSE)),"",VLOOKUP(W57,Totals!$AX$3:$AY$102,2,FALSE)) -> 0 | W57: 53
D58: 25 | E58: Heather Breidenbach | F58: Osseo-Maple Grove | G58: 47.07017544 | H58: =IF(ISNA(VLOOKUP(I58,Totals!$AX$3:$AY$102,2,FALSE)),"",VLOOKUP(I58,Totals!$AX$3:$AY$102,2,FALSE)) -> 0 | I58: 54 | K58: 25 | L58: Heather Breidenbach | M58: Osseo-Maple Grove | N58: 47.07017544 | O58: =IF(ISNA(VLOOKUP(P58,Totals!$AX$3:$AY$102,2,FALSE)),"",VLOOKUP(P58,Totals!$AX$3:$AY$102,2,FALSE)) -> 0 | P58: 54 | R58: 25 | S58: Heather Breidenbach | T58: Osseo-Maple Grove | U58: 47.07017544 | V58: =IF(ISNA(VLOOKUP(W58,Totals!$AX$3:$AY$102,2,FALSE)),"",VLOOKUP(W58,Totals!$AX$3:$AY$102,2,FALSE)) -> 0 | W58: 54
D59: 16 | E59: Rachel Knox | F59: Osseo-Maple Grove | G59: 0 | H59: =IF(ISNA(VLOOKUP(I59,Totals!$AX$3:$AY$102,2,FALSE)),"",VLOOKUP(I59,Totals!$AX$3:$AY$102,2,FALSE)) -> 0 | I59: 55 | K59: 16 | L59: Rachel Knox | M59: Osseo-Maple Grove | N59: 0 | O59: =IF(ISNA(VLOOKUP(P59,Totals!$AX$3:$AY$102,2,FALSE)),"",VLOOKUP(P59,Totals!$AX$3:$AY$102,2,FALSE)) -> 0 | P59: 55 | R59: 16 | S59: Rachel Knox | T59: Osseo-Maple Grove | U59: 0 | V59: =IF(ISNA(VLOOKUP(W59,Totals!$AX$3:$AY$102,2,FALSE)),"",VLOOKUP(W59,Totals!$AX$3:$AY$102,2,FALSE)) -> 0 | W59: 55
H60: =IF(ISNA(VLOOKUP(I60,Totals!$AX$3:$AY$102,2,FALSE)),"",VLOOKUP(I60,Totals!$AX$3:$AY$102,2,FALSE)) -> 0 | I60: 55 | O60: =IF(ISNA(VLOOKUP(P60,Totals!$AX$3:$AY$102,2,FALSE)),"",VLOOKUP(P60,Totals!$AX$3:$AY$102,2,FALSE)) -> 0 | P60: 55 | V60: =IF(ISNA(VLOOKUP(W60,Totals!$AX$3:$AY$102,2,FALSE)),"",VLOOKUP(W60,Totals!$AX$3:$AY$102,2,FALSE)) -> 0 | W60: 55
H61: =IF(ISNA(VLOOKUP(I61,Totals!$AX$3:$AY$102,2,FALSE)),"",VLOOKUP(I61,Totals!$AX$3:$AY$102,2,FALSE)) -> 0 | I61: 55 | O61: =IF(ISNA(VLOOKUP(P61,Totals!$AX$3:$AY$102,2,FALSE)),"",VLOOKUP(P61,Totals!$AX$3:$AY$102,2,FALSE)) -> 0 | P61: 55 | V61: =IF(ISNA(VLOOKUP(W61,Totals!$AX$3:$AY$102,2,FALSE)),"",VLOOKUP(W61,Totals!$AX$3:$AY$102,2,FALSE)) -> 0 | W61: 55
H62: =IF(ISNA(VLOOKUP(I62,Totals!$AX$3:$AY$102,2,FALSE)),"",VLOOKUP(I62,Totals!$AX$3:$AY$102,2,FALSE)) -> 0 | I62: 55 | O62: =IF(ISNA(VLOOKUP(P62,Totals!$AX$3:$AY$102,2,FALSE)),"",VLOOKUP(P62,Totals!$AX$3:$AY$102,2,FALSE)) -> 0 | P62: 55 | V62: =IF(ISNA(VLOOKUP(W62,Totals!$AX$3:$AY$102,2,FALSE)),"",VLOOKUP(W62,Totals!$AX$3:$AY$102,2,FALSE)) -> 0 | W62: 55
H63: =IF(ISNA(VLOOKUP(I63,Totals!$AX$3:$AY$102,2,FALSE)),"",VLOOKUP(I63,Totals!$AX$3:$AY$102,2,FALSE)) -> 0 | I63: 55 | O63: =IF(ISNA(VLOOKUP(P63,Totals!$AX$3:$AY$102,2,FALSE)),"",VLOOKUP(P63,Totals!$AX$3:$AY$102,2,FALSE)) -> 0 | P63: 55 | V63: =IF(ISNA(VLOOKUP(W63,Totals!$AX$3:$AY$102,2,FALSE)),"",VLOOKUP(W63,Totals!$AX$3:$AY$102,2,FALSE)) -> 0 | W63: 55
H64: =IF(ISNA(VLOOKUP(I64,Totals!$AX$3:$AY$102,2,FALSE)),"",VLOOKUP(I64,Totals!$AX$3:$AY$102,2,FALSE)) -> 0 | I64: 55 | O64: =IF(ISNA(VLOOKUP(P64,Totals!$AX$3:$AY$102,2,FALSE)),"",VLOOKUP(P64,Totals!$AX$3:$AY$102,2,FALSE)) -> 0 | P64: 55 | V64: =IF(ISNA(VLOOKUP(W64,Totals!$AX$3:$AY$102,2,FALSE)),"",VLOOKUP(W64,Totals!$AX$3:$AY$102,2,FALSE)) -> 0 | W64: 55
H65: =IF(ISNA(VLOOKUP(I65,Totals!$AX$3:$AY$102,2,FALSE)),"",VLOOKUP(I65,Totals!$AX$3:$AY$102,2,FALSE)) -> 0 | I65: 55 | O65: =IF(ISNA(VLOOKUP(P65,Totals!$AX$3:$AY$102,2,FALSE)),"",VLOOKUP(P65,Totals!$AX$3:$AY$102,2,FALSE)) -> 0 | P65: 55 | V65: =IF(ISNA(VLOOKUP(W65,Totals!$AX$3:$AY$102,2,FALSE)),"",VLOOKUP(W65,Totals!$AX$3:$AY$102,2,FALSE)) -> 0 | W65: 55
H66: =IF(ISNA(VLOOKUP(I66,Totals!$AX$3:$AY$102,2,FALSE)),"",VLOOKUP(I66,Totals!$AX$3:$AY$102,2,FALSE)) -> 0 | I66: 55 | O66: =IF(ISNA(VLOOKUP(P66,Totals!$AX$3:$AY$102,2,FALSE)),"",VLOOKUP(P66,Totals!$AX$3:$AY$102,2,FALSE)) -> 0 | P66: 55 | V66: =IF(ISNA(VLOOKUP(W66,Totals!$AX$3:$AY$102,2,FALSE)),"",VLOOKUP(W66,Totals!$AX$3:$AY$102,2,FALSE)) -> 0 | W66: 55
H67: =IF(ISNA(VLOOKUP(I67,Totals!$AX$3:$AY$102,2,FALSE)),"",VLOOKUP(I67,Totals!$AX$3:$AY$102,2,FALSE)) -> 0 | I67: 55 | O67: =IF(ISNA(VLOOKUP(P67,Totals!$AX$3:$AY$102,2,FALSE)),"",VLOOKUP(P67,Totals!$AX$3:$AY$102,2,FALSE)) -> 0 | P67: 55 | V67: =IF(ISNA(VLOOKUP(W67,Totals!$AX$3:$AY$102,2,FALSE)),"",VLOOKUP(W67,Totals!$AX$3:$AY$102,2,FALSE)) -> 0 | W67: 55
H68: =IF(ISNA(VLOOKUP(I68,Totals!$AX$3:$AY$102,2,FALSE)),"",VLOOKUP(I68,Totals!$AX$3:$AY$102,2,FALSE)) -> 0 | I68: 55 | O68: =IF(ISNA(VLOOKUP(P68,Totals!$AX$3:$AY$102,2,FALSE)),"",VLOOKUP(P68,Totals!$AX$3:$AY$102,2,FALSE)) -> 0 | P68: 55 | V68: =IF(ISNA(VLOOKUP(W68,Totals!$AX$3:$AY$102,2,FALSE)),"",VLOOKUP(W68,Totals!$AX$3:$AY$102,2,FALSE)) -> 0 | W68: 55
H69: =IF(ISNA(VLOOKUP(I69,Totals!$AX$3:$AY$102,2,FALSE)),"",VLOOKUP(I69,Totals!$AX$3:$AY$102,2,FALSE)) -> 0 | I69: 55 | O69: =IF(ISNA(VLOOKUP(P69,Totals!$AX$3:$AY$102,2,FALSE)),"",VLOOKUP(P69,Totals!$AX$3:$AY$102,2,FALSE)) -> 0 | P69: 55 | V69: =IF(ISNA(VLOOKUP(W69,Totals!$AX$3:$AY$102,2,FALSE)),"",VLOOKUP(W69,Totals!$AX$3:$AY$102,2,FALSE)) -> 0 | W69: 55
H70: =IF(ISNA(VLOOKUP(I70,Totals!$AX$3:$AY$102,2,FALSE)),"",VLOOKUP(I70,Totals!$AX$3:$AY$102,2,FALSE)) -> 0 | I70: 55 | O70: =IF(ISNA(VLOOKUP(P70,Totals!$AX$3:$AY$102,2,FALSE)),"",VLOOKUP(P70,Totals!$AX$3:$AY$102,2,FALSE)) -> 0 | P70: =IF(ISNA(RANK(N70,N$5:N$150)),"",RANK(N70,N$5:N$150)) -> 55 | V70: =IF(ISNA(VLOOKUP(W70,Totals!$AX$3:$AY$102,2,FALSE)),"",VLOOKUP(W70,Totals!$AX$3:$AY$102,2,FALSE)) -> 0 | W70: =IF(ISNA(RANK(U70,U$5:U$150)),"",RANK(U70,U$5:U$150)) -> 55
H71: =IF(ISNA(VLOOKUP(I71,Totals!$AX$3:$AY$102,2,FALSE)),"",VLOOKUP(I71,Totals!$AX$3:$AY$102,2,FALSE)) -> 0 | I71: =IF(G71=G70,I70,IF(ISNA(RANK(G71,G$5:G$150)),"",RANK(G71,G$5:G$150))) -> 55 | O71: =IF(ISNA(VLOOKUP(P71,Totals!$AX$3:$AY$102,2,FALSE)),"",VLOOKUP(P71,Totals!$AX$3:$AY$102,2,FALSE)) -> 0 | P71: 55 | V71: =IF(ISNA(VLOOKUP(W71,Totals!$AX$3:$AY$102,2,FALSE)),"",VLOOKUP(W71,Totals!$AX$3:$AY$102,2,FALSE)) -> 0 | W71: 55
H72: =IF(ISNA(VLOOKUP(I72,Totals!$AX$3:$AY$102,2,FALSE)),"",VLOOKUP(I72,Totals!$AX$3:$AY$102,2,FALSE)) -> 0 | I72: 55 | O72: =IF(ISNA(VLOOKUP(P72,Totals!$AX$3:$AY$102,2,FALSE)),"",VLOOKUP(P72,Totals!$AX$3:$AY$102,2,FALSE)) -> 0 | P72: 55 | V72: =IF(ISNA(VLOOKUP(W72,Totals!$AX$3:$AY$102,2,FALSE)),"",VLOOKUP(W72,Totals!$AX$3:$AY$102,2,FALSE)) -> 0 | W72: 55
H73: =IF(ISNA(VLOOKUP(I73,Totals!$AX$3:$AY$102,2,FALSE)),"",VLOOKUP(I73,Totals!$AX$3:$AY$102,2,FALSE)) -> 0 | I73: 55 | O73: =IF(ISNA(VLOOKUP(P73,Totals!$AX$3:$AY$102,2,FALSE)),"",VLOOKUP(P73,Totals!$AX$3:$AY$102,2,FALSE)) -> 0 | P73: 55 | V73: =IF(ISNA(VLOOKUP(W73,Totals!$AX$3:$AY$102,2,FALSE)),"",VLOOKUP(W73,Totals!$AX$3:$AY$102,2,FALSE)) -> 0 | W73: 55
H74: =IF(ISNA(VLOOKUP(I74,Totals!$AX$3:$AY$102,2,FALSE)),"",VLOOKUP(I74,Totals!$AX$3:$AY$102,2,FALSE)) -> 0 | I74: 55 | O74: =IF(ISNA(VLOOKUP(P74,Totals!$AX$3:$AY$102,2,FALSE)),"",VLOOKUP(P74,Totals!$AX$3:$AY$102,2,FALSE)) -> 0 | P74: 55 | V74: =IF(ISNA(VLOOKUP(W74,Totals!$AX$3:$AY$102,2,FALSE)),"",VLOOKUP(W74,Totals!$AX$3:$AY$102,2,FALSE)) -> 0 | W74: 55
H75: =IF(ISNA(VLOOKUP(I75,Totals!$AX$3:$AY$102,2,FALSE)),"",VLOOKUP(I75,Totals!$AX$3:$AY$102,2,FALSE)) -> 0 | I75: 55 | O75: =IF(ISNA(VLOOKUP(P75,Totals!$AX$3:$AY$102,2,FALSE)),"",VLOOKUP(P75,Totals!$AX$3:$AY$102,2,FALSE)) -> 0 | P75: 55 | V75: =IF(ISNA(VLOOKUP(W75,Totals!$AX$3:$AY$102,2,FALSE)),"",VLOOKUP(W75,Totals!$AX$3:$AY$102,2,FALSE)) -> 0 | W75: 55
H76: =IF(ISNA(VLOOKUP(I76,Totals!$AX$3:$AY$102,2,FALSE)),"",VLOOKUP(I76,Totals!$AX$3:$AY$102,2,FALSE)) -> 0 | I76: 55 | O76: =IF(ISNA(VLOOKUP(P76,Totals!$AX$3:$AY$102,2,FALSE)),"",VLOOKUP(P76,Totals!$AX$3:$AY$102,2,FALSE)) -> 0 | P76: 55 | V76: =IF(ISNA(VLOOKUP(W76,Totals!$AX$3:$AY$102,2,FALSE)),"",VLOOKUP(W76,Totals!$AX$3:$AY$102,2,FALSE)) -> 0 | W76: 55
H77: =IF(ISNA(VLOOKUP(I77,Totals!$AX$3:$AY$102,2,FALSE)),"",VLOOKUP(I77,Totals!$AX$3:$AY$102,2,FALSE)) -> 0 | I77: 55 | O77: =IF(ISNA(VLOOKUP(P77,Totals!$AX$3:$AY$102,2,FALSE)),"",VLOOKUP(P77,Totals!$AX$3:$AY$102,2,FALSE)) -> 0 | P77: 55 | V77: =IF(ISNA(VLOOKUP(W77,Totals!$AX$3:$AY$102,2,FALSE)),"",VLOOKUP(W77,Totals!$AX$3:$AY$102,2,FALSE)) -> 0 | W77: 55
H78: =IF(ISNA(VLOOKUP(I78,Totals!$AX$3:$AY$102,2,FALSE)),"",VLOOKUP(I78,Totals!$AX$3:$AY$102,2,FALSE)) -> 0 | I78: 55 | O78: =IF(ISNA(VLOOKUP(P78,Totals!$AX$3:$AY$102,2,FALSE)),"",VLOOKUP(P78,Totals!$AX$3:$AY$102,2,FALSE)) -> 0 | P78: 55 | V78: =IF(ISNA(VLOOKUP(W78,Totals!$AX$3:$AY$102,2,FALSE)),"",VLOOKUP(W78,Totals!$AX$3:$AY$102,2,FALSE)) -> 0 | W78: 55
H79: =IF(ISNA(VLOOKUP(I79,Totals!$AX$3:$AY$102,2,FALSE)),"",VLOOKUP(I79,Totals!$AX$3:$AY$102,2,FALSE)) -> 0 | I79: 55 | O79: =IF(ISNA(VLOOKUP(P79,Totals!$AX$3:$AY$102,2,FALSE)),"",VLOOKUP(P79,Totals!$AX$3:$AY$102,2,FALSE)) -> 0 | P79: 55 | V79: =IF(ISNA(VLOOKUP(W79,Totals!$AX$3:$AY$102,2,FALSE)),"",VLOOKUP(W79,Totals!$AX$3:$AY$102,2,FALSE)) -> 0 | W79: 55
H80: =IF(ISNA(VLOOKUP(I80,Totals!$AX$3:$AY$102,2,FALSE)),"",VLOOKUP(I80,Totals!$AX$3:$AY$102,2,FALSE)) -> 0 | I80: 55 | O80: =IF(ISNA(VLOOKUP(P80,Totals!$AX$3:$AY$102,2,FALSE)),"",VLOOKUP(P80,Totals!$AX$3:$AY$102,2,FALSE)) -> 0 | P80: 55 | V80: =IF(ISNA(VLOOKUP(W80,Totals!$AX$3:$AY$102,2,FALSE)),"",VLOOKUP(W80,Totals!$AX$3:$AY$102,2,FALSE)) -> 0 | W80: 55
H81: =IF(ISNA(VLOOKUP(I81,Totals!$AX$3:$AY$102,2,FALSE)),"",VLOOKUP(I81,Totals!$AX$3:$AY$102,2,FALSE)) -> 0 | I81: 55 | O81: =IF(ISNA(VLOOKUP(P81,Totals!$AX$3:$AY$102,2,FALSE)),"",VLOOKUP(P81,Totals!$AX$3:$AY$102,2,FALSE)) -> 0 | P81: 55 | V81: =IF(ISNA(VLOOKUP(W81,Totals!$AX$3:$AY$102,2,FALSE)),"",VLOOKUP(W81,Totals!$AX$3:$AY$102,2,FALSE)) -> 0 | W81: 55
H82: =IF(ISNA(VLOOKUP(I82,Totals!$AX$3:$AY$102,2,FALSE)),"",VLOOKUP(I82,Totals!$AX$3:$AY$102,2,FALSE)) -> 0 | I82: 55 | O82: =IF(ISNA(VLOOKUP(P82,Totals!$AX$3:$AY$102,2,FALSE)),"",VLOOKUP(P82,Totals!$AX$3:$AY$102,2,FALSE)) -> 0 | P82: 55 | V82: =IF(ISNA(VLOOKUP(W82,Totals!$AX$3:$AY$102,2,FALSE)),"",VLOOKUP(W82,Totals!$AX$3:$AY$102,2,FALSE)) -> 0 | W82: 55
H83: =IF(ISNA(VLOOKUP(I83,Totals!$AX$3:$AY$102,2,FALSE)),"",VLOOKUP(I83,Totals!$AX$3:$AY$102,2,FALSE)) -> 0 | I83: 55 | O83: =IF(ISNA(VLOOKUP(P83,Totals!$AX$3:$AY$102,2,FALSE)),"",VLOOKUP(P83,Totals!$AX$3:$AY$102,2,FALSE)) -> 0 | P83: 55 | V83: =IF(ISNA(VLOOKUP(W83,Totals!$AX$3:$AY$102,2,FALSE)),"",VLOOKUP(W83,Totals!$AX$3:$AY$102,2,FALSE)) -> 0 | W83: 55
H84: =IF(ISNA(VLOOKUP(I84,Totals!$AX$3:$AY$102,2,FALSE)),"",VLOOKUP(I84,Totals!$AX$3:$AY$102,2,FALSE)) -> 0 | I84: 55 | O84: =IF(ISNA(VLOOKUP(P84,Totals!$AX$3:$AY$102,2,FALSE)),"",VLOOKUP(P84,Totals!$AX$3:$AY$102,2,FALSE)) -> 0 | P84: 55 | V84: =IF(ISNA(VLOOKUP(W84,Totals!$AX$3:$AY$102,2,FALSE)),"",VLOOKUP(W84,Totals!$AX$3:$AY$102,2,FALSE)) -> 0 | W84: 55
H85: =IF(ISNA(VLOOKUP(I85,Totals!$AX$3:$AY$102,2,FALSE)),"",VLOOKUP(I85,Totals!$AX$3:$AY$102,2,FALSE)) -> 0 | I85: 55 | O85: =IF(ISNA(VLOOKUP(P85,Totals!$AX$3:$AY$102,2,FALSE)),"",VLOOKUP(P85,Totals!$AX$3:$AY$102,2,FALSE)) -> 0 | P85: 55 | V85: =IF(ISNA(VLOOKUP(W85,Totals!$AX$3:$AY$102,2,FALSE)),"",VLOOKUP(W85,Totals!$AX$3:$AY$102,2,FALSE)) -> 0 | W85: 55
H86: =IF(ISNA(VLOOKUP(I86,Totals!$AX$3:$AY$102,2,FALSE)),"",VLOOKUP(I86,Totals!$AX$3:$AY$102,2,FALSE)) -> 0 | I86: 55 | O86: =IF(ISNA(VLOOKUP(P86,Totals!$AX$3:$AY$102,2,FALSE)),"",VLOOKUP(P86,Totals!$AX$3:$AY$102,2,FALSE)) -> 0 | P86: 55 | V86: =IF(ISNA(VLOOKUP(W86,Totals!$AX$3:$AY$102,2,FALSE)),"",VLOOKUP(W86,Totals!$AX$3:$AY$102,2,FALSE)) -> 0 | W86: 55
H87: =IF(ISNA(VLOOKUP(I87,Totals!$AX$3:$AY$102,2,FALSE)),"",VLOOKUP(I87,Totals!$AX$3:$AY$102,2,FALSE)) -> 0 | I87: 55 | O87: =IF(ISNA(VLOOKUP(P87,Totals!$AX$3:$AY$102,2,FALSE)),"",VLOOKUP(P87,Totals!$AX$3:$AY$102,2,FALSE)) -> 0 | P87: 55 | V87: =IF(ISNA(VLOOKUP(W87,Totals!$AX$3:$AY$102,2,FALSE)),"",VLOOKUP(W87,Totals!$AX$3:$AY$102,2,FALSE)) -> 0 | W87: 55
H88: =IF(ISNA(VLOOKUP(I88,Totals!$AX$3:$AY$102,2,FALSE)),"",VLOOKUP(I88,Totals!$AX$3:$AY$102,2,FALSE)) -> 0 | I88: 55 | O88: =IF(ISNA(VLOOKUP(P88,Totals!$AX$3:$AY$102,2,FALSE)),"",VLOOKUP(P88,Totals!$AX$3:$AY$102,2,FALSE)) -> 0 | P88: 55 | V88: =IF(ISNA(VLOOKUP(W88,Totals!$AX$3:$AY$102,2,FALSE)),"",VLOOKUP(W88,Totals!$AX$3:$AY$102,2,FALSE)) -> 0 | W88: 55
H89: =IF(ISNA(VLOOKUP(I89,Totals!$AX$3:$AY$102,2,FALSE)),"",VLOOKUP(I89,Totals!$AX$3:$AY$102,2,FALSE)) -> 0 | I89: 55 | O89: =IF(ISNA(VLOOKUP(P89,Totals!$AX$3:$AY$102,2,FALSE)),"",VLOOKUP(P89,Totals!$AX$3:$AY$102,2,FALSE)) -> 0 | P89: 55 | V89: =IF(ISNA(VLOOKUP(W89,Totals!$AX$3:$AY$102,2,FALSE)),"",VLOOKUP(W89,Totals!$AX$3:$AY$102,2,FALSE)) -> 0 | W89: 55
H90: =IF(ISNA(VLOOKUP(I90,Totals!$AX$3:$AY$102,2,FALSE)),"",VLOOKUP(I90,Totals!$AX$3:$AY$102,2,FALSE)) -> 0 | I90: 55 | O90: =IF(ISNA(VLOOKUP(P90,Totals!$AX$3:$AY$102,2,FALSE)),"",VLOOKUP(P90,Totals!$AX$3:$AY$102,2,FALSE)) -> 0 | P90: 55 | V90: =IF(ISNA(VLOOKUP(W90,Totals!$AX$3:$AY$102,2,FALSE)),"",VLOOKUP(W90,Totals!$AX$3:$AY$102,2,FALSE)) -> 0 | W90: 55
H91: =IF(ISNA(VLOOKUP(I91,Totals!$AX$3:$AY$102,2,FALSE)),"",VLOOKUP(I91,Totals!$AX$3:$AY$102,2,FALSE)) -> 0 | I91: 55 | O91: =IF(ISNA(VLOOKUP(P91,Totals!$AX$3:$AY$102,2,FALSE)),"",VLOOKUP(P91,Totals!$AX$3:$AY$102,2,FALSE)) -> 0 | P91: 55 | V91: =IF(ISNA(VLOOKUP(W91,Totals!$AX$3:$AY$102,2,FALSE)),"",VLOOKUP(W91,Totals!$AX$3:$AY$102,2,FALSE)) -> 0 | W91: 55
H92: =IF(ISNA(VLOOKUP(I92,Totals!$AX$3:$AY$102,2,FALSE)),"",VLOOKUP(I92,Totals!$AX$3:$AY$102,2,FALSE)) -> 0 | I92: 55 | O92: =IF(ISNA(VLOOKUP(P92,Totals!$AX$3:$AY$102,2,FALSE)),"",VLOOKUP(P92,Totals!$AX$3:$AY$102,2,FALSE)) -> 0 | P92: 55 | V92: =IF(ISNA(VLOOKUP(W92,Totals!$AX$3:$AY$102,2,FALSE)),"",VLOOKUP(W92,Totals!$AX$3:$AY$102,2,FALSE)) -> 0 | W92: 55
H93: =IF(ISNA(VLOOKUP(I93,Totals!$AX$3:$AY$102,2,FALSE)),"",VLOOKUP(I93,Totals!$AX$3:$AY$102,2,FALSE)) -> 0 | I93: 55 | O93: =IF(ISNA(VLOOKUP(P93,Totals!$AX$3:$AY$102,2,FALSE)),"",VLOOKUP(P93,Totals!$AX$3:$AY$102,2,FALSE)) -> 0 | P93: 55 | V93: =IF(ISNA(VLOOKUP(W93,Totals!$AX$3:$AY$102,2,FALSE)),"",VLOOKUP(W93,Totals!$AX$3:$AY$102,2,FALSE)) -> 0 | W93: 55
H94: =IF(ISNA(VLOOKUP(I94,Totals!$AX$3:$AY$102,2,FALSE)),"",VLOOKUP(I94,Totals!$AX$3:$AY$102,2,FALSE)) -> 0 | I94: 55 | O94: =IF(ISNA(VLOOKUP(P94,Totals!$AX$3:$AY$102,2,FALSE)),"",VLOOKUP(P94,Totals!$AX$3:$AY$102,2,FALSE)) -> 0 | P94: 55 | V94: =IF(ISNA(VLOOKUP(W94,Totals!$AX$3:$AY$102,2,FALSE)),"",VLOOKUP(W94,Totals!$AX$3:$AY$102,2,FALSE)) -> 0 | W94: 55
H95: =IF(ISNA(VLOOKUP(I95,Totals!$AX$3:$AY$102,2,FALSE)),"",VLOOKUP(I95,Totals!$AX$3:$AY$102,2,FALSE)) -> 0 | I95: 55 | O95: =IF(ISNA(VLOOKUP(P95,Totals!$AX$3:$AY$102,2,FALSE)),"",VLOOKUP(P95,Totals!$AX$3:$AY$102,2,FALSE)) -> 0 | P95: 55 | V95: =IF(ISNA(VLOOKUP(W95,Totals!$AX$3:$AY$102,2,FALSE)),"",VLOOKUP(W95,Totals!$AX$3:$AY$102,2,FALSE)) -> 0 | W95: 55
H96: =IF(ISNA(VLOOKUP(I96,Totals!$AX$3:$AY$102,2,FALSE)),"",VLOOKUP(I96,Totals!$AX$3:$AY$102,2,FALSE)) -> 0 | I96: 55 | O96: =IF(ISNA(VLOOKUP(P96,Totals!$AX$3:$AY$102,2,FALSE)),"",VLOOKUP(P96,Totals!$AX$3:$AY$102,2,FALSE)) -> 0 | P96: 55 | V96: =IF(ISNA(VLOOKUP(W96,Totals!$AX$3:$AY$102,2,FALSE)),"",VLOOKUP(W96,Totals!$AX$3:$AY$102,2,FALSE)) -> 0 | W96: 55
H97: =IF(ISNA(VLOOKUP(I97,Totals!$AX$3:$AY$102,2,FALSE)),"",VLOOKUP(I97,Totals!$AX$3:$AY$102,2,FALSE)) -> 0 | I97: 55 | O97: =IF(ISNA(VLOOKUP(P97,Totals!$AX$3:$AY$102,2,FALSE)),"",VLOOKUP(P97,Totals!$AX$3:$AY$102,2,FALSE)) -> 0 | P97: 55 | V97: =IF(ISNA(VLOOKUP(W97,Totals!$AX$3:$AY$102,2,FALSE)),"",VLOOKUP(W97,Totals!$AX$3:$AY$102,2,FALSE)) -> 0 | W97: 55
H98: =IF(ISNA(VLOOKUP(I98,Totals!$AX$3:$AY$102,2,FALSE)),"",VLOOKUP(I98,Totals!$AX$3:$AY$102,2,FALSE)) -> 0 | I98: 55 | O98: =IF(ISNA(VLOOKUP(P98,Totals!$AX$3:$AY$102,2,FALSE)),"",VLOOKUP(P98,Totals!$AX$3:$AY$102,2,FALSE)) -> 0 | P98: 55 | V98: =IF(ISNA(VLOOKUP(W98,Totals!$AX$3:$AY$102,2,FALSE)),"",VLOOKUP(W98,Totals!$AX$3:$AY$102,2,FALSE)) -> 0 | W98: 55
H99: =IF(ISNA(VLOOKUP(I99,Totals!$AX$3:$AY$102,2,FALSE)),"",VLOOKUP(I99,Totals!$AX$3:$AY$102,2,FALSE)) -> 0 | I99: 55 | O99: =IF(ISNA(VLOOKUP(P99,Totals!$AX$3:$AY$102,2,FALSE)),"",VLOOKUP(P99,Totals!$AX$3:$AY$102,2,FALSE)) -> 0 | P99: 55 | V99: =IF(ISNA(VLOOKUP(W99,Totals!$AX$3:$AY$102,2,FALSE)),"",VLOOKUP(W99,Totals!$AX$3:$AY$102,2,FALSE)) -> 0 | W99: 55
H100: =IF(ISNA(VLOOKUP(I100,Totals!$AX$3:$AY$102,2,FALSE)),"",VLOOKUP(I100,Totals!$AX$3:$AY$102,2,FALSE)) -> 0 | I100: 55 | O100: =IF(ISNA(VLOOKUP(P100,Totals!$AX$3:$AY$102,2,FALSE)),"",VLOOKUP(P100,Totals!$AX$3:$AY$102,2,FALSE)) -> 0 | P100: 55 | V100: =IF(ISNA(VLOOKUP(W100,Totals!$AX$3:$AY$102,2,FALSE)),"",VLOOKUP(W100,Totals!$AX$3:$AY$102,2,FALSE)) -> 0 | W100: 55
H101: =IF(ISNA(VLOOKUP(I101,Totals!$AX$3:$AY$102,2,FALSE)),"",VLOOKUP(I101,Totals!$AX$3:$AY$102,2,FALSE)) -> 0 | I101: 55 | O101: =IF(ISNA(VLOOKUP(P101,Totals!$AX$3:$AY$102,2,FALSE)),"",VLOOKUP(P101,Totals!$AX$3:$AY$102,2,FALSE)) -> 0 | P101: 55 | V101: =IF(ISNA(VLOOKUP(W101,Totals!$AX$3:$AY$102,2,FALSE)),"",VLOOKUP(W101,Totals!$AX$3:$AY$102,2,FALSE)) -> 0 | W101: 55
H102: =IF(ISNA(VLOOKUP(I102,Totals!$AX$3:$AY$102,2,FALSE)),"",VLOOKUP(I102,Totals!$AX$3:$AY$102,2,FALSE)) -> 0 | I102: 55 | O102: =IF(ISNA(VLOOKUP(P102,Totals!$AX$3:$AY$102,2,FALSE)),"",VLOOKUP(P102,Totals!$AX$3:$AY$102,2,FALSE)) -> 0 | P102: 55 | V102: =IF(ISNA(VLOOKUP(W102,Totals!$AX$3:$AY$102,2,FALSE)),"",VLOOKUP(W102,Totals!$AX$3:$AY$102,2,FALSE)) -> 0 | W102: 55
H103: =IF(ISNA(VLOOKUP(I103,Totals!$AX$3:$AY$102,2,FALSE)),"",VLOOKUP(I103,Totals!$AX$3:$AY$102,2,FALSE)) -> 0 | I103: 55 | O103: =IF(ISNA(VLOOKUP(P103,Totals!$AX$3:$AY$102,2,FALSE)),"",VLOOKUP(P103,Totals!$AX$3:$AY$102,2,FALSE)) -> 0 | P103: 55 | V103: =IF(ISNA(VLOOKUP(W103,Totals!$AX$3:$AY$102,2,FALSE)),"",VLOOKUP(W103,Totals!$AX$3:$AY$102,2,FALSE)) -> 0 | W103: 55
H104: =IF(ISNA(VLOOKUP(I104,Totals!$AX$3:$AY$102,2,FALSE)),"",VLOOKUP(I104,Totals!$AX$3:$AY$102,2,FALSE)) -> 0 | I104: 55 | O104: =IF(ISNA(VLOOKUP(P104,Totals!$AX$3:$AY$102,2,FALSE)),"",VLOOKUP(P104,Totals!$AX$3:$AY$102,2,FALSE)) -> 0 | P104: 55 | V104: =IF(ISNA(VLOOKUP(W104,Totals!$AX$3:$AY$102,2,FALSE)),"",VLOOKUP(W104,Totals!$AX$3:$AY$102,2,FALSE)) -> 0 | W104: 55
H105: =IF(ISNA(VLOOKUP(I105,Totals!$AX$3:$AY$102,2,FALSE)),"",VLOOKUP(I105,Totals!$AX$3:$AY$102,2,FALSE)) -> 0 | I105: 55 | O105: =IF(ISNA(VLOOKUP(P105,Totals!$AX$3:$AY$102,2,FALSE)),"",VLOOKUP(P105,Totals!$AX$3:$AY$102,2,FALSE)) -> 0 | P105: 55 | V105: =IF(ISNA(VLOOKUP(W105,Totals!$AX$3:$AY$102,2,FALSE)),"",VLOOKUP(W105,Totals!$AX$3:$AY$102,2,FALSE)) -> 0 | W105: 55
H106: =IF(ISNA(VLOOKUP(I106,Totals!$AX$3:$AY$102,2,FALSE)),"",VLOOKUP(I106,Totals!$AX$3:$AY$102,2,FALSE)) -> 0 | I106: 55 | O106: =IF(ISNA(VLOOKUP(P106,Totals!$AX$3:$AY$102,2,FALSE)),"",VLOOKUP(P106,Totals!$AX$3:$AY$102,2,FALSE)) -> 0 | P106: 55 | V106: =IF(ISNA(VLOOKUP(W106,Totals!$AX$3:$AY$102,2,FALSE)),"",VLOOKUP(W106,Totals!$AX$3:$AY$102,2,FALSE)) -> 0 | W106: 55
H107: =IF(ISNA(VLOOKUP(I107,Totals!$AX$3:$AY$102,2,FALSE)),"",VLOOKUP(I107,Totals!$AX$3:$AY$102,2,FALSE)) -> 0 | I107: 55 | O107: =IF(ISNA(VLOOKUP(P107,Totals!$AX$3:$AY$102,2,FALSE)),"",VLOOKUP(P107,Totals!$AX$3:$AY$102,2,FALSE)) -> 0 | P107: 55 | V107: =IF(ISNA(VLOOKUP(W107,Totals!$AX$3:$AY$102,2,FALSE)),"",VLOOKUP(W107,Totals!$AX$3:$AY$102,2,FALSE)) -> 0 | W107: 55
H108: =IF(ISNA(VLOOKUP(I108,Totals!$AX$3:$AY$102,2,FALSE)),"",VLOOKUP(I108,Totals!$AX$3:$AY$102,2,FALSE)) -> 0 | I108: 55 | O108: =IF(ISNA(VLOOKUP(P108,Totals!$AX$3:$AY$102,2,FALSE)),"",VLOOKUP(P108,Totals!$AX$3:$AY$102,2,FALSE)) -> 0 | P108: 55 | V108: =IF(ISNA(VLOOKUP(W108,Totals!$AX$3:$AY$102,2,FALSE)),"",VLOOKUP(W108,Totals!$AX$3:$AY$102,2,FALSE)) -> 0 | W108: 55
H109: =IF(ISNA(VLOOKUP(I109,Totals!$AX$3:$AY$102,2,FALSE)),"",VLOOKUP(I109,Totals!$AX$3:$AY$102,2,FALSE)) -> 0 | I109: 55 | O109: =IF(ISNA(VLOOKUP(P109,Totals!$AX$3:$AY$102,2,FALSE)),"",VLOOKUP(P109,Totals!$AX$3:$AY$102,2,FALSE)) -> 0 | P109: 55 | V109: =IF(ISNA(VLOOKUP(W109,Totals!$AX$3:$AY$102,2,FALSE)),"",VLOOKUP(W109,Totals!$AX$3:$AY$102,2,FALSE)) -> 0 | W109: 55
H110: =IF(ISNA(VLOOKUP(I110,Totals!$AX$3:$AY$102,2,FALSE)),"",VLOOKUP(I110,Totals!$AX$3:$AY$102,2,FALSE)) -> 0 | I110: 55 | O110: =IF(ISNA(VLOOKUP(P110,Totals!$AX$3:$AY$102,2,FALSE)),"",VLOOKUP(P110,Totals!$AX$3:$AY$102,2,FALSE)) -> 0 | P110: 55 | V110: =IF(ISNA(VLOOKUP(W110,Totals!$AX$3:$AY$102,2,FALSE)),"",VLOOKUP(W110,Totals!$AX$3:$AY$102,2,FALSE)) -> 0 | W110: 55
H111: =IF(ISNA(VLOOKUP(I111,Totals!$AX$3:$AY$102,2,FALSE)),"",VLOOKUP(I111,Totals!$AX$3:$AY$102,2,FALSE)) -> 0 | I111: 55 | O111: =IF(ISNA(VLOOKUP(P111,Totals!$AX$3:$AY$102,2,FALSE)),"",VLOOKUP(P111,Totals!$AX$3:$AY$102,2,FALSE)) -> 0 | P111: 55 | V111: =IF(ISNA(VLOOKUP(W111,Totals!$AX$3:$AY$102,2,FALSE)),"",VLOOKUP(W111,Totals!$AX$3:$AY$102,2,FALSE)) -> 0 | W111: 55
H112: =IF(ISNA(VLOOKUP(I112,Totals!$AX$3:$AY$102,2,FALSE)),"",VLOOKUP(I112,Totals!$AX$3:$AY$102,2,FALSE)) -> 0 | I112: 55 | O112: =IF(ISNA(VLOOKUP(P112,Totals!$AX$3:$AY$102,2,FALSE)),"",VLOOKUP(P112,Totals!$AX$3:$AY$102,2,FALSE)) -> 0 | P112: 55 | V112: =IF(ISNA(VLOOKUP(W112,Totals!$AX$3:$AY$102,2,FALSE)),"",VLOOKUP(W112,Totals!$AX$3:$AY$102,2,FALSE)) -> 0 | W112: 55
H113: =IF(ISNA(VLOOKUP(I113,Totals!$AX$3:$AY$102,2,FALSE)),"",VLOOKUP(I113,Totals!$AX$3:$AY$102,2,FALSE)) -> 0 | I113: 55 | O113: =IF(ISNA(VLOOKUP(P113,Totals!$AX$3:$AY$102,2,FALSE)),"",VLOOKUP(P113,Totals!$AX$3:$AY$102,2,FALSE)) -> 0 | P113: 55 | V113: =IF(ISNA(VLOOKUP(W113,Totals!$AX$3:$AY$102,2,FALSE)),"",VLOOKUP(W113,Totals!$AX$3:$AY$102,2,FALSE)) -> 0 | W113: 55
H114: =IF(ISNA(VLOOKUP(I114,Totals!$AX$3:$AY$102,2,FALSE)),"",VLOOKUP(I114,Totals!$AX$3:$AY$102,2,FALSE)) -> 0 | I114: 55 | O114: =IF(ISNA(VLOOKUP(P114,Totals!$AX$3:$AY$102,2,FALSE)),"",VLOOKUP(P114,Totals!$AX$3:$AY$102,2,FALSE)) -> 0 | P114: 55 | V114: =IF(ISNA(VLOOKUP(W114,Totals!$AX$3:$AY$102,2,FALSE)),"",VLOOKUP(W114,Totals!$AX$3:$AY$102,2,FALSE)) -> 0 | W114: 55
H115: =IF(ISNA(VLOOKUP(I115,Totals!$AX$3:$AY$102,2,FALSE)),"",VLOOKUP(I115,Totals!$AX$3:$AY$102,2,FALSE)) -> 0 | I115: 55 | O115: =IF(ISNA(VLOOKUP(P115,Totals!$AX$3:$AY$102,2,FALSE)),"",VLOOKUP(P115,Totals!$AX$3:$AY$102,2,FALSE)) -> 0 | P115: 55 | V115: =IF(ISNA(VLOOKUP(W115,Totals!$AX$3:$AY$102,2,FALSE)),"",VLOOKUP(W115,Totals!$AX$3:$AY$102,2,FALSE)) -> 0 | W115: 55
H116: =IF(ISNA(VLOOKUP(I116,Totals!$AX$3:$AY$102,2,FALSE)),"",VLOOKUP(I116,Totals!$AX$3:$AY$102,2,FALSE)) -> 0 | I116: 55 | O116: =IF(ISNA(VLOOKUP(P116,Totals!$AX$3:$AY$102,2,FALSE)),"",VLOOKUP(P116,Totals!$AX$3:$AY$102,2,FALSE)) -> 0 | P116: 55 | V116: =IF(ISNA(VLOOKUP(W116,Totals!$AX$3:$AY$102,2,FALSE)),"",VLOOKUP(W116,Totals!$AX$3:$AY$102,2,FALSE)) -> 0 | W116: 55
H117: =IF(ISNA(VLOOKUP(I117,Totals!$AX$3:$AY$102,2,FALSE)),"",VLOOKUP(I117,Totals!$AX$3:$AY$102,2,FALSE)) -> 0 | I117: 55 | O117: =IF(ISNA(VLOOKUP(P117,Totals!$AX$3:$AY$102,2,FALSE)),"",VLOOKUP(P117,Totals!$AX$3:$AY$102,2,FALSE)) -> 0 | P117: 55 | V117: =IF(ISNA(VLOOKUP(W117,Totals!$AX$3:$AY$102,2,FALSE)),"",VLOOKUP(W117,Totals!$AX$3:$AY$102,2,FALSE)) -> 0 | W117: 55
H118: =IF(ISNA(VLOOKUP(I118,Totals!$AX$3:$AY$102,2,FALSE)),"",VLOOKUP(I118,Totals!$AX$3:$AY$102,2,FALSE)) -> 0 | I118: 55 | O118: =IF(ISNA(VLOOKUP(P118,Totals!$AX$3:$AY$102,2,FALSE)),"",VLOOKUP(P118,Totals!$AX$3:$AY$102,2,FALSE)) -> 0 | P118: 55 | V118: =IF(ISNA(VLOOKUP(W118,Totals!$AX$3:$AY$102,2,FALSE)),"",VLOOKUP(W118,Totals!$AX$3:$AY$102,2,FALSE)) -> 0 | W118: 55
H119: =IF(ISNA(VLOOKUP(I119,Totals!$AX$3:$AY$102,2,FALSE)),"",VLOOKUP(I119,Totals!$AX$3:$AY$102,2,FALSE)) -> 0 | I119: 55 | O119: =IF(ISNA(VLOOKUP(P119,Totals!$AX$3:$AY$102,2,FALSE)),"",VLOOKUP(P119,Totals!$AX$3:$AY$102,2,FALSE)) -> 0 | P119: 55 | V119: =IF(ISNA(VLOOKUP(W119,Totals!$AX$3:$AY$102,2,FALSE)),"",VLOOKUP(W119,Totals!$AX$3:$AY$102,2,FALSE)) -> 0 | W119: 55
H120: =IF(ISNA(VLOOKUP(I120,Totals!$AX$3:$AY$102,2,FALSE)),"",VLOOKUP(I120,Totals!$AX$3:$AY$102,2,FALSE)) -> 0 | I120: 55 | O120: =IF(ISNA(VLOOKUP(P120,Totals!$AX$3:$AY$102,2,FALSE)),"",VLOOKUP(P120,Totals!$AX$3:$AY$102,2,FALSE)) -> 0 | P120: 55 | V120: =IF(ISNA(VLOOKUP(W120,Totals!$AX$3:$AY$102,2,FALSE)),"",VLOOKUP(W120,Totals!$AX$3:$AY$102,2,FALSE)) -> 0 | W120: 55
H121: =IF(ISNA(VLOOKUP(I121,Totals!$AX$3:$AY$102,2,FALSE)),"",VLOOKUP(I121,Totals!$AX$3:$AY$102,2,FALSE)) -> 0 | I121: 55 | O121: =IF(ISNA(VLOOKUP(P121,Totals!$AX$3:$AY$102,2,FALSE)),"",VLOOKUP(P121,Totals!$AX$3:$AY$102,2,FALSE)) -> 0 | P121: 55 | V121: =IF(ISNA(VLOOKUP(W121,Totals!$AX$3:$AY$102,2,FALSE)),"",VLOOKUP(W121,Totals!$AX$3:$AY$102,2,FALSE)) -> 0 | W121: 55
H122: =IF(ISNA(VLOOKUP(I122,Totals!$AX$3:$AY$102,2,FALSE)),"",VLOOKUP(I122,Totals!$AX$3:$AY$102,2,FALSE)) -> 0 | I122: 55 | O122: =IF(ISNA(VLOOKUP(P122,Totals!$AX$3:$AY$102,2,FALSE)),"",VLOOKUP(P122,Totals!$AX$3:$AY$102,2,FALSE)) -> 0 | P122: 55 | V122: =IF(ISNA(VLOOKUP(W122,Totals!$AX$3:$AY$102,2,FALSE)),"",VLOOKUP(W122,Totals!$AX$3:$AY$102,2,FALSE)) -> 0 | W122: 55
H123: =IF(ISNA(VLOOKUP(I123,Totals!$AX$3:$AY$102,2,FALSE)),"",VLOOKUP(I123,Totals!$AX$3:$AY$102,2,FALSE)) -> 0 | I123: 55 | O123: =IF(ISNA(VLOOKUP(P123,Totals!$AX$3:$AY$102,2,FALSE)),"",VLOOKUP(P123,Totals!$AX$3:$AY$102,2,FALSE)) -> 0 | P123: 55 | V123: =IF(ISNA(VLOOKUP(W123,Totals!$AX$3:$AY$102,2,FALSE)),"",VLOOKUP(W123,Totals!$AX$3:$AY$102,2,FALSE)) -> 0 | W123: 55
H124: =IF(ISNA(VLOOKUP(I124,Totals!$AX$3:$AY$102,2,FALSE)),"",VLOOKUP(I124,Totals!$AX$3:$AY$102,2,FALSE)) -> 0 | I124: 55 | O124: =IF(ISNA(VLOOKUP(P124,Totals!$AX$3:$AY$102,2,FALSE)),"",VLOOKUP(P124,Totals!$AX$3:$AY$102,2,FALSE)) -> 0 | P124: 55 | V124: =IF(ISNA(VLOOKUP(W124,Totals!$AX$3:$AY$102,2,FALSE)),"",VLOOKUP(W124,Totals!$AX$3:$AY$102,2,FALSE)) -> 0 | W124: 55
H125: =IF(ISNA(VLOOKUP(I125,Totals!$AX$3:$AY$102,2,FALSE)),"",VLOOKUP(I125,Totals!$AX$3:$AY$102,2,FALSE)) -> 0 | I125: 55 | O125: =IF(ISNA(VLOOKUP(P125,Totals!$AX$3:$AY$102,2,FALSE)),"",VLOOKUP(P125,Totals!$AX$3:$AY$102,2,FALSE)) -> 0 | P125: 55 | V125: =IF(ISNA(VLOOKUP(W125,Totals!$AX$3:$AY$102,2,FALSE)),"",VLOOKUP(W125,Totals!$AX$3:$AY$102,2,FALSE)) -> 0 | W125: 55
H126: =IF(ISNA(VLOOKUP(I126,Totals!$AX$3:$AY$102,2,FALSE)),"",VLOOKUP(I126,Totals!$AX$3:$AY$102,2,FALSE)) -> 0 | I126: 55 | O126: =IF(ISNA(VLOOKUP(P126,Totals!$AX$3:$AY$102,2,FALSE)),"",VLOOKUP(P126,Totals!$AX$3:$AY$102,2,FALSE)) -> 0 | P126: 55 | V126: =IF(ISNA(VLOOKUP(W126,Totals!$AX$3:$AY$102,2,FALSE)),"",VLOOKUP(W126,Totals!$AX$3:$AY$102,2,FALSE)) -> 0 | W126: 55
H127: =IF(ISNA(VLOOKUP(I127,Totals!$AX$3:$AY$102,2,FALSE)),"",VLOOKUP(I127,Totals!$AX$3:$AY$102,2,FALSE)) -> 0 | I127: 55 | O127: =IF(ISNA(VLOOKUP(P127,Totals!$AX$3:$AY$102,2,FALSE)),"",VLOOKUP(P127,Totals!$AX$3:$AY$102,2,FALSE)) -> 0 | P127: 55 | V127: =IF(ISNA(VLOOKUP(W127,Totals!$AX$3:$AY$102,2,FALSE)),"",VLOOKUP(W127,Totals!$AX$3:$AY$102,2,FALSE)) -> 0 | W127: 55
H128: =IF(ISNA(VLOOKUP(I128,Totals!$AX$3:$AY$102,2,FALSE)),"",VLOOKUP(I128,Totals!$AX$3:$AY$102,2,FALSE)) -> 0 | I128: 55 | O128: =IF(ISNA(VLOOKUP(P128,Totals!$AX$3:$AY$102,2,FALSE)),"",VLOOKUP(P128,Totals!$AX$3:$AY$102,2,FALSE)) -> 0 | P128: 55 | V128: =IF(ISNA(VLOOKUP(W128,Totals!$AX$3:$AY$102,2,FALSE)),"",VLOOKUP(W128,Totals!$AX$3:$AY$102,2,FALSE)) -> 0 | W128: 55
H129: =IF(ISNA(VLOOKUP(I129,Totals!$AX$3:$AY$102,2,FALSE)),"",VLOOKUP(I129,Totals!$AX$3:$AY$102,2,FALSE)) -> 0 | I129: 55 | O129: =IF(ISNA(VLOOKUP(P129,Totals!$AX$3:$AY$102,2,FALSE)),"",VLOOKUP(P129,Totals!$AX$3:$AY$102,2,FALSE)) -> 0 | P129: 55 | V129: =IF(ISNA(VLOOKUP(W129,Totals!$AX$3:$AY$102,2,FALSE)),"",VLOOKUP(W129,Totals!$AX$3:$AY$102,2,FALSE)) -> 0 | W129: 55
H130: =IF(ISNA(VLOOKUP(I130,Totals!$AX$3:$AY$102,2,FALSE)),"",VLOOKUP(I130,Totals!$AX$3:$AY$102,2,FALSE)) -> 0 | I130: 55 | O130: =IF(ISNA(VLOOKUP(P130,Totals!$AX$3:$AY$102,2,FALSE)),"",VLOOKUP(P130,Totals!$AX$3:$AY$102,2,FALSE)) -> 0 | P130: 55 | V130: =IF(ISNA(VLOOKUP(W130,Totals!$AX$3:$AY$102,2,FALSE)),"",VLOOKUP(W130,Totals!$AX$3:$AY$102,2,FALSE)) -> 0 | W130: 55
H131: =IF(ISNA(VLOOKUP(I131,Totals!$AX$3:$AY$102,2,FALSE)),"",VLOOKUP(I131,Totals!$AX$3:$AY$102,2,FALSE)) -> 0 | I131: 55 | O131: =IF(ISNA(VLOOKUP(P131,Totals!$AX$3:$AY$102,2,FALSE)),"",VLOOKUP(P131,Totals!$AX$3:$AY$102,2,FALSE)) -> 0 | P131: 55 | V131: =IF(ISNA(VLOOKUP(W131,Totals!$AX$3:$AY$102,2,FALSE)),"",VLOOKUP(W131,Totals!$AX$3:$AY$102,2,FALSE)) -> 0 | W131: 55
H132: =IF(ISNA(VLOOKUP(I132,Totals!$AX$3:$AY$102,2,FALSE)),"",VLOOKUP(I132,Totals!$AX$3:$AY$102,2,FALSE)) -> 0 | I132: 55 | O132: =IF(ISNA(VLOOKUP(P132,Totals!$AX$3:$AY$102,2,FALSE)),"",VLOOKUP(P132,Totals!$AX$3:$AY$102,2,FALSE)) -> 0 | P132: 55 | V132: =IF(ISNA(VLOOKUP(W132,Totals!$AX$3:$AY$102,2,FALSE)),"",VLOOKUP(W132,Totals!$AX$3:$AY$102,2,FALSE)) -> 0 | W132: 55
H133: =IF(ISNA(VLOOKUP(I133,Totals!$AX$3:$AY$102,2,FALSE)),"",VLOOKUP(I133,Totals!$AX$3:$AY$102,2,FALSE)) -> 0 | I133: 55 | O133: =IF(ISNA(VLOOKUP(P133,Totals!$AX$3:$AY$102,2,FALSE)),"",VLOOKUP(P133,Totals!$AX$3:$AY$102,2,FALSE)) -> 0 | P133: 55 | V133: =IF(ISNA(VLOOKUP(W133,Totals!$AX$3:$AY$102,2,FALSE)),"",VLOOKUP(W133,Totals!$AX$3:$AY$102,2,FALSE)) -> 0 | W133: 55
H134: =IF(ISNA(VLOOKUP(I134,Totals!$AX$3:$AY$102,2,FALSE)),"",VLOOKUP(I134,Totals!$AX$3:$AY$102,2,FALSE)) -> 0 | I134: 55 | O134: =IF(ISNA(VLOOKUP(P134,Totals!$AX$3:$AY$102,2,FALSE)),"",VLOOKUP(P134,Totals!$AX$3:$AY$102,2,FALSE)) -> 0 | P134: =IF(ISNA(RANK(N134,N$5:N$150)),"",RANK(N134,N$5:N$150)) -> 55 | V134: =IF(ISNA(VLOOKUP(W134,Totals!$AX$3:$AY$102,2,FALSE)),"",VLOOKUP(W134,Totals!$AX$3:$AY$102,2,FALSE)) -> 0 | W134: =IF(ISNA(RANK(U134,U$5:U$150)),"",RANK(U134,U$5:U$150)) -> 55
H135: =IF(ISNA(VLOOKUP(I135,Totals!$AX$3:$AY$102,2,FALSE)),"",VLOOKUP(I135,Totals!$AX$3:$AY$102,2,FALSE)) -> 0 | I135: =IF(G135=G134,I134,IF(ISNA(RANK(G135,G$5:G$150)),"",RANK(G135,G$5:G$150))) -> 55 | O135: =IF(ISNA(VLOOKUP(P135,Totals!$AX$3:$AY$102,2,FALSE)),"",VLOOKUP(P135,Totals!$AX$3:$AY$102,2,FALSE)) -> 0 | P135: 55 | V135: =IF(ISNA(VLOOKUP(W135,Totals!$AX$3:$AY$102,2,FALSE)),"",VLOOKUP(W135,Totals!$AX$3:$AY$102,2,FALSE)) -> 0 | W135: 55
H136: =IF(ISNA(VLOOKUP(I136,Totals!$AX$3:$AY$102,2,FALSE)),"",VLOOKUP(I136,Totals!$AX$3:$AY$102,2,FALSE)) -> 0 | I136: 55 | O136: =IF(ISNA(VLOOKUP(P136,Totals!$AX$3:$AY$102,2,FALSE)),"",VLOOKUP(P136,Totals!$AX$3:$AY$102,2,FALSE)) -> 0 | P136: 55 | V136: =IF(ISNA(VLOOKUP(W136,Totals!$AX$3:$AY$102,2,FALSE)),"",VLOOKUP(W136,Totals!$AX$3:$AY$102,2,FALSE)) -> 0 | W136: 55
H137: =IF(ISNA(VLOOKUP(I137,Totals!$AX$3:$AY$102,2,FALSE)),"",VLOOKUP(I137,Totals!$AX$3:$AY$102,2,FALSE)) -> 0 | I137: 55 | O137: =IF(ISNA(VLOOKUP(P137,Totals!$AX$3:$AY$102,2,FALSE)),"",VLOOKUP(P137,Totals!$AX$3:$AY$102,2,FALSE)) -> 0 | P137: 55 | V137: =IF(ISNA(VLOOKUP(W137,Totals!$AX$3:$AY$102,2,FALSE)),"",VLOOKUP(W137,Totals!$AX$3:$AY$102,2,FALSE)) -> 0 | W137: 55
H138: =IF(ISNA(VLOOKUP(I138,Totals!$AX$3:$AY$102,2,FALSE)),"",VLOOKUP(I138,Totals!$AX$3:$AY$102,2,FALSE)) -> 0 | I138: 55 | O138: =IF(ISNA(VLOOKUP(P138,Totals!$AX$3:$AY$102,2,FALSE)),"",VLOOKUP(P138,Totals!$AX$3:$AY$102,2,FALSE)) -> 0 | P138: 55 | V138: =IF(ISNA(VLOOKUP(W138,Totals!$AX$3:$AY$102,2,FALSE)),"",VLOOKUP(W138,Totals!$AX$3:$AY$102,2,FALSE)) -> 0 | W138: 55
H139: =IF(ISNA(VLOOKUP(I139,Totals!$AX$3:$AY$102,2,FALSE)),"",VLOOKUP(I139,Totals!$AX$3:$AY$102,2,FALSE)) -> 0 | I139: 55 | O139: =IF(ISNA(VLOOKUP(P139,Totals!$AX$3:$AY$102,2,FALSE)),"",VLOOKUP(P139,Totals!$AX$3:$AY$102,2,FALSE)) -> 0 | P139: 55 | V139: =IF(ISNA(VLOOKUP(W139,Totals!$AX$3:$AY$102,2,FALSE)),"",VLOOKUP(W139,Totals!$AX$3:$AY$102,2,FALSE)) -> 0 | W139: 55
H140: =IF(ISNA(VLOOKUP(I140,Totals!$AX$3:$AY$102,2,FALSE)),"",VLOOKUP(I140,Totals!$AX$3:$AY$102,2,FALSE)) -> 0 | I140: 55 | O140: =IF(ISNA(VLOOKUP(P140,Totals!$AX$3:$AY$102,2,FALSE)),"",VLOOKUP(P140,Totals!$AX$3:$AY$102,2,FALSE)) -> 0 | P140: 55 | V140: =IF(ISNA(VLOOKUP(W140,Totals!$AX$3:$AY$102,2,FALSE)),"",VLOOKUP(W140,Totals!$AX$3:$AY$102,2,FALSE)) -> 0 | W140: 55
H141: =IF(ISNA(VLOOKUP(I141,Totals!$AX$3:$AY$102,2,FALSE)),"",VLOOKUP(I141,Totals!$AX$3:$AY$102,2,FALSE)) -> 0 | I141: 55 | O141: =IF(ISNA(VLOOKUP(P141,Totals!$AX$3:$AY$102,2,FALSE)),"",VLOOKUP(P141,Totals!$AX$3:$AY$102,2,FALSE)) -> 0 | P141: 55 | V141: =IF(ISNA(VLOOKUP(W141,Totals!$AX$3:$AY$102,2,FALSE)),"",VLOOKUP(W141,Totals!$AX$3:$AY$102,2,FALSE)) -> 0 | W141: 55
H142: =IF(ISNA(VLOOKUP(I142,Totals!$AX$3:$AY$102,2,FALSE)),"",VLOOKUP(I142,Totals!$AX$3:$AY$102,2,FALSE)) -> 0 | I142: 55 | O142: =IF(ISNA(VLOOKUP(P142,Totals!$AX$3:$AY$102,2,FALSE)),"",VLOOKUP(P142,Totals!$AX$3:$AY$102,2,FALSE)) -> 0 | P142: 55 | V142: =IF(ISNA(VLOOKUP(W142,Totals!$AX$3:$AY$102,2,FALSE)),"",VLOOKUP(W142,Totals!$AX$3:$AY$102,2,FALSE)) -> 0 | W142: 55
H143: =IF(ISNA(VLOOKUP(I143,Totals!$AX$3:$AY$102,2,FALSE)),"",VLOOKUP(I143,Totals!$AX$3:$AY$102,2,FALSE)) -> 0 | I143: 55 | O143: =IF(ISNA(VLOOKUP(P143,Totals!$AX$3:$AY$102,2,FALSE)),"",VLOOKUP(P143,Totals!$AX$3:$AY$102,2,FALSE)) -> 0 | P143: 55 | V143: =IF(ISNA(VLOOKUP(W143,Totals!$AX$3:$AY$102,2,FALSE)),"",VLOOKUP(W143,Totals!$AX$3:$AY$102,2,FALSE)) -> 0 | W143: 55
H144: =IF(ISNA(VLOOKUP(I144,Totals!$AX$3:$AY$102,2,FALSE)),"",VLOOKUP(I144,Totals!$AX$3:$AY$102,2,FALSE)) -> 0 | I144: 55 | O144: =IF(ISNA(VLOOKUP(P144,Totals!$AX$3:$AY$102,2,FALSE)),"",VLOOKUP(P144,Totals!$AX$3:$AY$102,2,FALSE)) -> 0 | P144: 55 | V144: =IF(ISNA(VLOOKUP(W144,Totals!$AX$3:$AY$102,2,FALSE)),"",VLOOKUP(W144,Totals!$AX$3:$AY$102,2,FALSE)) -> 0 | W144: 55
H145: =IF(ISNA(VLOOKUP(I145,Totals!$AX$3:$AY$102,2,FALSE)),"",VLOOKUP(I145,Totals!$AX$3:$AY$102,2,FALSE)) -> 0 | I145: 55 | O145: =IF(ISNA(VLOOKUP(P145,Totals!$AX$3:$AY$102,2,FALSE)),"",VLOOKUP(P145,Totals!$AX$3:$AY$102,2,FALSE)) -> 0 | P145: 55 | V145: =IF(ISNA(VLOOKUP(W145,Totals!$AX$3:$AY$102,2,FALSE)),"",VLOOKUP(W145,Totals!$AX$3:$AY$102,2,FALSE)) -> 0 | W145: 55
H146: =IF(ISNA(VLOOKUP(I146,Totals!$AX$3:$AY$102,2,FALSE)),"",VLOOKUP(I146,Totals!$AX$3:$AY$102,2,FALSE)) -> 0 | I146: 55 | O146: =IF(ISNA(VLOOKUP(P146,Totals!$AX$3:$AY$102,2,FALSE)),"",VLOOKUP(P146,Totals!$AX$3:$AY$102,2,FALSE)) -> 0 | P146: 55 | V146: =IF(ISNA(VLOOKUP(W146,Totals!$AX$3:$AY$102,2,FALSE)),"",VLOOKUP(W146,Totals!$AX$3:$AY$102,2,FALSE)) -> 0 | W146: 55
H147: =IF(ISNA(VLOOKUP(I147,Totals!$AX$3:$AY$102,2,FALSE)),"",VLOOKUP(I147,Totals!$AX$3:$AY$102,2,FALSE)) -> 0 | I147: 55 | O147: =IF(ISNA(VLOOKUP(P147,Totals!$AX$3:$AY$102,2,FALSE)),"",VLOOKUP(P147,Totals!$AX$3:$AY$102,2,FALSE)) -> 0 | P147: 55 | V147: =IF(ISNA(VLOOKUP(W147,Totals!$AX$3:$AY$102,2,FALSE)),"",VLOOKUP(W147,Totals!$AX$3:$AY$102,2,FALSE)) -> 0 | W147: 55
H148: =IF(ISNA(VLOOKUP(I148,Totals!$AX$3:$AY$102,2,FALSE)),"",VLOOKUP(I148,Totals!$AX$3:$AY$102,2,FALSE)) -> 0 | I148: 55 | O148: =IF(ISNA(VLOOKUP(P148,Totals!$AX$3:$AY$102,2,FALSE)),"",VLOOKUP(P148,Totals!$AX$3:$AY$102,2,FALSE)) -> 0 | P148: 55 | V148: =IF(ISNA(VLOOKUP(W148,Totals!$AX$3:$AY$102,2,FALSE)),"",VLOOKUP(W148,Totals!$AX$3:$AY$102,2,FALSE)) -> 0 | W148: 55
H149: =IF(ISNA(VLOOKUP(I149,Totals!$AX$3:$AY$102,2,FALSE)),"",VLOOKUP(I149,Totals!$AX$3:$AY$102,2,FALSE)) -> 0 | I149: 55 | O149: =IF(ISNA(VLOOKUP(P149,Totals!$AX$3:$AY$102,2,FALSE)),"",VLOOKUP(P149,Totals!$AX$3:$AY$102,2,FALSE)) -> 0 | P149: 55 | V149: =IF(ISNA(VLOOKUP(W149,Totals!$AX$3:$AY$102,2,FALSE)),"",VLOOKUP(W149,Totals!$AX$3:$AY$102,2,FALSE)) -> 0 | W149: 55
H150: =IF(ISNA(VLOOKUP(I150,Totals!$AX$3:$AY$102,2,FALSE)),"",VLOOKUP(I150,Totals!$AX$3:$AY$102,2,FALSE)) -> 0 | I150: 55 | O150: =IF(ISNA(VLOOKUP(P150,Totals!$AX$3:$AY$102,2,FALSE)),"",VLOOKUP(P150,Totals!$AX$3:$AY$102,2,FALSE)) -> 0 | P150: 55 | V150: =IF(ISNA(VLOOKUP(W150,Totals!$AX$3:$AY$102,2,FALSE)),"",VLOOKUP(W150,Totals!$AX$3:$AY$102,2,FALSE)) -> 0 | W150: 55
